{"text_format":"3","workbook":"xlsx","n_sheets":2,"sheets":["График за курса","Списък с курсове"],"not_rendered":{"defined_names":17},"read":"whole","date_system":"1900"}

{"sheet":"График за курса","index":0,"n_rows":56,"n_cols":9,"rows_kept":56,"merged":[[0,1,1,5],[0,8,1,8]]}
[null,"ГРАФИК ЗА КУРСА",{"$nulls":4},"ГРАФИК НАЧАЛО","ИНТЕРВАЛ ОТ ВРЕМЕ","Списък с курсове"]
[{"$nulls":6},"08:00:00","15 МИН"]
[null,"ЧАС","НЕДЕЛЯ","ПОНЕДЕЛНИК","ВТОРНИК","СРЯДА","ЧЕТВЪРТЪК","ПЕТЪК","СЪБОТА"]
[null,{"$f":"ГрафикНачало","v":"08:00:00"},{"$f":"IFERROR(INDEX(СписъкКурсове[],MATCH(SUMPRODUCT((СписъкКурсове[ДЕН]=ГрафикЗаКурса[[#Headers],[НЕДЕЛЯ]])*(ROUNDDOWN($B4,10)>=ROUNDDOWN(СписъкКурсове[НАЧАЛЕН ЧАС],10))*($B4<=СписъкКурсове[КРАЕН ЧАС]),СписъкКурсове[УНИКАЛНИ]),СписъкКурсове[УНИКАЛНИ],0),2),0)","v":0},{"$f":"IFERROR(INDEX(СписъкКурсове[],MATCH(SUMPRODUCT((СписъкКурсове[ДЕН]=ГрафикЗаКурса[[#Headers],[ПОНЕДЕЛНИК]])*(ROUNDDOWN($B4,10)>=ROUNDDOWN(СписъкКурсове[НАЧАЛЕН ЧАС],10))*($B4<=СписъкКурсове[КРАЕН ЧАС]),СписъкКурсове[УНИКАЛНИ]),СписъкКурсове[УНИКАЛНИ],0),2),0)","v":0},{"$f":"IFERROR(INDEX(СписъкКурсове[],MATCH(SUMPRODUCT((СписъкКурсове[ДЕН]=ГрафикЗаКурса[[#Headers],[ВТОРНИК]])*(ROUNDDOWN($B4,10)>=ROUNDDOWN(СписъкКурсове[НАЧАЛЕН ЧАС],10))*($B4<=СписъкКурсове[КРАЕН ЧАС]),СписъкКурсове[УНИКАЛНИ]),СписъкКурсове[УНИКАЛНИ],0),2),0)","v":0},{"$f":"IFERROR(INDEX(СписъкКурсове[],MATCH(SUMPRODUCT((СписъкКурсове[ДЕН]=ГрафикЗаКурса[[#Headers],[СРЯДА]])*(ROUNDDOWN($B4,10)>=ROUNDDOWN(СписъкКурсове[НАЧАЛЕН ЧАС],10))*($B4<=СписъкКурсове[КРАЕН ЧАС]),СписъкКурсове[УНИКАЛНИ]),СписъкКурсове[УНИКАЛНИ],0),2),0)","v":0},{"$f":"IFERROR(INDEX(СписъкКурсове[],MATCH(SUMPRODUCT((СписъкКурсове[ДЕН]=ГрафикЗаКурса[[#Headers],[ЧЕТВЪРТЪК]])*(ROUNDDOWN($B4,10)>=ROUNDDOWN(СписъкКурсове[НАЧАЛЕН ЧАС],10))*($B4<=СписъкКурсове[КРАЕН ЧАС]),СписъкКурсове[УНИКАЛНИ]),СписъкКурсове[УНИКАЛНИ],0),2),0)","v":0},{"$f":"IFERROR(INDEX(СписъкКурсове[],MATCH(SUMPRODUCT((СписъкКурсове[ДЕН]=ГрафикЗаКурса[[#Headers],[ПЕТЪК]])*(ROUNDDOWN($B4,10)>=ROUNDDOWN(СписъкКурсове[НАЧАЛЕН ЧАС],10))*($B4<=СписъкКурсове[КРАЕН ЧАС]),СписъкКурсове[УНИКАЛНИ]),СписъкКурсове[УНИКАЛНИ],0),2),0)","v":0},{"$f":"IFERROR(INDEX(СписъкКурсове[],MATCH(SUMPRODUCT((СписъкКурсове[ДЕН]=ГрафикЗаКурса[[#Headers],[СЪБОТА]])*(ROUNDDOWN($B4,10)>=ROUNDDOWN(СписъкКурсове[НАЧАЛЕН ЧАС],10))*($B4<=СписъкКурсове[КРАЕН ЧАС]),СписъкКурсове[УНИКАЛНИ]),СписъкКурсове[УНИКАЛНИ],0),2),0)","v":0}]
[null,{"$f":"B4+Стъпка","v":"08:15:00"},{"$f":"IFERROR(INDEX(СписъкКурсове[],MATCH(SUMPRODUCT((СписъкКурсове[ДЕН]=ГрафикЗаКурса[[#Headers],[НЕДЕЛЯ]])*(ROUNDDOWN($B5,10)>=ROUNDDOWN(СписъкКурсове[НАЧАЛЕН ЧАС],10))*($B5<=СписъкКурсове[КРАЕН ЧАС]),СписъкКурсове[УНИКАЛНИ]),СписъкКурсове[УНИКАЛНИ],0),2),0)","v":0},{"$f":"IFERROR(INDEX(СписъкКурсове[],MATCH(SUMPRODUCT((СписъкКурсове[ДЕН]=ГрафикЗаКурса[[#Headers],[ПОНЕДЕЛНИК]])*(ROUNDDOWN($B5,10)>=ROUNDDOWN(СписъкКурсове[НАЧАЛЕН ЧАС],10))*($B5<=СписъкКурсове[КРАЕН ЧАС]),СписъкКурсове[УНИКАЛНИ]),СписъкКурсове[УНИКАЛНИ],0),2),0)","v":"MTH-113"},{"$f":"IFERROR(INDEX(СписъкКурсове[],MATCH(SUMPRODUCT((СписъкКурсове[ДЕН]=ГрафикЗаКурса[[#Headers],[ВТОРНИК]])*(ROUNDDOWN($B5,10)>=ROUNDDOWN(СписъкКурсове[НАЧАЛЕН ЧАС],10))*($B5<=СписъкКурсове[КРАЕН ЧАС]),СписъкКурсове[УНИКАЛНИ]),СписъкКурсове[УНИКАЛНИ],0),2),0)","v":0},{"$f":"IFERROR(INDEX(СписъкКурсове[],MATCH(SUMPRODUCT((СписъкКурсове[ДЕН]=ГрафикЗаКурса[[#Headers],[СРЯДА]])*(ROUNDDOWN($B5,10)>=ROUNDDOWN(СписъкКурсове[НАЧАЛЕН ЧАС],10))*($B5<=СписъкКурсове[КРАЕН ЧАС]),СписъкКурсове[УНИКАЛНИ]),СписъкКурсове[УНИКАЛНИ],0),2),0)","v":"MTH-113"},{"$f":"IFERROR(INDEX(СписъкКурсове[],MATCH(SUMPRODUCT((СписъкКурсове[ДЕН]=ГрафикЗаКурса[[#Headers],[ЧЕТВЪРТЪК]])*(ROUNDDOWN($B5,10)>=ROUNDDOWN(СписъкКурсове[НАЧАЛЕН ЧАС],10))*($B5<=СписъкКурсове[КРАЕН ЧАС]),СписъкКурсове[УНИКАЛНИ]),СписъкКурсове[УНИКАЛНИ],0),2),0)","v":0},{"$f":"IFERROR(INDEX(СписъкКурсове[],MATCH(SUMPRODUCT((СписъкКурсове[ДЕН]=ГрафикЗаКурса[[#Headers],[ПЕТЪК]])*(ROUNDDOWN($B5,10)>=ROUNDDOWN(СписъкКурсове[НАЧАЛЕН ЧАС],10))*($B5<=СписъкКурсове[КРАЕН ЧАС]),СписъкКурсове[УНИКАЛНИ]),СписъкКурсове[УНИКАЛНИ],0),2),0)","v":"MTH-113"},{"$f":"IFERROR(INDEX(СписъкКурсове[],MATCH(SUMPRODUCT((СписъкКурсове[ДЕН]=ГрафикЗаКурса[[#Headers],[СЪБОТА]])*(ROUNDDOWN($B5,10)>=ROUNDDOWN(СписъкКурсове[НАЧАЛЕН ЧАС],10))*($B5<=СписъкКурсове[КРАЕН ЧАС]),СписъкКурсове[УНИКАЛНИ]),СписъкКурсове[УНИКАЛНИ],0),2),0)","v":0}]
[null,"08:30:00",{"$f":"IFERROR(INDEX(СписъкКурсове[],MATCH(SUMPRODUCT((СписъкКурсове[ДЕН]=ГрафикЗаКурса[[#Headers],[НЕДЕЛЯ]])*(ROUNDDOWN($B6,10)>=ROUNDDOWN(СписъкКурсове[НАЧАЛЕН ЧАС],10))*($B6<=СписъкКурсове[КРАЕН ЧАС]),СписъкКурсове[УНИКАЛНИ]),СписъкКурсове[УНИКАЛНИ],0),2),0)","v":0},{"$f":"IFERROR(INDEX(СписъкКурсове[],MATCH(SUMPRODUCT((СписъкКурсове[ДЕН]=ГрафикЗаКурса[[#Headers],[ПОНЕДЕЛНИК]])*(ROUNDDOWN($B6,10)>=ROUNDDOWN(СписъкКурсове[НАЧАЛЕН ЧАС],10))*($B6<=СписъкКурсове[КРАЕН ЧАС]),СписъкКурсове[УНИКАЛНИ]),СписъкКурсове[УНИКАЛНИ],0),2),0)","v":"MTH-113"},{"$f":"IFERROR(INDEX(СписъкКурсове[],MATCH(SUMPRODUCT((СписъкКурсове[ДЕН]=ГрафикЗаКурса[[#Headers],[ВТОРНИК]])*(ROUNDDOWN($B6,10)>=ROUNDDOWN(СписъкКурсове[НАЧАЛЕН ЧАС],10))*($B6<=СписъкКурсове[КРАЕН ЧАС]),СписъкКурсове[УНИКАЛНИ]),СписъкКурсове[УНИКАЛНИ],0),2),0)","v":0},{"$f":"IFERROR(INDEX(СписъкКурсове[],MATCH(SUMPRODUCT((СписъкКурсове[ДЕН]=ГрафикЗаКурса[[#Headers],[СРЯДА]])*(ROUNDDOWN($B6,10)>=ROUNDDOWN(СписъкКурсове[НАЧАЛЕН ЧАС],10))*($B6<=СписъкКурсове[КРАЕН ЧАС]),СписъкКурсове[УНИКАЛНИ]),СписъкКурсове[УНИКАЛНИ],0),2),0)","v":"MTH-113"},{"$f":"IFERROR(INDEX(СписъкКурсове[],MATCH(SUMPRODUCT((СписъкКурсове[ДЕН]=ГрафикЗаКурса[[#Headers],[ЧЕТВЪРТЪК]])*(ROUNDDOWN($B6,10)>=ROUNDDOWN(СписъкКурсове[НАЧАЛЕН ЧАС],10))*($B6<=СписъкКурсове[КРАЕН ЧАС]),СписъкКурсове[УНИКАЛНИ]),СписъкКурсове[УНИКАЛНИ],0),2),0)","v":0},{"$f":"IFERROR(INDEX(СписъкКурсове[],MATCH(SUMPRODUCT((СписъкКурсове[ДЕН]=ГрафикЗаКурса[[#Headers],[ПЕТЪК]])*(ROUNDDOWN($B6,10)>=ROUNDDOWN(СписъкКурсове[НАЧАЛЕН ЧАС],10))*($B6<=СписъкКурсове[КРАЕН ЧАС]),СписъкКурсове[УНИКАЛНИ]),СписъкКурсове[УНИКАЛНИ],0),2),0)","v":"MTH-113"},{"$f":"IFERROR(INDEX(СписъкКурсове[],MATCH(SUMPRODUCT((СписъкКурсове[ДЕН]=ГрафикЗаКурса[[#Headers],[СЪБОТА]])*(ROUNDDOWN($B6,10)>=ROUNDDOWN(СписъкКурсове[НАЧАЛЕН ЧАС],10))*($B6<=СписъкКурсове[КРАЕН ЧАС]),СписъкКурсове[УНИКАЛНИ]),СписъкКурсове[УНИКАЛНИ],0),2),0)","v":0}]
[null,"08:45:00",{"$f":"IFERROR(INDEX(СписъкКурсове[],MATCH(SUMPRODUCT((СписъкКурсове[ДЕН]=ГрафикЗаКурса[[#Headers],[НЕДЕЛЯ]])*(ROUNDDOWN($B7,10)>=ROUNDDOWN(СписъкКурсове[НАЧАЛЕН ЧАС],10))*($B7<=СписъкКурсове[КРАЕН ЧАС]),СписъкКурсове[УНИКАЛНИ]),СписъкКурсове[УНИКАЛНИ],0),2),0)","v":0},{"$f":"IFERROR(INDEX(СписъкКурсове[],MATCH(SUMPRODUCT((СписъкКурсове[ДЕН]=ГрафикЗаКурса[[#Headers],[ПОНЕДЕЛНИК]])*(ROUNDDOWN($B7,10)>=ROUNDDOWN(СписъкКурсове[НАЧАЛЕН ЧАС],10))*($B7<=СписъкКурсове[КРАЕН ЧАС]),СписъкКурсове[УНИКАЛНИ]),СписъкКурсове[УНИКАЛНИ],0),2),0)","v":"MTH-113"},{"$f":"IFERROR(INDEX(СписъкКурсове[],MATCH(SUMPRODUCT((СписъкКурсове[ДЕН]=ГрафикЗаКурса[[#Headers],[ВТОРНИК]])*(ROUNDDOWN($B7,10)>=ROUNDDOWN(СписъкКурсове[НАЧАЛЕН ЧАС],10))*($B7<=СписъкКурсове[КРАЕН ЧАС]),СписъкКурсове[УНИКАЛНИ]),СписъкКурсове[УНИКАЛНИ],0),2),0)","v":0},{"$f":"IFERROR(INDEX(СписъкКурсове[],MATCH(SUMPRODUCT((СписъкКурсове[ДЕН]=ГрафикЗаКурса[[#Headers],[СРЯДА]])*(ROUNDDOWN($B7,10)>=ROUNDDOWN(СписъкКурсове[НАЧАЛЕН ЧАС],10))*($B7<=СписъкКурсове[КРАЕН ЧАС]),СписъкКурсове[УНИКАЛНИ]),СписъкКурсове[УНИКАЛНИ],0),2),0)","v":"MTH-113"},{"$f":"IFERROR(INDEX(СписъкКурсове[],MATCH(SUMPRODUCT((СписъкКурсове[ДЕН]=ГрафикЗаКурса[[#Headers],[ЧЕТВЪРТЪК]])*(ROUNDDOWN($B7,10)>=ROUNDDOWN(СписъкКурсове[НАЧАЛЕН ЧАС],10))*($B7<=СписъкКурсове[КРАЕН ЧАС]),СписъкКурсове[УНИКАЛНИ]),СписъкКурсове[УНИКАЛНИ],0),2),0)","v":0},{"$f":"IFERROR(INDEX(СписъкКурсове[],MATCH(SUMPRODUCT((СписъкКурсове[ДЕН]=ГрафикЗаКурса[[#Headers],[ПЕТЪК]])*(ROUNDDOWN($B7,10)>=ROUNDDOWN(СписъкКурсове[НАЧАЛЕН ЧАС],10))*($B7<=СписъкКурсове[КРАЕН ЧАС]),СписъкКурсове[УНИКАЛНИ]),СписъкКурсове[УНИКАЛНИ],0),2),0)","v":"MTH-113"},{"$f":"IFERROR(INDEX(СписъкКурсове[],MATCH(SUMPRODUCT((СписъкКурсове[ДЕН]=ГрафикЗаКурса[[#Headers],[СЪБОТА]])*(ROUNDDOWN($B7,10)>=ROUNDDOWN(СписъкКурсове[НАЧАЛЕН ЧАС],10))*($B7<=СписъкКурсове[КРАЕН ЧАС]),СписъкКурсове[УНИКАЛНИ]),СписъкКурсове[УНИКАЛНИ],0),2),0)","v":0}]
[null,"09:00:00",{"$f":"IFERROR(INDEX(СписъкКурсове[],MATCH(SUMPRODUCT((СписъкКурсове[ДЕН]=ГрафикЗаКурса[[#Headers],[НЕДЕЛЯ]])*(ROUNDDOWN($B8,10)>=ROUNDDOWN(СписъкКурсове[НАЧАЛЕН ЧАС],10))*($B8<=СписъкКурсове[КРАЕН ЧАС]),СписъкКурсове[УНИКАЛНИ]),СписъкКурсове[УНИКАЛНИ],0),2),0)","v":0},{"$f":"IFERROR(INDEX(СписъкКурсове[],MATCH(SUMPRODUCT((СписъкКурсове[ДЕН]=ГрафикЗаКурса[[#Headers],[ПОНЕДЕЛНИК]])*(ROUNDDOWN($B8,10)>=ROUNDDOWN(СписъкКурсове[НАЧАЛЕН ЧАС],10))*($B8<=СписъкКурсове[КРАЕН ЧАС]),СписъкКурсове[УНИКАЛНИ]),СписъкКурсове[УНИКАЛНИ],0),2),0)","v":"MTH-113"},{"$f":"IFERROR(INDEX(СписъкКурсове[],MATCH(SUMPRODUCT((СписъкКурсове[ДЕН]=ГрафикЗаКурса[[#Headers],[ВТОРНИК]])*(ROUNDDOWN($B8,10)>=ROUNDDOWN(СписъкКурсове[НАЧАЛЕН ЧАС],10))*($B8<=СписъкКурсове[КРАЕН ЧАС]),СписъкКурсове[УНИКАЛНИ]),СписъкКурсове[УНИКАЛНИ],0),2),0)","v":0},{"$f":"IFERROR(INDEX(СписъкКурсове[],MATCH(SUMPRODUCT((СписъкКурсове[ДЕН]=ГрафикЗаКурса[[#Headers],[СРЯДА]])*(ROUNDDOWN($B8,10)>=ROUNDDOWN(СписъкКурсове[НАЧАЛЕН ЧАС],10))*($B8<=СписъкКурсове[КРАЕН ЧАС]),СписъкКурсове[УНИКАЛНИ]),СписъкКурсове[УНИКАЛНИ],0),2),0)","v":"MTH-113"},{"$f":"IFERROR(INDEX(СписъкКурсове[],MATCH(SUMPRODUCT((СписъкКурсове[ДЕН]=ГрафикЗаКурса[[#Headers],[ЧЕТВЪРТЪК]])*(ROUNDDOWN($B8,10)>=ROUNDDOWN(СписъкКурсове[НАЧАЛЕН ЧАС],10))*($B8<=СписъкКурсове[КРАЕН ЧАС]),СписъкКурсове[УНИКАЛНИ]),СписъкКурсове[УНИКАЛНИ],0),2),0)","v":0},{"$f":"IFERROR(INDEX(СписъкКурсове[],MATCH(SUMPRODUCT((СписъкКурсове[ДЕН]=ГрафикЗаКурса[[#Headers],[ПЕТЪК]])*(ROUNDDOWN($B8,10)>=ROUNDDOWN(СписъкКурсове[НАЧАЛЕН ЧАС],10))*($B8<=СписъкКурсове[КРАЕН ЧАС]),СписъкКурсове[УНИКАЛНИ]),СписъкКурсове[УНИКАЛНИ],0),2),0)","v":"MTH-113"},{"$f":"IFERROR(INDEX(СписъкКурсове[],MATCH(SUMPRODUCT((СписъкКурсове[ДЕН]=ГрафикЗаКурса[[#Headers],[СЪБОТА]])*(ROUNDDOWN($B8,10)>=ROUNDDOWN(СписъкКурсове[НАЧАЛЕН ЧАС],10))*($B8<=СписъкКурсове[КРАЕН ЧАС]),СписъкКурсове[УНИКАЛНИ]),СписъкКурсове[УНИКАЛНИ],0),2),0)","v":0}]
[null,"09:15:00",{"$f":"IFERROR(INDEX(СписъкКурсове[],MATCH(SUMPRODUCT((СписъкКурсове[ДЕН]=ГрафикЗаКурса[[#Headers],[НЕДЕЛЯ]])*(ROUNDDOWN($B9,10)>=ROUNDDOWN(СписъкКурсове[НАЧАЛЕН ЧАС],10))*($B9<=СписъкКурсове[КРАЕН ЧАС]),СписъкКурсове[УНИКАЛНИ]),СписъкКурсове[УНИКАЛНИ],0),2),0)","v":0},{"$f":"IFERROR(INDEX(СписъкКурсове[],MATCH(SUMPRODUCT((СписъкКурсове[ДЕН]=ГрафикЗаКурса[[#Headers],[ПОНЕДЕЛНИК]])*(ROUNDDOWN($B9,10)>=ROUNDDOWN(СписъкКурсове[НАЧАЛЕН ЧАС],10))*($B9<=СписъкКурсове[КРАЕН ЧАС]),СписъкКурсове[УНИКАЛНИ]),СписъкКурсове[УНИКАЛНИ],0),2),0)","v":"MTH-113"},{"$f":"IFERROR(INDEX(СписъкКурсове[],MATCH(SUMPRODUCT((СписъкКурсове[ДЕН]=ГрафикЗаКурса[[#Headers],[ВТОРНИК]])*(ROUNDDOWN($B9,10)>=ROUNDDOWN(СписъкКурсове[НАЧАЛЕН ЧАС],10))*($B9<=СписъкКурсове[КРАЕН ЧАС]),СписъкКурсове[УНИКАЛНИ]),СписъкКурсове[УНИКАЛНИ],0),2),0)","v":0},{"$f":"IFERROR(INDEX(СписъкКурсове[],MATCH(SUMPRODUCT((СписъкКурсове[ДЕН]=ГрафикЗаКурса[[#Headers],[СРЯДА]])*(ROUNDDOWN($B9,10)>=ROUNDDOWN(СписъкКурсове[НАЧАЛЕН ЧАС],10))*($B9<=СписъкКурсове[КРАЕН ЧАС]),СписъкКурсове[УНИКАЛНИ]),СписъкКурсове[УНИКАЛНИ],0),2),0)","v":"MTH-113"},{"$f":"IFERROR(INDEX(СписъкКурсове[],MATCH(SUMPRODUCT((СписъкКурсове[ДЕН]=ГрафикЗаКурса[[#Headers],[ЧЕТВЪРТЪК]])*(ROUNDDOWN($B9,10)>=ROUNDDOWN(СписъкКурсове[НАЧАЛЕН ЧАС],10))*($B9<=СписъкКурсове[КРАЕН ЧАС]),СписъкКурсове[УНИКАЛНИ]),СписъкКурсове[УНИКАЛНИ],0),2),0)","v":0},{"$f":"IFERROR(INDEX(СписъкКурсове[],MATCH(SUMPRODUCT((СписъкКурсове[ДЕН]=ГрафикЗаКурса[[#Headers],[ПЕТЪК]])*(ROUNDDOWN($B9,10)>=ROUNDDOWN(СписъкКурсове[НАЧАЛЕН ЧАС],10))*($B9<=СписъкКурсове[КРАЕН ЧАС]),СписъкКурсове[УНИКАЛНИ]),СписъкКурсове[УНИКАЛНИ],0),2),0)","v":"MTH-113"},{"$f":"IFERROR(INDEX(СписъкКурсове[],MATCH(SUMPRODUCT((СписъкКурсове[ДЕН]=ГрафикЗаКурса[[#Headers],[СЪБОТА]])*(ROUNDDOWN($B9,10)>=ROUNDDOWN(СписъкКурсове[НАЧАЛЕН ЧАС],10))*($B9<=СписъкКурсове[КРАЕН ЧАС]),СписъкКурсове[УНИКАЛНИ]),СписъкКурсове[УНИКАЛНИ],0),2),0)","v":0}]
[null,"09:30:00",{"$f":"IFERROR(INDEX(СписъкКурсове[],MATCH(SUMPRODUCT((СписъкКурсове[ДЕН]=ГрафикЗаКурса[[#Headers],[НЕДЕЛЯ]])*(ROUNDDOWN($B10,10)>=ROUNDDOWN(СписъкКурсове[НАЧАЛЕН ЧАС],10))*($B10<=СписъкКурсове[КРАЕН ЧАС]),СписъкКурсове[УНИКАЛНИ]),СписъкКурсове[УНИКАЛНИ],0),2),0)","v":0},{"$f":"IFERROR(INDEX(СписъкКурсове[],MATCH(SUMPRODUCT((СписъкКурсове[ДЕН]=ГрафикЗаКурса[[#Headers],[ПОНЕДЕЛНИК]])*(ROUNDDOWN($B10,10)>=ROUNDDOWN(СписъкКурсове[НАЧАЛЕН ЧАС],10))*($B10<=СписъкКурсове[КРАЕН ЧАС]),СписъкКурсове[УНИКАЛНИ]),СписъкКурсове[УНИКАЛНИ],0),2),0)","v":0},{"$f":"IFERROR(INDEX(СписъкКурсове[],MATCH(SUMPRODUCT((СписъкКурсове[ДЕН]=ГрафикЗаКурса[[#Headers],[ВТОРНИК]])*(ROUNDDOWN($B10,10)>=ROUNDDOWN(СписъкКурсове[НАЧАЛЕН ЧАС],10))*($B10<=СписъкКурсове[КРАЕН ЧАС]),СписъкКурсове[УНИКАЛНИ]),СписъкКурсове[УНИКАЛНИ],0),2),0)","v":0},{"$f":"IFERROR(INDEX(СписъкКурсове[],MATCH(SUMPRODUCT((СписъкКурсове[ДЕН]=ГрафикЗаКурса[[#Headers],[СРЯДА]])*(ROUNDDOWN($B10,10)>=ROUNDDOWN(СписъкКурсове[НАЧАЛЕН ЧАС],10))*($B10<=СписъкКурсове[КРАЕН ЧАС]),СписъкКурсове[УНИКАЛНИ]),СписъкКурсове[УНИКАЛНИ],0),2),0)","v":0},{"$f":"IFERROR(INDEX(СписъкКурсове[],MATCH(SUMPRODUCT((СписъкКурсове[ДЕН]=ГрафикЗаКурса[[#Headers],[ЧЕТВЪРТЪК]])*(ROUNDDOWN($B10,10)>=ROUNDDOWN(СписъкКурсове[НАЧАЛЕН ЧАС],10))*($B10<=СписъкКурсове[КРАЕН ЧАС]),СписъкКурсове[УНИКАЛНИ]),СписъкКурсове[УНИКАЛНИ],0),2),0)","v":0},{"$f":"IFERROR(INDEX(СписъкКурсове[],MATCH(SUMPRODUCT((СписъкКурсове[ДЕН]=ГрафикЗаКурса[[#Headers],[ПЕТЪК]])*(ROUNDDOWN($B10,10)>=ROUNDDOWN(СписъкКурсове[НАЧАЛЕН ЧАС],10))*($B10<=СписъкКурсове[КРАЕН ЧАС]),СписъкКурсове[УНИКАЛНИ]),СписъкКурсове[УНИКАЛНИ],0),2),0)","v":0},{"$f":"IFERROR(INDEX(СписъкКурсове[],MATCH(SUMPRODUCT((СписъкКурсове[ДЕН]=ГрафикЗаКурса[[#Headers],[СЪБОТА]])*(ROUNDDOWN($B10,10)>=ROUNDDOWN(СписъкКурсове[НАЧАЛЕН ЧАС],10))*($B10<=СписъкКурсове[КРАЕН ЧАС]),СписъкКурсове[УНИКАЛНИ]),СписъкКурсове[УНИКАЛНИ],0),2),0)","v":0}]
[null,"09:45:00",{"$f":"IFERROR(INDEX(СписъкКурсове[],MATCH(SUMPRODUCT((СписъкКурсове[ДЕН]=ГрафикЗаКурса[[#Headers],[НЕДЕЛЯ]])*(ROUNDDOWN($B11,10)>=ROUNDDOWN(СписъкКурсове[НАЧАЛЕН ЧАС],10))*($B11<=СписъкКурсове[КРАЕН ЧАС]),СписъкКурсове[УНИКАЛНИ]),СписъкКурсове[УНИКАЛНИ],0),2),0)","v":0},{"$f":"IFERROR(INDEX(СписъкКурсове[],MATCH(SUMPRODUCT((СписъкКурсове[ДЕН]=ГрафикЗаКурса[[#Headers],[ПОНЕДЕЛНИК]])*(ROUNDDOWN($B11,10)>=ROUNDDOWN(СписъкКурсове[НАЧАЛЕН ЧАС],10))*($B11<=СписъкКурсове[КРАЕН ЧАС]),СписъкКурсове[УНИКАЛНИ]),СписъкКурсове[УНИКАЛНИ],0),2),0)","v":0},{"$f":"IFERROR(INDEX(СписъкКурсове[],MATCH(SUMPRODUCT((СписъкКурсове[ДЕН]=ГрафикЗаКурса[[#Headers],[ВТОРНИК]])*(ROUNDDOWN($B11,10)>=ROUNDDOWN(СписъкКурсове[НАЧАЛЕН ЧАС],10))*($B11<=СписъкКурсове[КРАЕН ЧАС]),СписъкКурсове[УНИКАЛНИ]),СписъкКурсове[УНИКАЛНИ],0),2),0)","v":0},{"$f":"IFERROR(INDEX(СписъкКурсове[],MATCH(SUMPRODUCT((СписъкКурсове[ДЕН]=ГрафикЗаКурса[[#Headers],[СРЯДА]])*(ROUNDDOWN($B11,10)>=ROUNDDOWN(СписъкКурсове[НАЧАЛЕН ЧАС],10))*($B11<=СписъкКурсове[КРАЕН ЧАС]),СписъкКурсове[УНИКАЛНИ]),СписъкКурсове[УНИКАЛНИ],0),2),0)","v":0},{"$f":"IFERROR(INDEX(СписъкКурсове[],MATCH(SUMPRODUCT((СписъкКурсове[ДЕН]=ГрафикЗаКурса[[#Headers],[ЧЕТВЪРТЪК]])*(ROUNDDOWN($B11,10)>=ROUNDDOWN(СписъкКурсове[НАЧАЛЕН ЧАС],10))*($B11<=СписъкКурсове[КРАЕН ЧАС]),СписъкКурсове[УНИКАЛНИ]),СписъкКурсове[УНИКАЛНИ],0),2),0)","v":0},{"$f":"IFERROR(INDEX(СписъкКурсове[],MATCH(SUMPRODUCT((СписъкКурсове[ДЕН]=ГрафикЗаКурса[[#Headers],[ПЕТЪК]])*(ROUNDDOWN($B11,10)>=ROUNDDOWN(СписъкКурсове[НАЧАЛЕН ЧАС],10))*($B11<=СписъкКурсове[КРАЕН ЧАС]),СписъкКурсове[УНИКАЛНИ]),СписъкКурсове[УНИКАЛНИ],0),2),0)","v":0},{"$f":"IFERROR(INDEX(СписъкКурсове[],MATCH(SUMPRODUCT((СписъкКурсове[ДЕН]=ГрафикЗаКурса[[#Headers],[СЪБОТА]])*(ROUNDDOWN($B11,10)>=ROUNDDOWN(СписъкКурсове[НАЧАЛЕН ЧАС],10))*($B11<=СписъкКурсове[КРАЕН ЧАС]),СписъкКурсове[УНИКАЛНИ]),СписъкКурсове[УНИКАЛНИ],0),2),0)","v":0}]
[null,"10:00:00",{"$f":"IFERROR(INDEX(СписъкКурсове[],MATCH(SUMPRODUCT((СписъкКурсове[ДЕН]=ГрафикЗаКурса[[#Headers],[НЕДЕЛЯ]])*(ROUNDDOWN($B12,10)>=ROUNDDOWN(СписъкКурсове[НАЧАЛЕН ЧАС],10))*($B12<=СписъкКурсове[КРАЕН ЧАС]),СписъкКурсове[УНИКАЛНИ]),СписъкКурсове[УНИКАЛНИ],0),2),0)","v":0},{"$f":"IFERROR(INDEX(СписъкКурсове[],MATCH(SUMPRODUCT((СписъкКурсове[ДЕН]=ГрафикЗаКурса[[#Headers],[ПОНЕДЕЛНИК]])*(ROUNDDOWN($B12,10)>=ROUNDDOWN(СписъкКурсове[НАЧАЛЕН ЧАС],10))*($B12<=СписъкКурсове[КРАЕН ЧАС]),СписъкКурсове[УНИКАЛНИ]),СписъкКурсове[УНИКАЛНИ],0),2),0)","v":0},{"$f":"IFERROR(INDEX(СписъкКурсове[],MATCH(SUMPRODUCT((СписъкКурсове[ДЕН]=ГрафикЗаКурса[[#Headers],[ВТОРНИК]])*(ROUNDDOWN($B12,10)>=ROUNDDOWN(СписъкКурсове[НАЧАЛЕН ЧАС],10))*($B12<=СписъкКурсове[КРАЕН ЧАС]),СписъкКурсове[УНИКАЛНИ]),СписъкКурсове[УНИКАЛНИ],0),2),0)","v":0},{"$f":"IFERROR(INDEX(СписъкКурсове[],MATCH(SUMPRODUCT((СписъкКурсове[ДЕН]=ГрафикЗаКурса[[#Headers],[СРЯДА]])*(ROUNDDOWN($B12,10)>=ROUNDDOWN(СписъкКурсове[НАЧАЛЕН ЧАС],10))*($B12<=СписъкКурсове[КРАЕН ЧАС]),СписъкКурсове[УНИКАЛНИ]),СписъкКурсове[УНИКАЛНИ],0),2),0)","v":0},{"$f":"IFERROR(INDEX(СписъкКурсове[],MATCH(SUMPRODUCT((СписъкКурсове[ДЕН]=ГрафикЗаКурса[[#Headers],[ЧЕТВЪРТЪК]])*(ROUNDDOWN($B12,10)>=ROUNDDOWN(СписъкКурсове[НАЧАЛЕН ЧАС],10))*($B12<=СписъкКурсове[КРАЕН ЧАС]),СписъкКурсове[УНИКАЛНИ]),СписъкКурсове[УНИКАЛНИ],0),2),0)","v":0},{"$f":"IFERROR(INDEX(СписъкКурсове[],MATCH(SUMPRODUCT((СписъкКурсове[ДЕН]=ГрафикЗаКурса[[#Headers],[ПЕТЪК]])*(ROUNDDOWN($B12,10)>=ROUNDDOWN(СписъкКурсове[НАЧАЛЕН ЧАС],10))*($B12<=СписъкКурсове[КРАЕН ЧАС]),СписъкКурсове[УНИКАЛНИ]),СписъкКурсове[УНИКАЛНИ],0),2),0)","v":0},{"$f":"IFERROR(INDEX(СписъкКурсове[],MATCH(SUMPRODUCT((СписъкКурсове[ДЕН]=ГрафикЗаКурса[[#Headers],[СЪБОТА]])*(ROUNDDOWN($B12,10)>=ROUNDDOWN(СписъкКурсове[НАЧАЛЕН ЧАС],10))*($B12<=СписъкКурсове[КРАЕН ЧАС]),СписъкКурсове[УНИКАЛНИ]),СписъкКурсове[УНИКАЛНИ],0),2),0)","v":0}]
[null,"10:15:00",{"$f":"IFERROR(INDEX(СписъкКурсове[],MATCH(SUMPRODUCT((СписъкКурсове[ДЕН]=ГрафикЗаКурса[[#Headers],[НЕДЕЛЯ]])*(ROUNDDOWN($B13,10)>=ROUNDDOWN(СписъкКурсове[НАЧАЛЕН ЧАС],10))*($B13<=СписъкКурсове[КРАЕН ЧАС]),СписъкКурсове[УНИКАЛНИ]),СписъкКурсове[УНИКАЛНИ],0),2),0)","v":0},{"$f":"IFERROR(INDEX(СписъкКурсове[],MATCH(SUMPRODUCT((СписъкКурсове[ДЕН]=ГрафикЗаКурса[[#Headers],[ПОНЕДЕЛНИК]])*(ROUNDDOWN($B13,10)>=ROUNDDOWN(СписъкКурсове[НАЧАЛЕН ЧАС],10))*($B13<=СписъкКурсове[КРАЕН ЧАС]),СписъкКурсове[УНИКАЛНИ]),СписъкКурсове[УНИКАЛНИ],0),2),0)","v":0},{"$f":"IFERROR(INDEX(СписъкКурсове[],MATCH(SUMPRODUCT((СписъкКурсове[ДЕН]=ГрафикЗаКурса[[#Headers],[ВТОРНИК]])*(ROUNDDOWN($B13,10)>=ROUNDDOWN(СписъкКурсове[НАЧАЛЕН ЧАС],10))*($B13<=СписъкКурсове[КРАЕН ЧАС]),СписъкКурсове[УНИКАЛНИ]),СписъкКурсове[УНИКАЛНИ],0),2),0)","v":0},{"$f":"IFERROR(INDEX(СписъкКурсове[],MATCH(SUMPRODUCT((СписъкКурсове[ДЕН]=ГрафикЗаКурса[[#Headers],[СРЯДА]])*(ROUNDDOWN($B13,10)>=ROUNDDOWN(СписъкКурсове[НАЧАЛЕН ЧАС],10))*($B13<=СписъкКурсове[КРАЕН ЧАС]),СписъкКурсове[УНИКАЛНИ]),СписъкКурсове[УНИКАЛНИ],0),2),0)","v":0},{"$f":"IFERROR(INDEX(СписъкКурсове[],MATCH(SUMPRODUCT((СписъкКурсове[ДЕН]=ГрафикЗаКурса[[#Headers],[ЧЕТВЪРТЪК]])*(ROUNDDOWN($B13,10)>=ROUNDDOWN(СписъкКурсове[НАЧАЛЕН ЧАС],10))*($B13<=СписъкКурсове[КРАЕН ЧАС]),СписъкКурсове[УНИКАЛНИ]),СписъкКурсове[УНИКАЛНИ],0),2),0)","v":0},{"$f":"IFERROR(INDEX(СписъкКурсове[],MATCH(SUMPRODUCT((СписъкКурсове[ДЕН]=ГрафикЗаКурса[[#Headers],[ПЕТЪК]])*(ROUNDDOWN($B13,10)>=ROUNDDOWN(СписъкКурсове[НАЧАЛЕН ЧАС],10))*($B13<=СписъкКурсове[КРАЕН ЧАС]),СписъкКурсове[УНИКАЛНИ]),СписъкКурсове[УНИКАЛНИ],0),2),0)","v":0},{"$f":"IFERROR(INDEX(СписъкКурсове[],MATCH(SUMPRODUCT((СписъкКурсове[ДЕН]=ГрафикЗаКурса[[#Headers],[СЪБОТА]])*(ROUNDDOWN($B13,10)>=ROUNDDOWN(СписъкКурсове[НАЧАЛЕН ЧАС],10))*($B13<=СписъкКурсове[КРАЕН ЧАС]),СписъкКурсове[УНИКАЛНИ]),СписъкКурсове[УНИКАЛНИ],0),2),0)","v":0}]
[null,"10:30:00",{"$f":"IFERROR(INDEX(СписъкКурсове[],MATCH(SUMPRODUCT((СписъкКурсове[ДЕН]=ГрафикЗаКурса[[#Headers],[НЕДЕЛЯ]])*(ROUNDDOWN($B14,10)>=ROUNDDOWN(СписъкКурсове[НАЧАЛЕН ЧАС],10))*($B14<=СписъкКурсове[КРАЕН ЧАС]),СписъкКурсове[УНИКАЛНИ]),СписъкКурсове[УНИКАЛНИ],0),2),0)","v":0},{"$f":"IFERROR(INDEX(СписъкКурсове[],MATCH(SUMPRODUCT((СписъкКурсове[ДЕН]=ГрафикЗаКурса[[#Headers],[ПОНЕДЕЛНИК]])*(ROUNDDOWN($B14,10)>=ROUNDDOWN(СписъкКурсове[НАЧАЛЕН ЧАС],10))*($B14<=СписъкКурсове[КРАЕН ЧАС]),СписъкКурсове[УНИКАЛНИ]),СписъкКурсове[УНИКАЛНИ],0),2),0)","v":0},{"$f":"IFERROR(INDEX(СписъкКурсове[],MATCH(SUMPRODUCT((СписъкКурсове[ДЕН]=ГрафикЗаКурса[[#Headers],[ВТОРНИК]])*(ROUNDDOWN($B14,10)>=ROUNDDOWN(СписъкКурсове[НАЧАЛЕН ЧАС],10))*($B14<=СписъкКурсове[КРАЕН ЧАС]),СписъкКурсове[УНИКАЛНИ]),СписъкКурсове[УНИКАЛНИ],0),2),0)","v":0},{"$f":"IFERROR(INDEX(СписъкКурсове[],MATCH(SUMPRODUCT((СписъкКурсове[ДЕН]=ГрафикЗаКурса[[#Headers],[СРЯДА]])*(ROUNDDOWN($B14,10)>=ROUNDDOWN(СписъкКурсове[НАЧАЛЕН ЧАС],10))*($B14<=СписъкКурсове[КРАЕН ЧАС]),СписъкКурсове[УНИКАЛНИ]),СписъкКурсове[УНИКАЛНИ],0),2),0)","v":0},{"$f":"IFERROR(INDEX(СписъкКурсове[],MATCH(SUMPRODUCT((СписъкКурсове[ДЕН]=ГрафикЗаКурса[[#Headers],[ЧЕТВЪРТЪК]])*(ROUNDDOWN($B14,10)>=ROUNDDOWN(СписъкКурсове[НАЧАЛЕН ЧАС],10))*($B14<=СписъкКурсове[КРАЕН ЧАС]),СписъкКурсове[УНИКАЛНИ]),СписъкКурсове[УНИКАЛНИ],0),2),0)","v":0},{"$f":"IFERROR(INDEX(СписъкКурсове[],MATCH(SUMPRODUCT((СписъкКурсове[ДЕН]=ГрафикЗаКурса[[#Headers],[ПЕТЪК]])*(ROUNDDOWN($B14,10)>=ROUNDDOWN(СписъкКурсове[НАЧАЛЕН ЧАС],10))*($B14<=СписъкКурсове[КРАЕН ЧАС]),СписъкКурсове[УНИКАЛНИ]),СписъкКурсове[УНИКАЛНИ],0),2),0)","v":0},{"$f":"IFERROR(INDEX(СписъкКурсове[],MATCH(SUMPRODUCT((СписъкКурсове[ДЕН]=ГрафикЗаКурса[[#Headers],[СЪБОТА]])*(ROUNDDOWN($B14,10)>=ROUNDDOWN(СписъкКурсове[НАЧАЛЕН ЧАС],10))*($B14<=СписъкКурсове[КРАЕН ЧАС]),СписъкКурсове[УНИКАЛНИ]),СписъкКурсове[УНИКАЛНИ],0),2),0)","v":0}]
[null,"10:45:00",{"$f":"IFERROR(INDEX(СписъкКурсове[],MATCH(SUMPRODUCT((СписъкКурсове[ДЕН]=ГрафикЗаКурса[[#Headers],[НЕДЕЛЯ]])*(ROUNDDOWN($B15,10)>=ROUNDDOWN(СписъкКурсове[НАЧАЛЕН ЧАС],10))*($B15<=СписъкКурсове[КРАЕН ЧАС]),СписъкКурсове[УНИКАЛНИ]),СписъкКурсове[УНИКАЛНИ],0),2),0)","v":0},{"$f":"IFERROR(INDEX(СписъкКурсове[],MATCH(SUMPRODUCT((СписъкКурсове[ДЕН]=ГрафикЗаКурса[[#Headers],[ПОНЕДЕЛНИК]])*(ROUNDDOWN($B15,10)>=ROUNDDOWN(СписъкКурсове[НАЧАЛЕН ЧАС],10))*($B15<=СписъкКурсове[КРАЕН ЧАС]),СписъкКурсове[УНИКАЛНИ]),СписъкКурсове[УНИКАЛНИ],0),2),0)","v":0},{"$f":"IFERROR(INDEX(СписъкКурсове[],MATCH(SUMPRODUCT((СписъкКурсове[ДЕН]=ГрафикЗаКурса[[#Headers],[ВТОРНИК]])*(ROUNDDOWN($B15,10)>=ROUNDDOWN(СписъкКурсове[НАЧАЛЕН ЧАС],10))*($B15<=СписъкКурсове[КРАЕН ЧАС]),СписъкКурсове[УНИКАЛНИ]),СписъкКурсове[УНИКАЛНИ],0),2),0)","v":0},{"$f":"IFERROR(INDEX(СписъкКурсове[],MATCH(SUMPRODUCT((СписъкКурсове[ДЕН]=ГрафикЗаКурса[[#Headers],[СРЯДА]])*(ROUNDDOWN($B15,10)>=ROUNDDOWN(СписъкКурсове[НАЧАЛЕН ЧАС],10))*($B15<=СписъкКурсове[КРАЕН ЧАС]),СписъкКурсове[УНИКАЛНИ]),СписъкКурсове[УНИКАЛНИ],0),2),0)","v":0},{"$f":"IFERROR(INDEX(СписъкКурсове[],MATCH(SUMPRODUCT((СписъкКурсове[ДЕН]=ГрафикЗаКурса[[#Headers],[ЧЕТВЪРТЪК]])*(ROUNDDOWN($B15,10)>=ROUNDDOWN(СписъкКурсове[НАЧАЛЕН ЧАС],10))*($B15<=СписъкКурсове[КРАЕН ЧАС]),СписъкКурсове[УНИКАЛНИ]),СписъкКурсове[УНИКАЛНИ],0),2),0)","v":0},{"$f":"IFERROR(INDEX(СписъкКурсове[],MATCH(SUMPRODUCT((СписъкКурсове[ДЕН]=ГрафикЗаКурса[[#Headers],[ПЕТЪК]])*(ROUNDDOWN($B15,10)>=ROUNDDOWN(СписъкКурсове[НАЧАЛЕН ЧАС],10))*($B15<=СписъкКурсове[КРАЕН ЧАС]),СписъкКурсове[УНИКАЛНИ]),СписъкКурсове[УНИКАЛНИ],0),2),0)","v":0},{"$f":"IFERROR(INDEX(СписъкКурсове[],MATCH(SUMPRODUCT((СписъкКурсове[ДЕН]=ГрафикЗаКурса[[#Headers],[СЪБОТА]])*(ROUNDDOWN($B15,10)>=ROUNDDOWN(СписъкКурсове[НАЧАЛЕН ЧАС],10))*($B15<=СписъкКурсове[КРАЕН ЧАС]),СписъкКурсове[УНИКАЛНИ]),СписъкКурсове[УНИКАЛНИ],0),2),0)","v":0}]
[null,"11:00:00",{"$f":"IFERROR(INDEX(СписъкКурсове[],MATCH(SUMPRODUCT((СписъкКурсове[ДЕН]=ГрафикЗаКурса[[#Headers],[НЕДЕЛЯ]])*(ROUNDDOWN($B16,10)>=ROUNDDOWN(СписъкКурсове[НАЧАЛЕН ЧАС],10))*($B16<=СписъкКурсове[КРАЕН ЧАС]),СписъкКурсове[УНИКАЛНИ]),СписъкКурсове[УНИКАЛНИ],0),2),0)","v":0},{"$f":"IFERROR(INDEX(СписъкКурсове[],MATCH(SUMPRODUCT((СписъкКурсове[ДЕН]=ГрафикЗаКурса[[#Headers],[ПОНЕДЕЛНИК]])*(ROUNDDOWN($B16,10)>=ROUNDDOWN(СписъкКурсове[НАЧАЛЕН ЧАС],10))*($B16<=СписъкКурсове[КРАЕН ЧАС]),СписъкКурсове[УНИКАЛНИ]),СписъкКурсове[УНИКАЛНИ],0),2),0)","v":0},{"$f":"IFERROR(INDEX(СписъкКурсове[],MATCH(SUMPRODUCT((СписъкКурсове[ДЕН]=ГрафикЗаКурса[[#Headers],[ВТОРНИК]])*(ROUNDDOWN($B16,10)>=ROUNDDOWN(СписъкКурсове[НАЧАЛЕН ЧАС],10))*($B16<=СписъкКурсове[КРАЕН ЧАС]),СписъкКурсове[УНИКАЛНИ]),СписъкКурсове[УНИКАЛНИ],0),2),0)","v":"HPE-295"},{"$f":"IFERROR(INDEX(СписъкКурсове[],MATCH(SUMPRODUCT((СписъкКурсове[ДЕН]=ГрафикЗаКурса[[#Headers],[СРЯДА]])*(ROUNDDOWN($B16,10)>=ROUNDDOWN(СписъкКурсове[НАЧАЛЕН ЧАС],10))*($B16<=СписъкКурсове[КРАЕН ЧАС]),СписъкКурсове[УНИКАЛНИ]),СписъкКурсове[УНИКАЛНИ],0),2),0)","v":0},{"$f":"IFERROR(INDEX(СписъкКурсове[],MATCH(SUMPRODUCT((СписъкКурсове[ДЕН]=ГрафикЗаКурса[[#Headers],[ЧЕТВЪРТЪК]])*(ROUNDDOWN($B16,10)>=ROUNDDOWN(СписъкКурсове[НАЧАЛЕН ЧАС],10))*($B16<=СписъкКурсове[КРАЕН ЧАС]),СписъкКурсове[УНИКАЛНИ]),СписъкКурсове[УНИКАЛНИ],0),2),0)","v":"HPE-295"},{"$f":"IFERROR(INDEX(СписъкКурсове[],MATCH(SUMPRODUCT((СписъкКурсове[ДЕН]=ГрафикЗаКурса[[#Headers],[ПЕТЪК]])*(ROUNDDOWN($B16,10)>=ROUNDDOWN(СписъкКурсове[НАЧАЛЕН ЧАС],10))*($B16<=СписъкКурсове[КРАЕН ЧАС]),СписъкКурсове[УНИКАЛНИ]),СписъкКурсове[УНИКАЛНИ],0),2),0)","v":0},{"$f":"IFERROR(INDEX(СписъкКурсове[],MATCH(SUMPRODUCT((СписъкКурсове[ДЕН]=ГрафикЗаКурса[[#Headers],[СЪБОТА]])*(ROUNDDOWN($B16,10)>=ROUNDDOWN(СписъкКурсове[НАЧАЛЕН ЧАС],10))*($B16<=СписъкКурсове[КРАЕН ЧАС]),СписъкКурсове[УНИКАЛНИ]),СписъкКурсове[УНИКАЛНИ],0),2),0)","v":0}]
[null,"11:15:00",{"$f":"IFERROR(INDEX(СписъкКурсове[],MATCH(SUMPRODUCT((СписъкКурсове[ДЕН]=ГрафикЗаКурса[[#Headers],[НЕДЕЛЯ]])*(ROUNDDOWN($B17,10)>=ROUNDDOWN(СписъкКурсове[НАЧАЛЕН ЧАС],10))*($B17<=СписъкКурсове[КРАЕН ЧАС]),СписъкКурсове[УНИКАЛНИ]),СписъкКурсове[УНИКАЛНИ],0),2),0)","v":0},{"$f":"IFERROR(INDEX(СписъкКурсове[],MATCH(SUMPRODUCT((СписъкКурсове[ДЕН]=ГрафикЗаКурса[[#Headers],[ПОНЕДЕЛНИК]])*(ROUNDDOWN($B17,10)>=ROUNDDOWN(СписъкКурсове[НАЧАЛЕН ЧАС],10))*($B17<=СписъкКурсове[КРАЕН ЧАС]),СписъкКурсове[УНИКАЛНИ]),СписъкКурсове[УНИКАЛНИ],0),2),0)","v":0},{"$f":"IFERROR(INDEX(СписъкКурсове[],MATCH(SUMPRODUCT((СписъкКурсове[ДЕН]=ГрафикЗаКурса[[#Headers],[ВТОРНИК]])*(ROUNDDOWN($B17,10)>=ROUNDDOWN(СписъкКурсове[НАЧАЛЕН ЧАС],10))*($B17<=СписъкКурсове[КРАЕН ЧАС]),СписъкКурсове[УНИКАЛНИ]),СписъкКурсове[УНИКАЛНИ],0),2),0)","v":"HPE-295"},{"$f":"IFERROR(INDEX(СписъкКурсове[],MATCH(SUMPRODUCT((СписъкКурсове[ДЕН]=ГрафикЗаКурса[[#Headers],[СРЯДА]])*(ROUNDDOWN($B17,10)>=ROUNDDOWN(СписъкКурсове[НАЧАЛЕН ЧАС],10))*($B17<=СписъкКурсове[КРАЕН ЧАС]),СписъкКурсове[УНИКАЛНИ]),СписъкКурсове[УНИКАЛНИ],0),2),0)","v":0},{"$f":"IFERROR(INDEX(СписъкКурсове[],MATCH(SUMPRODUCT((СписъкКурсове[ДЕН]=ГрафикЗаКурса[[#Headers],[ЧЕТВЪРТЪК]])*(ROUNDDOWN($B17,10)>=ROUNDDOWN(СписъкКурсове[НАЧАЛЕН ЧАС],10))*($B17<=СписъкКурсове[КРАЕН ЧАС]),СписъкКурсове[УНИКАЛНИ]),СписъкКурсове[УНИКАЛНИ],0),2),0)","v":"HPE-295"},{"$f":"IFERROR(INDEX(СписъкКурсове[],MATCH(SUMPRODUCT((СписъкКурсове[ДЕН]=ГрафикЗаКурса[[#Headers],[ПЕТЪК]])*(ROUNDDOWN($B17,10)>=ROUNDDOWN(СписъкКурсове[НАЧАЛЕН ЧАС],10))*($B17<=СписъкКурсове[КРАЕН ЧАС]),СписъкКурсове[УНИКАЛНИ]),СписъкКурсове[УНИКАЛНИ],0),2),0)","v":0},{"$f":"IFERROR(INDEX(СписъкКурсове[],MATCH(SUMPRODUCT((СписъкКурсове[ДЕН]=ГрафикЗаКурса[[#Headers],[СЪБОТА]])*(ROUNDDOWN($B17,10)>=ROUNDDOWN(СписъкКурсове[НАЧАЛЕН ЧАС],10))*($B17<=СписъкКурсове[КРАЕН ЧАС]),СписъкКурсове[УНИКАЛНИ]),СписъкКурсове[УНИКАЛНИ],0),2),0)","v":0}]
[null,"11:30:00",{"$f":"IFERROR(INDEX(СписъкКурсове[],MATCH(SUMPRODUCT((СписъкКурсове[ДЕН]=ГрафикЗаКурса[[#Headers],[НЕДЕЛЯ]])*(ROUNDDOWN($B18,10)>=ROUNDDOWN(СписъкКурсове[НАЧАЛЕН ЧАС],10))*($B18<=СписъкКурсове[КРАЕН ЧАС]),СписъкКурсове[УНИКАЛНИ]),СписъкКурсове[УНИКАЛНИ],0),2),0)","v":0},{"$f":"IFERROR(INDEX(СписъкКурсове[],MATCH(SUMPRODUCT((СписъкКурсове[ДЕН]=ГрафикЗаКурса[[#Headers],[ПОНЕДЕЛНИК]])*(ROUNDDOWN($B18,10)>=ROUNDDOWN(СписъкКурсове[НАЧАЛЕН ЧАС],10))*($B18<=СписъкКурсове[КРАЕН ЧАС]),СписъкКурсове[УНИКАЛНИ]),СписъкКурсове[УНИКАЛНИ],0),2),0)","v":0},{"$f":"IFERROR(INDEX(СписъкКурсове[],MATCH(SUMPRODUCT((СписъкКурсове[ДЕН]=ГрафикЗаКурса[[#Headers],[ВТОРНИК]])*(ROUNDDOWN($B18,10)>=ROUNDDOWN(СписъкКурсове[НАЧАЛЕН ЧАС],10))*($B18<=СписъкКурсове[КРАЕН ЧАС]),СписъкКурсове[УНИКАЛНИ]),СписъкКурсове[УНИКАЛНИ],0),2),0)","v":"HPE-295"},{"$f":"IFERROR(INDEX(СписъкКурсове[],MATCH(SUMPRODUCT((СписъкКурсове[ДЕН]=ГрафикЗаКурса[[#Headers],[СРЯДА]])*(ROUNDDOWN($B18,10)>=ROUNDDOWN(СписъкКурсове[НАЧАЛЕН ЧАС],10))*($B18<=СписъкКурсове[КРАЕН ЧАС]),СписъкКурсове[УНИКАЛНИ]),СписъкКурсове[УНИКАЛНИ],0),2),0)","v":0},{"$f":"IFERROR(INDEX(СписъкКурсове[],MATCH(SUMPRODUCT((СписъкКурсове[ДЕН]=ГрафикЗаКурса[[#Headers],[ЧЕТВЪРТЪК]])*(ROUNDDOWN($B18,10)>=ROUNDDOWN(СписъкКурсове[НАЧАЛЕН ЧАС],10))*($B18<=СписъкКурсове[КРАЕН ЧАС]),СписъкКурсове[УНИКАЛНИ]),СписъкКурсове[УНИКАЛНИ],0),2),0)","v":"HPE-295"},{"$f":"IFERROR(INDEX(СписъкКурсове[],MATCH(SUMPRODUCT((СписъкКурсове[ДЕН]=ГрафикЗаКурса[[#Headers],[ПЕТЪК]])*(ROUNDDOWN($B18,10)>=ROUNDDOWN(СписъкКурсове[НАЧАЛЕН ЧАС],10))*($B18<=СписъкКурсове[КРАЕН ЧАС]),СписъкКурсове[УНИКАЛНИ]),СписъкКурсове[УНИКАЛНИ],0),2),0)","v":0},{"$f":"IFERROR(INDEX(СписъкКурсове[],MATCH(SUMPRODUCT((СписъкКурсове[ДЕН]=ГрафикЗаКурса[[#Headers],[СЪБОТА]])*(ROUNDDOWN($B18,10)>=ROUNDDOWN(СписъкКурсове[НАЧАЛЕН ЧАС],10))*($B18<=СписъкКурсове[КРАЕН ЧАС]),СписъкКурсове[УНИКАЛНИ]),СписъкКурсове[УНИКАЛНИ],0),2),0)","v":0}]
[null,"11:45:00",{"$f":"IFERROR(INDEX(СписъкКурсове[],MATCH(SUMPRODUCT((СписъкКурсове[ДЕН]=ГрафикЗаКурса[[#Headers],[НЕДЕЛЯ]])*(ROUNDDOWN($B19,10)>=ROUNDDOWN(СписъкКурсове[НАЧАЛЕН ЧАС],10))*($B19<=СписъкКурсове[КРАЕН ЧАС]),СписъкКурсове[УНИКАЛНИ]),СписъкКурсове[УНИКАЛНИ],0),2),0)","v":0},{"$f":"IFERROR(INDEX(СписъкКурсове[],MATCH(SUMPRODUCT((СписъкКурсове[ДЕН]=ГрафикЗаКурса[[#Headers],[ПОНЕДЕЛНИК]])*(ROUNDDOWN($B19,10)>=ROUNDDOWN(СписъкКурсове[НАЧАЛЕН ЧАС],10))*($B19<=СписъкКурсове[КРАЕН ЧАС]),СписъкКурсове[УНИКАЛНИ]),СписъкКурсове[УНИКАЛНИ],0),2),0)","v":0},{"$f":"IFERROR(INDEX(СписъкКурсове[],MATCH(SUMPRODUCT((СписъкКурсове[ДЕН]=ГрафикЗаКурса[[#Headers],[ВТОРНИК]])*(ROUNDDOWN($B19,10)>=ROUNDDOWN(СписъкКурсове[НАЧАЛЕН ЧАС],10))*($B19<=СписъкКурсове[КРАЕН ЧАС]),СписъкКурсове[УНИКАЛНИ]),СписъкКурсове[УНИКАЛНИ],0),2),0)","v":"HPE-295"},{"$f":"IFERROR(INDEX(СписъкКурсове[],MATCH(SUMPRODUCT((СписъкКурсове[ДЕН]=ГрафикЗаКурса[[#Headers],[СРЯДА]])*(ROUNDDOWN($B19,10)>=ROUNDDOWN(СписъкКурсове[НАЧАЛЕН ЧАС],10))*($B19<=СписъкКурсове[КРАЕН ЧАС]),СписъкКурсове[УНИКАЛНИ]),СписъкКурсове[УНИКАЛНИ],0),2),0)","v":0},{"$f":"IFERROR(INDEX(СписъкКурсове[],MATCH(SUMPRODUCT((СписъкКурсове[ДЕН]=ГрафикЗаКурса[[#Headers],[ЧЕТВЪРТЪК]])*(ROUNDDOWN($B19,10)>=ROUNDDOWN(СписъкКурсове[НАЧАЛЕН ЧАС],10))*($B19<=СписъкКурсове[КРАЕН ЧАС]),СписъкКурсове[УНИКАЛНИ]),СписъкКурсове[УНИКАЛНИ],0),2),0)","v":"HPE-295"},{"$f":"IFERROR(INDEX(СписъкКурсове[],MATCH(SUMPRODUCT((СписъкКурсове[ДЕН]=ГрафикЗаКурса[[#Headers],[ПЕТЪК]])*(ROUNDDOWN($B19,10)>=ROUNDDOWN(СписъкКурсове[НАЧАЛЕН ЧАС],10))*($B19<=СписъкКурсове[КРАЕН ЧАС]),СписъкКурсове[УНИКАЛНИ]),СписъкКурсове[УНИКАЛНИ],0),2),0)","v":0},{"$f":"IFERROR(INDEX(СписъкКурсове[],MATCH(SUMPRODUCT((СписъкКурсове[ДЕН]=ГрафикЗаКурса[[#Headers],[СЪБОТА]])*(ROUNDDOWN($B19,10)>=ROUNDDOWN(СписъкКурсове[НАЧАЛЕН ЧАС],10))*($B19<=СписъкКурсове[КРАЕН ЧАС]),СписъкКурсове[УНИКАЛНИ]),СписъкКурсове[УНИКАЛНИ],0),2),0)","v":0}]
[null,"12:00:00",{"$f":"IFERROR(INDEX(СписъкКурсове[],MATCH(SUMPRODUCT((СписъкКурсове[ДЕН]=ГрафикЗаКурса[[#Headers],[НЕДЕЛЯ]])*(ROUNDDOWN($B20,10)>=ROUNDDOWN(СписъкКурсове[НАЧАЛЕН ЧАС],10))*($B20<=СписъкКурсове[КРАЕН ЧАС]),СписъкКурсове[УНИКАЛНИ]),СписъкКурсове[УНИКАЛНИ],0),2),0)","v":0},{"$f":"IFERROR(INDEX(СписъкКурсове[],MATCH(SUMPRODUCT((СписъкКурсове[ДЕН]=ГрафикЗаКурса[[#Headers],[ПОНЕДЕЛНИК]])*(ROUNDDOWN($B20,10)>=ROUNDDOWN(СписъкКурсове[НАЧАЛЕН ЧАС],10))*($B20<=СписъкКурсове[КРАЕН ЧАС]),СписъкКурсове[УНИКАЛНИ]),СписъкКурсове[УНИКАЛНИ],0),2),0)","v":0},{"$f":"IFERROR(INDEX(СписъкКурсове[],MATCH(SUMPRODUCT((СписъкКурсове[ДЕН]=ГрафикЗаКурса[[#Headers],[ВТОРНИК]])*(ROUNDDOWN($B20,10)>=ROUNDDOWN(СписъкКурсове[НАЧАЛЕН ЧАС],10))*($B20<=СписъкКурсове[КРАЕН ЧАС]),СписъкКурсове[УНИКАЛНИ]),СписъкКурсове[УНИКАЛНИ],0),2),0)","v":"HPE-295"},{"$f":"IFERROR(INDEX(СписъкКурсове[],MATCH(SUMPRODUCT((СписъкКурсове[ДЕН]=ГрафикЗаКурса[[#Headers],[СРЯДА]])*(ROUNDDOWN($B20,10)>=ROUNDDOWN(СписъкКурсове[НАЧАЛЕН ЧАС],10))*($B20<=СписъкКурсове[КРАЕН ЧАС]),СписъкКурсове[УНИКАЛНИ]),СписъкКурсове[УНИКАЛНИ],0),2),0)","v":0},{"$f":"IFERROR(INDEX(СписъкКурсове[],MATCH(SUMPRODUCT((СписъкКурсове[ДЕН]=ГрафикЗаКурса[[#Headers],[ЧЕТВЪРТЪК]])*(ROUNDDOWN($B20,10)>=ROUNDDOWN(СписъкКурсове[НАЧАЛЕН ЧАС],10))*($B20<=СписъкКурсове[КРАЕН ЧАС]),СписъкКурсове[УНИКАЛНИ]),СписъкКурсове[УНИКАЛНИ],0),2),0)","v":"HPE-295"},{"$f":"IFERROR(INDEX(СписъкКурсове[],MATCH(SUMPRODUCT((СписъкКурсове[ДЕН]=ГрафикЗаКурса[[#Headers],[ПЕТЪК]])*(ROUNDDOWN($B20,10)>=ROUNDDOWN(СписъкКурсове[НАЧАЛЕН ЧАС],10))*($B20<=СписъкКурсове[КРАЕН ЧАС]),СписъкКурсове[УНИКАЛНИ]),СписъкКурсове[УНИКАЛНИ],0),2),0)","v":0},{"$f":"IFERROR(INDEX(СписъкКурсове[],MATCH(SUMPRODUCT((СписъкКурсове[ДЕН]=ГрафикЗаКурса[[#Headers],[СЪБОТА]])*(ROUNDDOWN($B20,10)>=ROUNDDOWN(СписъкКурсове[НАЧАЛЕН ЧАС],10))*($B20<=СписъкКурсове[КРАЕН ЧАС]),СписъкКурсове[УНИКАЛНИ]),СписъкКурсове[УНИКАЛНИ],0),2),0)","v":0}]
[null,"12:15:00",{"$f":"IFERROR(INDEX(СписъкКурсове[],MATCH(SUMPRODUCT((СписъкКурсове[ДЕН]=ГрафикЗаКурса[[#Headers],[НЕДЕЛЯ]])*(ROUNDDOWN($B21,10)>=ROUNDDOWN(СписъкКурсове[НАЧАЛЕН ЧАС],10))*($B21<=СписъкКурсове[КРАЕН ЧАС]),СписъкКурсове[УНИКАЛНИ]),СписъкКурсове[УНИКАЛНИ],0),2),0)","v":0},{"$f":"IFERROR(INDEX(СписъкКурсове[],MATCH(SUMPRODUCT((СписъкКурсове[ДЕН]=ГрафикЗаКурса[[#Headers],[ПОНЕДЕЛНИК]])*(ROUNDDOWN($B21,10)>=ROUNDDOWN(СписъкКурсове[НАЧАЛЕН ЧАС],10))*($B21<=СписъкКурсове[КРАЕН ЧАС]),СписъкКурсове[УНИКАЛНИ]),СписъкКурсове[УНИКАЛНИ],0),2),0)","v":0},{"$f":"IFERROR(INDEX(СписъкКурсове[],MATCH(SUMPRODUCT((СписъкКурсове[ДЕН]=ГрафикЗаКурса[[#Headers],[ВТОРНИК]])*(ROUNDDOWN($B21,10)>=ROUNDDOWN(СписъкКурсове[НАЧАЛЕН ЧАС],10))*($B21<=СписъкКурсове[КРАЕН ЧАС]),СписъкКурсове[УНИКАЛНИ]),СписъкКурсове[УНИКАЛНИ],0),2),0)","v":0},{"$f":"IFERROR(INDEX(СписъкКурсове[],MATCH(SUMPRODUCT((СписъкКурсове[ДЕН]=ГрафикЗаКурса[[#Headers],[СРЯДА]])*(ROUNDDOWN($B21,10)>=ROUNDDOWN(СписъкКурсове[НАЧАЛЕН ЧАС],10))*($B21<=СписъкКурсове[КРАЕН ЧАС]),СписъкКурсове[УНИКАЛНИ]),СписъкКурсове[УНИКАЛНИ],0),2),0)","v":0},{"$f":"IFERROR(INDEX(СписъкКурсове[],MATCH(SUMPRODUCT((СписъкКурсове[ДЕН]=ГрафикЗаКурса[[#Headers],[ЧЕТВЪРТЪК]])*(ROUNDDOWN($B21,10)>=ROUNDDOWN(СписъкКурсове[НАЧАЛЕН ЧАС],10))*($B21<=СписъкКурсове[КРАЕН ЧАС]),СписъкКурсове[УНИКАЛНИ]),СписъкКурсове[УНИКАЛНИ],0),2),0)","v":0},{"$f":"IFERROR(INDEX(СписъкКурсове[],MATCH(SUMPRODUCT((СписъкКурсове[ДЕН]=ГрафикЗаКурса[[#Headers],[ПЕТЪК]])*(ROUNDDOWN($B21,10)>=ROUNDDOWN(СписъкКурсове[НАЧАЛЕН ЧАС],10))*($B21<=СписъкКурсове[КРАЕН ЧАС]),СписъкКурсове[УНИКАЛНИ]),СписъкКурсове[УНИКАЛНИ],0),2),0)","v":0},{"$f":"IFERROR(INDEX(СписъкКурсове[],MATCH(SUMPRODUCT((СписъкКурсове[ДЕН]=ГрафикЗаКурса[[#Headers],[СЪБОТА]])*(ROUNDDOWN($B21,10)>=ROUNDDOWN(СписъкКурсове[НАЧАЛЕН ЧАС],10))*($B21<=СписъкКурсове[КРАЕН ЧАС]),СписъкКурсове[УНИКАЛНИ]),СписъкКурсове[УНИКАЛНИ],0),2),0)","v":0}]
[null,"12:30:00",{"$f":"IFERROR(INDEX(СписъкКурсове[],MATCH(SUMPRODUCT((СписъкКурсове[ДЕН]=ГрафикЗаКурса[[#Headers],[НЕДЕЛЯ]])*(ROUNDDOWN($B22,10)>=ROUNDDOWN(СписъкКурсове[НАЧАЛЕН ЧАС],10))*($B22<=СписъкКурсове[КРАЕН ЧАС]),СписъкКурсове[УНИКАЛНИ]),СписъкКурсове[УНИКАЛНИ],0),2),0)","v":0},{"$f":"IFERROR(INDEX(СписъкКурсове[],MATCH(SUMPRODUCT((СписъкКурсове[ДЕН]=ГрафикЗаКурса[[#Headers],[ПОНЕДЕЛНИК]])*(ROUNDDOWN($B22,10)>=ROUNDDOWN(СписъкКурсове[НАЧАЛЕН ЧАС],10))*($B22<=СписъкКурсове[КРАЕН ЧАС]),СписъкКурсове[УНИКАЛНИ]),СписъкКурсове[УНИКАЛНИ],0),2),0)","v":0},{"$f":"IFERROR(INDEX(СписъкКурсове[],MATCH(SUMPRODUCT((СписъкКурсове[ДЕН]=ГрафикЗаКурса[[#Headers],[ВТОРНИК]])*(ROUNDDOWN($B22,10)>=ROUNDDOWN(СписъкКурсове[НАЧАЛЕН ЧАС],10))*($B22<=СписъкКурсове[КРАЕН ЧАС]),СписъкКурсове[УНИКАЛНИ]),СписъкКурсове[УНИКАЛНИ],0),2),0)","v":0},{"$f":"IFERROR(INDEX(СписъкКурсове[],MATCH(SUMPRODUCT((СписъкКурсове[ДЕН]=ГрафикЗаКурса[[#Headers],[СРЯДА]])*(ROUNDDOWN($B22,10)>=ROUNDDOWN(СписъкКурсове[НАЧАЛЕН ЧАС],10))*($B22<=СписъкКурсове[КРАЕН ЧАС]),СписъкКурсове[УНИКАЛНИ]),СписъкКурсове[УНИКАЛНИ],0),2),0)","v":0},{"$f":"IFERROR(INDEX(СписъкКурсове[],MATCH(SUMPRODUCT((СписъкКурсове[ДЕН]=ГрафикЗаКурса[[#Headers],[ЧЕТВЪРТЪК]])*(ROUNDDOWN($B22,10)>=ROUNDDOWN(СписъкКурсове[НАЧАЛЕН ЧАС],10))*($B22<=СписъкКурсове[КРАЕН ЧАС]),СписъкКурсове[УНИКАЛНИ]),СписъкКурсове[УНИКАЛНИ],0),2),0)","v":0},{"$f":"IFERROR(INDEX(СписъкКурсове[],MATCH(SUMPRODUCT((СписъкКурсове[ДЕН]=ГрафикЗаКурса[[#Headers],[ПЕТЪК]])*(ROUNDDOWN($B22,10)>=ROUNDDOWN(СписъкКурсове[НАЧАЛЕН ЧАС],10))*($B22<=СписъкКурсове[КРАЕН ЧАС]),СписъкКурсове[УНИКАЛНИ]),СписъкКурсове[УНИКАЛНИ],0),2),0)","v":0},{"$f":"IFERROR(INDEX(СписъкКурсове[],MATCH(SUMPRODUCT((СписъкКурсове[ДЕН]=ГрафикЗаКурса[[#Headers],[СЪБОТА]])*(ROUNDDOWN($B22,10)>=ROUNDDOWN(СписъкКурсове[НАЧАЛЕН ЧАС],10))*($B22<=СписъкКурсове[КРАЕН ЧАС]),СписъкКурсове[УНИКАЛНИ]),СписъкКурсове[УНИКАЛНИ],0),2),0)","v":0}]
[null,"12:45:00",{"$f":"IFERROR(INDEX(СписъкКурсове[],MATCH(SUMPRODUCT((СписъкКурсове[ДЕН]=ГрафикЗаКурса[[#Headers],[НЕДЕЛЯ]])*(ROUNDDOWN($B23,10)>=ROUNDDOWN(СписъкКурсове[НАЧАЛЕН ЧАС],10))*($B23<=СписъкКурсове[КРАЕН ЧАС]),СписъкКурсове[УНИКАЛНИ]),СписъкКурсове[УНИКАЛНИ],0),2),0)","v":0},{"$f":"IFERROR(INDEX(СписъкКурсове[],MATCH(SUMPRODUCT((СписъкКурсове[ДЕН]=ГрафикЗаКурса[[#Headers],[ПОНЕДЕЛНИК]])*(ROUNDDOWN($B23,10)>=ROUNDDOWN(СписъкКурсове[НАЧАЛЕН ЧАС],10))*($B23<=СписъкКурсове[КРАЕН ЧАС]),СписъкКурсове[УНИКАЛНИ]),СписъкКурсове[УНИКАЛНИ],0),2),0)","v":0},{"$f":"IFERROR(INDEX(СписъкКурсове[],MATCH(SUMPRODUCT((СписъкКурсове[ДЕН]=ГрафикЗаКурса[[#Headers],[ВТОРНИК]])*(ROUNDDOWN($B23,10)>=ROUNDDOWN(СписъкКурсове[НАЧАЛЕН ЧАС],10))*($B23<=СписъкКурсове[КРАЕН ЧАС]),СписъкКурсове[УНИКАЛНИ]),СписъкКурсове[УНИКАЛНИ],0),2),0)","v":0},{"$f":"IFERROR(INDEX(СписъкКурсове[],MATCH(SUMPRODUCT((СписъкКурсове[ДЕН]=ГрафикЗаКурса[[#Headers],[СРЯДА]])*(ROUNDDOWN($B23,10)>=ROUNDDOWN(СписъкКурсове[НАЧАЛЕН ЧАС],10))*($B23<=СписъкКурсове[КРАЕН ЧАС]),СписъкКурсове[УНИКАЛНИ]),СписъкКурсове[УНИКАЛНИ],0),2),0)","v":0},{"$f":"IFERROR(INDEX(СписъкКурсове[],MATCH(SUMPRODUCT((СписъкКурсове[ДЕН]=ГрафикЗаКурса[[#Headers],[ЧЕТВЪРТЪК]])*(ROUNDDOWN($B23,10)>=ROUNDDOWN(СписъкКурсове[НАЧАЛЕН ЧАС],10))*($B23<=СписъкКурсове[КРАЕН ЧАС]),СписъкКурсове[УНИКАЛНИ]),СписъкКурсове[УНИКАЛНИ],0),2),0)","v":0},{"$f":"IFERROR(INDEX(СписъкКурсове[],MATCH(SUMPRODUCT((СписъкКурсове[ДЕН]=ГрафикЗаКурса[[#Headers],[ПЕТЪК]])*(ROUNDDOWN($B23,10)>=ROUNDDOWN(СписъкКурсове[НАЧАЛЕН ЧАС],10))*($B23<=СписъкКурсове[КРАЕН ЧАС]),СписъкКурсове[УНИКАЛНИ]),СписъкКурсове[УНИКАЛНИ],0),2),0)","v":0},{"$f":"IFERROR(INDEX(СписъкКурсове[],MATCH(SUMPRODUCT((СписъкКурсове[ДЕН]=ГрафикЗаКурса[[#Headers],[СЪБОТА]])*(ROUNDDOWN($B23,10)>=ROUNDDOWN(СписъкКурсове[НАЧАЛЕН ЧАС],10))*($B23<=СписъкКурсове[КРАЕН ЧАС]),СписъкКурсове[УНИКАЛНИ]),СписъкКурсове[УНИКАЛНИ],0),2),0)","v":0}]
[null,"13:00:00",{"$f":"IFERROR(INDEX(СписъкКурсове[],MATCH(SUMPRODUCT((СписъкКурсове[ДЕН]=ГрафикЗаКурса[[#Headers],[НЕДЕЛЯ]])*(ROUNDDOWN($B24,10)>=ROUNDDOWN(СписъкКурсове[НАЧАЛЕН ЧАС],10))*($B24<=СписъкКурсове[КРАЕН ЧАС]),СписъкКурсове[УНИКАЛНИ]),СписъкКурсове[УНИКАЛНИ],0),2),0)","v":0},{"$f":"IFERROR(INDEX(СписъкКурсове[],MATCH(SUMPRODUCT((СписъкКурсове[ДЕН]=ГрафикЗаКурса[[#Headers],[ПОНЕДЕЛНИК]])*(ROUNDDOWN($B24,10)>=ROUNDDOWN(СписъкКурсове[НАЧАЛЕН ЧАС],10))*($B24<=СписъкКурсове[КРАЕН ЧАС]),СписъкКурсове[УНИКАЛНИ]),СписъкКурсове[УНИКАЛНИ],0),2),0)","v":"WR-121"},{"$f":"IFERROR(INDEX(СписъкКурсове[],MATCH(SUMPRODUCT((СписъкКурсове[ДЕН]=ГрафикЗаКурса[[#Headers],[ВТОРНИК]])*(ROUNDDOWN($B24,10)>=ROUNDDOWN(СписъкКурсове[НАЧАЛЕН ЧАС],10))*($B24<=СписъкКурсове[КРАЕН ЧАС]),СписъкКурсове[УНИКАЛНИ]),СписъкКурсове[УНИКАЛНИ],0),2),0)","v":0},{"$f":"IFERROR(INDEX(СписъкКурсове[],MATCH(SUMPRODUCT((СписъкКурсове[ДЕН]=ГрафикЗаКурса[[#Headers],[СРЯДА]])*(ROUNDDOWN($B24,10)>=ROUNDDOWN(СписъкКурсове[НАЧАЛЕН ЧАС],10))*($B24<=СписъкКурсове[КРАЕН ЧАС]),СписъкКурсове[УНИКАЛНИ]),СписъкКурсове[УНИКАЛНИ],0),2),0)","v":"WR-121"},{"$f":"IFERROR(INDEX(СписъкКурсове[],MATCH(SUMPRODUCT((СписъкКурсове[ДЕН]=ГрафикЗаКурса[[#Headers],[ЧЕТВЪРТЪК]])*(ROUNDDOWN($B24,10)>=ROUNDDOWN(СписъкКурсове[НАЧАЛЕН ЧАС],10))*($B24<=СписъкКурсове[КРАЕН ЧАС]),СписъкКурсове[УНИКАЛНИ]),СписъкКурсове[УНИКАЛНИ],0),2),0)","v":0},{"$f":"IFERROR(INDEX(СписъкКурсове[],MATCH(SUMPRODUCT((СписъкКурсове[ДЕН]=ГрафикЗаКурса[[#Headers],[ПЕТЪК]])*(ROUNDDOWN($B24,10)>=ROUNDDOWN(СписъкКурсове[НАЧАЛЕН ЧАС],10))*($B24<=СписъкКурсове[КРАЕН ЧАС]),СписъкКурсове[УНИКАЛНИ]),СписъкКурсове[УНИКАЛНИ],0),2),0)","v":0},{"$f":"IFERROR(INDEX(СписъкКурсове[],MATCH(SUMPRODUCT((СписъкКурсове[ДЕН]=ГрафикЗаКурса[[#Headers],[СЪБОТА]])*(ROUNDDOWN($B24,10)>=ROUNDDOWN(СписъкКурсове[НАЧАЛЕН ЧАС],10))*($B24<=СписъкКурсове[КРАЕН ЧАС]),СписъкКурсове[УНИКАЛНИ]),СписъкКурсове[УНИКАЛНИ],0),2),0)","v":0}]
[null,"13:15:00",{"$f":"IFERROR(INDEX(СписъкКурсове[],MATCH(SUMPRODUCT((СписъкКурсове[ДЕН]=ГрафикЗаКурса[[#Headers],[НЕДЕЛЯ]])*(ROUNDDOWN($B25,10)>=ROUNDDOWN(СписъкКурсове[НАЧАЛЕН ЧАС],10))*($B25<=СписъкКурсове[КРАЕН ЧАС]),СписъкКурсове[УНИКАЛНИ]),СписъкКурсове[УНИКАЛНИ],0),2),0)","v":0},{"$f":"IFERROR(INDEX(СписъкКурсове[],MATCH(SUMPRODUCT((СписъкКурсове[ДЕН]=ГрафикЗаКурса[[#Headers],[ПОНЕДЕЛНИК]])*(ROUNDDOWN($B25,10)>=ROUNDDOWN(СписъкКурсове[НАЧАЛЕН ЧАС],10))*($B25<=СписъкКурсове[КРАЕН ЧАС]),СписъкКурсове[УНИКАЛНИ]),СписъкКурсове[УНИКАЛНИ],0),2),0)","v":"WR-121"},{"$f":"IFERROR(INDEX(СписъкКурсове[],MATCH(SUMPRODUCT((СписъкКурсове[ДЕН]=ГрафикЗаКурса[[#Headers],[ВТОРНИК]])*(ROUNDDOWN($B25,10)>=ROUNDDOWN(СписъкКурсове[НАЧАЛЕН ЧАС],10))*($B25<=СписъкКурсове[КРАЕН ЧАС]),СписъкКурсове[УНИКАЛНИ]),СписъкКурсове[УНИКАЛНИ],0),2),0)","v":0},{"$f":"IFERROR(INDEX(СписъкКурсове[],MATCH(SUMPRODUCT((СписъкКурсове[ДЕН]=ГрафикЗаКурса[[#Headers],[СРЯДА]])*(ROUNDDOWN($B25,10)>=ROUNDDOWN(СписъкКурсове[НАЧАЛЕН ЧАС],10))*($B25<=СписъкКурсове[КРАЕН ЧАС]),СписъкКурсове[УНИКАЛНИ]),СписъкКурсове[УНИКАЛНИ],0),2),0)","v":"WR-121"},{"$f":"IFERROR(INDEX(СписъкКурсове[],MATCH(SUMPRODUCT((СписъкКурсове[ДЕН]=ГрафикЗаКурса[[#Headers],[ЧЕТВЪРТЪК]])*(ROUNDDOWN($B25,10)>=ROUNDDOWN(СписъкКурсове[НАЧАЛЕН ЧАС],10))*($B25<=СписъкКурсове[КРАЕН ЧАС]),СписъкКурсове[УНИКАЛНИ]),СписъкКурсове[УНИКАЛНИ],0),2),0)","v":0},{"$f":"IFERROR(INDEX(СписъкКурсове[],MATCH(SUMPRODUCT((СписъкКурсове[ДЕН]=ГрафикЗаКурса[[#Headers],[ПЕТЪК]])*(ROUNDDOWN($B25,10)>=ROUNDDOWN(СписъкКурсове[НАЧАЛЕН ЧАС],10))*($B25<=СписъкКурсове[КРАЕН ЧАС]),СписъкКурсове[УНИКАЛНИ]),СписъкКурсове[УНИКАЛНИ],0),2),0)","v":0},{"$f":"IFERROR(INDEX(СписъкКурсове[],MATCH(SUMPRODUCT((СписъкКурсове[ДЕН]=ГрафикЗаКурса[[#Headers],[СЪБОТА]])*(ROUNDDOWN($B25,10)>=ROUNDDOWN(СписъкКурсове[НАЧАЛЕН ЧАС],10))*($B25<=СписъкКурсове[КРАЕН ЧАС]),СписъкКурсове[УНИКАЛНИ]),СписъкКурсове[УНИКАЛНИ],0),2),0)","v":0}]
[null,"13:30:00",{"$f":"IFERROR(INDEX(СписъкКурсове[],MATCH(SUMPRODUCT((СписъкКурсове[ДЕН]=ГрафикЗаКурса[[#Headers],[НЕДЕЛЯ]])*(ROUNDDOWN($B26,10)>=ROUNDDOWN(СписъкКурсове[НАЧАЛЕН ЧАС],10))*($B26<=СписъкКурсове[КРАЕН ЧАС]),СписъкКурсове[УНИКАЛНИ]),СписъкКурсове[УНИКАЛНИ],0),2),0)","v":0},{"$f":"IFERROR(INDEX(СписъкКурсове[],MATCH(SUMPRODUCT((СписъкКурсове[ДЕН]=ГрафикЗаКурса[[#Headers],[ПОНЕДЕЛНИК]])*(ROUNDDOWN($B26,10)>=ROUNDDOWN(СписъкКурсове[НАЧАЛЕН ЧАС],10))*($B26<=СписъкКурсове[КРАЕН ЧАС]),СписъкКурсове[УНИКАЛНИ]),СписъкКурсове[УНИКАЛНИ],0),2),0)","v":"WR-121"},{"$f":"IFERROR(INDEX(СписъкКурсове[],MATCH(SUMPRODUCT((СписъкКурсове[ДЕН]=ГрафикЗаКурса[[#Headers],[ВТОРНИК]])*(ROUNDDOWN($B26,10)>=ROUNDDOWN(СписъкКурсове[НАЧАЛЕН ЧАС],10))*($B26<=СписъкКурсове[КРАЕН ЧАС]),СписъкКурсове[УНИКАЛНИ]),СписъкКурсове[УНИКАЛНИ],0),2),0)","v":0},{"$f":"IFERROR(INDEX(СписъкКурсове[],MATCH(SUMPRODUCT((СписъкКурсове[ДЕН]=ГрафикЗаКурса[[#Headers],[СРЯДА]])*(ROUNDDOWN($B26,10)>=ROUNDDOWN(СписъкКурсове[НАЧАЛЕН ЧАС],10))*($B26<=СписъкКурсове[КРАЕН ЧАС]),СписъкКурсове[УНИКАЛНИ]),СписъкКурсове[УНИКАЛНИ],0),2),0)","v":"WR-121"},{"$f":"IFERROR(INDEX(СписъкКурсове[],MATCH(SUMPRODUCT((СписъкКурсове[ДЕН]=ГрафикЗаКурса[[#Headers],[ЧЕТВЪРТЪК]])*(ROUNDDOWN($B26,10)>=ROUNDDOWN(СписъкКурсове[НАЧАЛЕН ЧАС],10))*($B26<=СписъкКурсове[КРАЕН ЧАС]),СписъкКурсове[УНИКАЛНИ]),СписъкКурсове[УНИКАЛНИ],0),2),0)","v":0},{"$f":"IFERROR(INDEX(СписъкКурсове[],MATCH(SUMPRODUCT((СписъкКурсове[ДЕН]=ГрафикЗаКурса[[#Headers],[ПЕТЪК]])*(ROUNDDOWN($B26,10)>=ROUNDDOWN(СписъкКурсове[НАЧАЛЕН ЧАС],10))*($B26<=СписъкКурсове[КРАЕН ЧАС]),СписъкКурсове[УНИКАЛНИ]),СписъкКурсове[УНИКАЛНИ],0),2),0)","v":0},{"$f":"IFERROR(INDEX(СписъкКурсове[],MATCH(SUMPRODUCT((СписъкКурсове[ДЕН]=ГрафикЗаКурса[[#Headers],[СЪБОТА]])*(ROUNDDOWN($B26,10)>=ROUNDDOWN(СписъкКурсове[НАЧАЛЕН ЧАС],10))*($B26<=СписъкКурсове[КРАЕН ЧАС]),СписъкКурсове[УНИКАЛНИ]),СписъкКурсове[УНИКАЛНИ],0),2),0)","v":0}]
[null,"13:45:00",{"$f":"IFERROR(INDEX(СписъкКурсове[],MATCH(SUMPRODUCT((СписъкКурсове[ДЕН]=ГрафикЗаКурса[[#Headers],[НЕДЕЛЯ]])*(ROUNDDOWN($B27,10)>=ROUNDDOWN(СписъкКурсове[НАЧАЛЕН ЧАС],10))*($B27<=СписъкКурсове[КРАЕН ЧАС]),СписъкКурсове[УНИКАЛНИ]),СписъкКурсове[УНИКАЛНИ],0),2),0)","v":0},{"$f":"IFERROR(INDEX(СписъкКурсове[],MATCH(SUMPRODUCT((СписъкКурсове[ДЕН]=ГрафикЗаКурса[[#Headers],[ПОНЕДЕЛНИК]])*(ROUNDDOWN($B27,10)>=ROUNDDOWN(СписъкКурсове[НАЧАЛЕН ЧАС],10))*($B27<=СписъкКурсове[КРАЕН ЧАС]),СписъкКурсове[УНИКАЛНИ]),СписъкКурсове[УНИКАЛНИ],0),2),0)","v":"WR-121"},{"$f":"IFERROR(INDEX(СписъкКурсове[],MATCH(SUMPRODUCT((СписъкКурсове[ДЕН]=ГрафикЗаКурса[[#Headers],[ВТОРНИК]])*(ROUNDDOWN($B27,10)>=ROUNDDOWN(СписъкКурсове[НАЧАЛЕН ЧАС],10))*($B27<=СписъкКурсове[КРАЕН ЧАС]),СписъкКурсове[УНИКАЛНИ]),СписъкКурсове[УНИКАЛНИ],0),2),0)","v":0},{"$f":"IFERROR(INDEX(СписъкКурсове[],MATCH(SUMPRODUCT((СписъкКурсове[ДЕН]=ГрафикЗаКурса[[#Headers],[СРЯДА]])*(ROUNDDOWN($B27,10)>=ROUNDDOWN(СписъкКурсове[НАЧАЛЕН ЧАС],10))*($B27<=СписъкКурсове[КРАЕН ЧАС]),СписъкКурсове[УНИКАЛНИ]),СписъкКурсове[УНИКАЛНИ],0),2),0)","v":"WR-121"},{"$f":"IFERROR(INDEX(СписъкКурсове[],MATCH(SUMPRODUCT((СписъкКурсове[ДЕН]=ГрафикЗаКурса[[#Headers],[ЧЕТВЪРТЪК]])*(ROUNDDOWN($B27,10)>=ROUNDDOWN(СписъкКурсове[НАЧАЛЕН ЧАС],10))*($B27<=СписъкКурсове[КРАЕН ЧАС]),СписъкКурсове[УНИКАЛНИ]),СписъкКурсове[УНИКАЛНИ],0),2),0)","v":0},{"$f":"IFERROR(INDEX(СписъкКурсове[],MATCH(SUMPRODUCT((СписъкКурсове[ДЕН]=ГрафикЗаКурса[[#Headers],[ПЕТЪК]])*(ROUNDDOWN($B27,10)>=ROUNDDOWN(СписъкКурсове[НАЧАЛЕН ЧАС],10))*($B27<=СписъкКурсове[КРАЕН ЧАС]),СписъкКурсове[УНИКАЛНИ]),СписъкКурсове[УНИКАЛНИ],0),2),0)","v":0},{"$f":"IFERROR(INDEX(СписъкКурсове[],MATCH(SUMPRODUCT((СписъкКурсове[ДЕН]=ГрафикЗаКурса[[#Headers],[СЪБОТА]])*(ROUNDDOWN($B27,10)>=ROUNDDOWN(СписъкКурсове[НАЧАЛЕН ЧАС],10))*($B27<=СписъкКурсове[КРАЕН ЧАС]),СписъкКурсове[УНИКАЛНИ]),СписъкКурсове[УНИКАЛНИ],0),2),0)","v":0}]
[null,"14:00:00",{"$f":"IFERROR(INDEX(СписъкКурсове[],MATCH(SUMPRODUCT((СписъкКурсове[ДЕН]=ГрафикЗаКурса[[#Headers],[НЕДЕЛЯ]])*(ROUNDDOWN($B28,10)>=ROUNDDOWN(СписъкКурсове[НАЧАЛЕН ЧАС],10))*($B28<=СписъкКурсове[КРАЕН ЧАС]),СписъкКурсове[УНИКАЛНИ]),СписъкКурсове[УНИКАЛНИ],0),2),0)","v":0},{"$f":"IFERROR(INDEX(СписъкКурсове[],MATCH(SUMPRODUCT((СписъкКурсове[ДЕН]=ГрафикЗаКурса[[#Headers],[ПОНЕДЕЛНИК]])*(ROUNDDOWN($B28,10)>=ROUNDDOWN(СписъкКурсове[НАЧАЛЕН ЧАС],10))*($B28<=СписъкКурсове[КРАЕН ЧАС]),СписъкКурсове[УНИКАЛНИ]),СписъкКурсове[УНИКАЛНИ],0),2),0)","v":"WR-121"},{"$f":"IFERROR(INDEX(СписъкКурсове[],MATCH(SUMPRODUCT((СписъкКурсове[ДЕН]=ГрафикЗаКурса[[#Headers],[ВТОРНИК]])*(ROUNDDOWN($B28,10)>=ROUNDDOWN(СписъкКурсове[НАЧАЛЕН ЧАС],10))*($B28<=СписъкКурсове[КРАЕН ЧАС]),СписъкКурсове[УНИКАЛНИ]),СписъкКурсове[УНИКАЛНИ],0),2),0)","v":0},{"$f":"IFERROR(INDEX(СписъкКурсове[],MATCH(SUMPRODUCT((СписъкКурсове[ДЕН]=ГрафикЗаКурса[[#Headers],[СРЯДА]])*(ROUNDDOWN($B28,10)>=ROUNDDOWN(СписъкКурсове[НАЧАЛЕН ЧАС],10))*($B28<=СписъкКурсове[КРАЕН ЧАС]),СписъкКурсове[УНИКАЛНИ]),СписъкКурсове[УНИКАЛНИ],0),2),0)","v":"WR-121"},{"$f":"IFERROR(INDEX(СписъкКурсове[],MATCH(SUMPRODUCT((СписъкКурсове[ДЕН]=ГрафикЗаКурса[[#Headers],[ЧЕТВЪРТЪК]])*(ROUNDDOWN($B28,10)>=ROUNDDOWN(СписъкКурсове[НАЧАЛЕН ЧАС],10))*($B28<=СписъкКурсове[КРАЕН ЧАС]),СписъкКурсове[УНИКАЛНИ]),СписъкКурсове[УНИКАЛНИ],0),2),0)","v":0},{"$f":"IFERROR(INDEX(СписъкКурсове[],MATCH(SUMPRODUCT((СписъкКурсове[ДЕН]=ГрафикЗаКурса[[#Headers],[ПЕТЪК]])*(ROUNDDOWN($B28,10)>=ROUNDDOWN(СписъкКурсове[НАЧАЛЕН ЧАС],10))*($B28<=СписъкКурсове[КРАЕН ЧАС]),СписъкКурсове[УНИКАЛНИ]),СписъкКурсове[УНИКАЛНИ],0),2),0)","v":0},{"$f":"IFERROR(INDEX(СписъкКурсове[],MATCH(SUMPRODUCT((СписъкКурсове[ДЕН]=ГрафикЗаКурса[[#Headers],[СЪБОТА]])*(ROUNDDOWN($B28,10)>=ROUNDDOWN(СписъкКурсове[НАЧАЛЕН ЧАС],10))*($B28<=СписъкКурсове[КРАЕН ЧАС]),СписъкКурсове[УНИКАЛНИ]),СписъкКурсове[УНИКАЛНИ],0),2),0)","v":0}]
[null,"14:15:00",{"$f":"IFERROR(INDEX(СписъкКурсове[],MATCH(SUMPRODUCT((СписъкКурсове[ДЕН]=ГрафикЗаКурса[[#Headers],[НЕДЕЛЯ]])*(ROUNDDOWN($B29,10)>=ROUNDDOWN(СписъкКурсове[НАЧАЛЕН ЧАС],10))*($B29<=СписъкКурсове[КРАЕН ЧАС]),СписъкКурсове[УНИКАЛНИ]),СписъкКурсове[УНИКАЛНИ],0),2),0)","v":0},{"$f":"IFERROR(INDEX(СписъкКурсове[],MATCH(SUMPRODUCT((СписъкКурсове[ДЕН]=ГрафикЗаКурса[[#Headers],[ПОНЕДЕЛНИК]])*(ROUNDDOWN($B29,10)>=ROUNDDOWN(СписъкКурсове[НАЧАЛЕН ЧАС],10))*($B29<=СписъкКурсове[КРАЕН ЧАС]),СписъкКурсове[УНИКАЛНИ]),СписъкКурсове[УНИКАЛНИ],0),2),0)","v":0},{"$f":"IFERROR(INDEX(СписъкКурсове[],MATCH(SUMPRODUCT((СписъкКурсове[ДЕН]=ГрафикЗаКурса[[#Headers],[ВТОРНИК]])*(ROUNDDOWN($B29,10)>=ROUNDDOWN(СписъкКурсове[НАЧАЛЕН ЧАС],10))*($B29<=СписъкКурсове[КРАЕН ЧАС]),СписъкКурсове[УНИКАЛНИ]),СписъкКурсове[УНИКАЛНИ],0),2),0)","v":0},{"$f":"IFERROR(INDEX(СписъкКурсове[],MATCH(SUMPRODUCT((СписъкКурсове[ДЕН]=ГрафикЗаКурса[[#Headers],[СРЯДА]])*(ROUNDDOWN($B29,10)>=ROUNDDOWN(СписъкКурсове[НАЧАЛЕН ЧАС],10))*($B29<=СписъкКурсове[КРАЕН ЧАС]),СписъкКурсове[УНИКАЛНИ]),СписъкКурсове[УНИКАЛНИ],0),2),0)","v":0},{"$f":"IFERROR(INDEX(СписъкКурсове[],MATCH(SUMPRODUCT((СписъкКурсове[ДЕН]=ГрафикЗаКурса[[#Headers],[ЧЕТВЪРТЪК]])*(ROUNDDOWN($B29,10)>=ROUNDDOWN(СписъкКурсове[НАЧАЛЕН ЧАС],10))*($B29<=СписъкКурсове[КРАЕН ЧАС]),СписъкКурсове[УНИКАЛНИ]),СписъкКурсове[УНИКАЛНИ],0),2),0)","v":0},{"$f":"IFERROR(INDEX(СписъкКурсове[],MATCH(SUMPRODUCT((СписъкКурсове[ДЕН]=ГрафикЗаКурса[[#Headers],[ПЕТЪК]])*(ROUNDDOWN($B29,10)>=ROUNDDOWN(СписъкКурсове[НАЧАЛЕН ЧАС],10))*($B29<=СписъкКурсове[КРАЕН ЧАС]),СписъкКурсове[УНИКАЛНИ]),СписъкКурсове[УНИКАЛНИ],0),2),0)","v":0},{"$f":"IFERROR(INDEX(СписъкКурсове[],MATCH(SUMPRODUCT((СписъкКурсове[ДЕН]=ГрафикЗаКурса[[#Headers],[СЪБОТА]])*(ROUNDDOWN($B29,10)>=ROUNDDOWN(СписъкКурсове[НАЧАЛЕН ЧАС],10))*($B29<=СписъкКурсове[КРАЕН ЧАС]),СписъкКурсове[УНИКАЛНИ]),СписъкКурсове[УНИКАЛНИ],0),2),0)","v":0}]
[null,"14:30:00",{"$f":"IFERROR(INDEX(СписъкКурсове[],MATCH(SUMPRODUCT((СписъкКурсове[ДЕН]=ГрафикЗаКурса[[#Headers],[НЕДЕЛЯ]])*(ROUNDDOWN($B30,10)>=ROUNDDOWN(СписъкКурсове[НАЧАЛЕН ЧАС],10))*($B30<=СписъкКурсове[КРАЕН ЧАС]),СписъкКурсове[УНИКАЛНИ]),СписъкКурсове[УНИКАЛНИ],0),2),0)","v":0},{"$f":"IFERROR(INDEX(СписъкКурсове[],MATCH(SUMPRODUCT((СписъкКурсове[ДЕН]=ГрафикЗаКурса[[#Headers],[ПОНЕДЕЛНИК]])*(ROUNDDOWN($B30,10)>=ROUNDDOWN(СписъкКурсове[НАЧАЛЕН ЧАС],10))*($B30<=СписъкКурсове[КРАЕН ЧАС]),СписъкКурсове[УНИКАЛНИ]),СписъкКурсове[УНИКАЛНИ],0),2),0)","v":0},{"$f":"IFERROR(INDEX(СписъкКурсове[],MATCH(SUMPRODUCT((СписъкКурсове[ДЕН]=ГрафикЗаКурса[[#Headers],[ВТОРНИК]])*(ROUNDDOWN($B30,10)>=ROUNDDOWN(СписъкКурсове[НАЧАЛЕН ЧАС],10))*($B30<=СписъкКурсове[КРАЕН ЧАС]),СписъкКурсове[УНИКАЛНИ]),СписъкКурсове[УНИКАЛНИ],0),2),0)","v":0},{"$f":"IFERROR(INDEX(СписъкКурсове[],MATCH(SUMPRODUCT((СписъкКурсове[ДЕН]=ГрафикЗаКурса[[#Headers],[СРЯДА]])*(ROUNDDOWN($B30,10)>=ROUNDDOWN(СписъкКурсове[НАЧАЛЕН ЧАС],10))*($B30<=СписъкКурсове[КРАЕН ЧАС]),СписъкКурсове[УНИКАЛНИ]),СписъкКурсове[УНИКАЛНИ],0),2),0)","v":0},{"$f":"IFERROR(INDEX(СписъкКурсове[],MATCH(SUMPRODUCT((СписъкКурсове[ДЕН]=ГрафикЗаКурса[[#Headers],[ЧЕТВЪРТЪК]])*(ROUNDDOWN($B30,10)>=ROUNDDOWN(СписъкКурсове[НАЧАЛЕН ЧАС],10))*($B30<=СписъкКурсове[КРАЕН ЧАС]),СписъкКурсове[УНИКАЛНИ]),СписъкКурсове[УНИКАЛНИ],0),2),0)","v":0},{"$f":"IFERROR(INDEX(СписъкКурсове[],MATCH(SUMPRODUCT((СписъкКурсове[ДЕН]=ГрафикЗаКурса[[#Headers],[ПЕТЪК]])*(ROUNDDOWN($B30,10)>=ROUNDDOWN(СписъкКурсове[НАЧАЛЕН ЧАС],10))*($B30<=СписъкКурсове[КРАЕН ЧАС]),СписъкКурсове[УНИКАЛНИ]),СписъкКурсове[УНИКАЛНИ],0),2),0)","v":0},{"$f":"IFERROR(INDEX(СписъкКурсове[],MATCH(SUMPRODUCT((СписъкКурсове[ДЕН]=ГрафикЗаКурса[[#Headers],[СЪБОТА]])*(ROUNDDOWN($B30,10)>=ROUNDDOWN(СписъкКурсове[НАЧАЛЕН ЧАС],10))*($B30<=СписъкКурсове[КРАЕН ЧАС]),СписъкКурсове[УНИКАЛНИ]),СписъкКурсове[УНИКАЛНИ],0),2),0)","v":0}]
[null,"14:45:00",{"$f":"IFERROR(INDEX(СписъкКурсове[],MATCH(SUMPRODUCT((СписъкКурсове[ДЕН]=ГрафикЗаКурса[[#Headers],[НЕДЕЛЯ]])*(ROUNDDOWN($B31,10)>=ROUNDDOWN(СписъкКурсове[НАЧАЛЕН ЧАС],10))*($B31<=СписъкКурсове[КРАЕН ЧАС]),СписъкКурсове[УНИКАЛНИ]),СписъкКурсове[УНИКАЛНИ],0),2),0)","v":0},{"$f":"IFERROR(INDEX(СписъкКурсове[],MATCH(SUMPRODUCT((СписъкКурсове[ДЕН]=ГрафикЗаКурса[[#Headers],[ПОНЕДЕЛНИК]])*(ROUNDDOWN($B31,10)>=ROUNDDOWN(СписъкКурсове[НАЧАЛЕН ЧАС],10))*($B31<=СписъкКурсове[КРАЕН ЧАС]),СписъкКурсове[УНИКАЛНИ]),СписъкКурсове[УНИКАЛНИ],0),2),0)","v":0},{"$f":"IFERROR(INDEX(СписъкКурсове[],MATCH(SUMPRODUCT((СписъкКурсове[ДЕН]=ГрафикЗаКурса[[#Headers],[ВТОРНИК]])*(ROUNDDOWN($B31,10)>=ROUNDDOWN(СписъкКурсове[НАЧАЛЕН ЧАС],10))*($B31<=СписъкКурсове[КРАЕН ЧАС]),СписъкКурсове[УНИКАЛНИ]),СписъкКурсове[УНИКАЛНИ],0),2),0)","v":0},{"$f":"IFERROR(INDEX(СписъкКурсове[],MATCH(SUMPRODUCT((СписъкКурсове[ДЕН]=ГрафикЗаКурса[[#Headers],[СРЯДА]])*(ROUNDDOWN($B31,10)>=ROUNDDOWN(СписъкКурсове[НАЧАЛЕН ЧАС],10))*($B31<=СписъкКурсове[КРАЕН ЧАС]),СписъкКурсове[УНИКАЛНИ]),СписъкКурсове[УНИКАЛНИ],0),2),0)","v":0},{"$f":"IFERROR(INDEX(СписъкКурсове[],MATCH(SUMPRODUCT((СписъкКурсове[ДЕН]=ГрафикЗаКурса[[#Headers],[ЧЕТВЪРТЪК]])*(ROUNDDOWN($B31,10)>=ROUNDDOWN(СписъкКурсове[НАЧАЛЕН ЧАС],10))*($B31<=СписъкКурсове[КРАЕН ЧАС]),СписъкКурсове[УНИКАЛНИ]),СписъкКурсове[УНИКАЛНИ],0),2),0)","v":0},{"$f":"IFERROR(INDEX(СписъкКурсове[],MATCH(SUMPRODUCT((СписъкКурсове[ДЕН]=ГрафикЗаКурса[[#Headers],[ПЕТЪК]])*(ROUNDDOWN($B31,10)>=ROUNDDOWN(СписъкКурсове[НАЧАЛЕН ЧАС],10))*($B31<=СписъкКурсове[КРАЕН ЧАС]),СписъкКурсове[УНИКАЛНИ]),СписъкКурсове[УНИКАЛНИ],0),2),0)","v":0},{"$f":"IFERROR(INDEX(СписъкКурсове[],MATCH(SUMPRODUCT((СписъкКурсове[ДЕН]=ГрафикЗаКурса[[#Headers],[СЪБОТА]])*(ROUNDDOWN($B31,10)>=ROUNDDOWN(СписъкКурсове[НАЧАЛЕН ЧАС],10))*($B31<=СписъкКурсове[КРАЕН ЧАС]),СписъкКурсове[УНИКАЛНИ]),СписъкКурсове[УНИКАЛНИ],0),2),0)","v":0}]
[null,"15:00:00",{"$f":"IFERROR(INDEX(СписъкКурсове[],MATCH(SUMPRODUCT((СписъкКурсове[ДЕН]=ГрафикЗаКурса[[#Headers],[НЕДЕЛЯ]])*(ROUNDDOWN($B32,10)>=ROUNDDOWN(СписъкКурсове[НАЧАЛЕН ЧАС],10))*($B32<=СписъкКурсове[КРАЕН ЧАС]),СписъкКурсове[УНИКАЛНИ]),СписъкКурсове[УНИКАЛНИ],0),2),0)","v":0},{"$f":"IFERROR(INDEX(СписъкКурсове[],MATCH(SUMPRODUCT((СписъкКурсове[ДЕН]=ГрафикЗаКурса[[#Headers],[ПОНЕДЕЛНИК]])*(ROUNDDOWN($B32,10)>=ROUNDDOWN(СписъкКурсове[НАЧАЛЕН ЧАС],10))*($B32<=СписъкКурсове[КРАЕН ЧАС]),СписъкКурсове[УНИКАЛНИ]),СписъкКурсове[УНИКАЛНИ],0),2),0)","v":0},{"$f":"IFERROR(INDEX(СписъкКурсове[],MATCH(SUMPRODUCT((СписъкКурсове[ДЕН]=ГрафикЗаКурса[[#Headers],[ВТОРНИК]])*(ROUNDDOWN($B32,10)>=ROUNDDOWN(СписъкКурсове[НАЧАЛЕН ЧАС],10))*($B32<=СписъкКурсове[КРАЕН ЧАС]),СписъкКурсове[УНИКАЛНИ]),СписъкКурсове[УНИКАЛНИ],0),2),0)","v":0},{"$f":"IFERROR(INDEX(СписъкКурсове[],MATCH(SUMPRODUCT((СписъкКурсове[ДЕН]=ГрафикЗаКурса[[#Headers],[СРЯДА]])*(ROUNDDOWN($B32,10)>=ROUNDDOWN(СписъкКурсове[НАЧАЛЕН ЧАС],10))*($B32<=СписъкКурсове[КРАЕН ЧАС]),СписъкКурсове[УНИКАЛНИ]),СписъкКурсове[УНИКАЛНИ],0),2),0)","v":0},{"$f":"IFERROR(INDEX(СписъкКурсове[],MATCH(SUMPRODUCT((СписъкКурсове[ДЕН]=ГрафикЗаКурса[[#Headers],[ЧЕТВЪРТЪК]])*(ROUNDDOWN($B32,10)>=ROUNDDOWN(СписъкКурсове[НАЧАЛЕН ЧАС],10))*($B32<=СписъкКурсове[КРАЕН ЧАС]),СписъкКурсове[УНИКАЛНИ]),СписъкКурсове[УНИКАЛНИ],0),2),0)","v":0},{"$f":"IFERROR(INDEX(СписъкКурсове[],MATCH(SUMPRODUCT((СписъкКурсове[ДЕН]=ГрафикЗаКурса[[#Headers],[ПЕТЪК]])*(ROUNDDOWN($B32,10)>=ROUNDDOWN(СписъкКурсове[НАЧАЛЕН ЧАС],10))*($B32<=СписъкКурсове[КРАЕН ЧАС]),СписъкКурсове[УНИКАЛНИ]),СписъкКурсове[УНИКАЛНИ],0),2),0)","v":0},{"$f":"IFERROR(INDEX(СписъкКурсове[],MATCH(SUMPRODUCT((СписъкКурсове[ДЕН]=ГрафикЗаКурса[[#Headers],[СЪБОТА]])*(ROUNDDOWN($B32,10)>=ROUNDDOWN(СписъкКурсове[НАЧАЛЕН ЧАС],10))*($B32<=СписъкКурсове[КРАЕН ЧАС]),СписъкКурсове[УНИКАЛНИ]),СписъкКурсове[УНИКАЛНИ],0),2),0)","v":0}]
[null,"15:15:00",{"$f":"IFERROR(INDEX(СписъкКурсове[],MATCH(SUMPRODUCT((СписъкКурсове[ДЕН]=ГрафикЗаКурса[[#Headers],[НЕДЕЛЯ]])*(ROUNDDOWN($B33,10)>=ROUNDDOWN(СписъкКурсове[НАЧАЛЕН ЧАС],10))*($B33<=СписъкКурсове[КРАЕН ЧАС]),СписъкКурсове[УНИКАЛНИ]),СписъкКурсове[УНИКАЛНИ],0),2),0)","v":0},{"$f":"IFERROR(INDEX(СписъкКурсове[],MATCH(SUMPRODUCT((СписъкКурсове[ДЕН]=ГрафикЗаКурса[[#Headers],[ПОНЕДЕЛНИК]])*(ROUNDDOWN($B33,10)>=ROUNDDOWN(СписъкКурсове[НАЧАЛЕН ЧАС],10))*($B33<=СписъкКурсове[КРАЕН ЧАС]),СписъкКурсове[УНИКАЛНИ]),СписъкКурсове[УНИКАЛНИ],0),2),0)","v":0},{"$f":"IFERROR(INDEX(СписъкКурсове[],MATCH(SUMPRODUCT((СписъкКурсове[ДЕН]=ГрафикЗаКурса[[#Headers],[ВТОРНИК]])*(ROUNDDOWN($B33,10)>=ROUNDDOWN(СписъкКурсове[НАЧАЛЕН ЧАС],10))*($B33<=СписъкКурсове[КРАЕН ЧАС]),СписъкКурсове[УНИКАЛНИ]),СписъкКурсове[УНИКАЛНИ],0),2),0)","v":0},{"$f":"IFERROR(INDEX(СписъкКурсове[],MATCH(SUMPRODUCT((СписъкКурсове[ДЕН]=ГрафикЗаКурса[[#Headers],[СРЯДА]])*(ROUNDDOWN($B33,10)>=ROUNDDOWN(СписъкКурсове[НАЧАЛЕН ЧАС],10))*($B33<=СписъкКурсове[КРАЕН ЧАС]),СписъкКурсове[УНИКАЛНИ]),СписъкКурсове[УНИКАЛНИ],0),2),0)","v":0},{"$f":"IFERROR(INDEX(СписъкКурсове[],MATCH(SUMPRODUCT((СписъкКурсове[ДЕН]=ГрафикЗаКурса[[#Headers],[ЧЕТВЪРТЪК]])*(ROUNDDOWN($B33,10)>=ROUNDDOWN(СписъкКурсове[НАЧАЛЕН ЧАС],10))*($B33<=СписъкКурсове[КРАЕН ЧАС]),СписъкКурсове[УНИКАЛНИ]),СписъкКурсове[УНИКАЛНИ],0),2),0)","v":0},{"$f":"IFERROR(INDEX(СписъкКурсове[],MATCH(SUMPRODUCT((СписъкКурсове[ДЕН]=ГрафикЗаКурса[[#Headers],[ПЕТЪК]])*(ROUNDDOWN($B33,10)>=ROUNDDOWN(СписъкКурсове[НАЧАЛЕН ЧАС],10))*($B33<=СписъкКурсове[КРАЕН ЧАС]),СписъкКурсове[УНИКАЛНИ]),СписъкКурсове[УНИКАЛНИ],0),2),0)","v":0},{"$f":"IFERROR(INDEX(СписъкКурсове[],MATCH(SUMPRODUCT((СписъкКурсове[ДЕН]=ГрафикЗаКурса[[#Headers],[СЪБОТА]])*(ROUNDDOWN($B33,10)>=ROUNDDOWN(СписъкКурсове[НАЧАЛЕН ЧАС],10))*($B33<=СписъкКурсове[КРАЕН ЧАС]),СписъкКурсове[УНИКАЛНИ]),СписъкКурсове[УНИКАЛНИ],0),2),0)","v":0}]
[null,"15:30:00",{"$f":"IFERROR(INDEX(СписъкКурсове[],MATCH(SUMPRODUCT((СписъкКурсове[ДЕН]=ГрафикЗаКурса[[#Headers],[НЕДЕЛЯ]])*(ROUNDDOWN($B34,10)>=ROUNDDOWN(СписъкКурсове[НАЧАЛЕН ЧАС],10))*($B34<=СписъкКурсове[КРАЕН ЧАС]),СписъкКурсове[УНИКАЛНИ]),СписъкКурсове[УНИКАЛНИ],0),2),0)","v":0},{"$f":"IFERROR(INDEX(СписъкКурсове[],MATCH(SUMPRODUCT((СписъкКурсове[ДЕН]=ГрафикЗаКурса[[#Headers],[ПОНЕДЕЛНИК]])*(ROUNDDOWN($B34,10)>=ROUNDDOWN(СписъкКурсове[НАЧАЛЕН ЧАС],10))*($B34<=СписъкКурсове[КРАЕН ЧАС]),СписъкКурсове[УНИКАЛНИ]),СписъкКурсове[УНИКАЛНИ],0),2),0)","v":0},{"$f":"IFERROR(INDEX(СписъкКурсове[],MATCH(SUMPRODUCT((СписъкКурсове[ДЕН]=ГрафикЗаКурса[[#Headers],[ВТОРНИК]])*(ROUNDDOWN($B34,10)>=ROUNDDOWN(СписъкКурсове[НАЧАЛЕН ЧАС],10))*($B34<=СписъкКурсове[КРАЕН ЧАС]),СписъкКурсове[УНИКАЛНИ]),СписъкКурсове[УНИКАЛНИ],0),2),0)","v":0},{"$f":"IFERROR(INDEX(СписъкКурсове[],MATCH(SUMPRODUCT((СписъкКурсове[ДЕН]=ГрафикЗаКурса[[#Headers],[СРЯДА]])*(ROUNDDOWN($B34,10)>=ROUNDDOWN(СписъкКурсове[НАЧАЛЕН ЧАС],10))*($B34<=СписъкКурсове[КРАЕН ЧАС]),СписъкКурсове[УНИКАЛНИ]),СписъкКурсове[УНИКАЛНИ],0),2),0)","v":0},{"$f":"IFERROR(INDEX(СписъкКурсове[],MATCH(SUMPRODUCT((СписъкКурсове[ДЕН]=ГрафикЗаКурса[[#Headers],[ЧЕТВЪРТЪК]])*(ROUNDDOWN($B34,10)>=ROUNDDOWN(СписъкКурсове[НАЧАЛЕН ЧАС],10))*($B34<=СписъкКурсове[КРАЕН ЧАС]),СписъкКурсове[УНИКАЛНИ]),СписъкКурсове[УНИКАЛНИ],0),2),0)","v":0},{"$f":"IFERROR(INDEX(СписъкКурсове[],MATCH(SUMPRODUCT((СписъкКурсове[ДЕН]=ГрафикЗаКурса[[#Headers],[ПЕТЪК]])*(ROUNDDOWN($B34,10)>=ROUNDDOWN(СписъкКурсове[НАЧАЛЕН ЧАС],10))*($B34<=СписъкКурсове[КРАЕН ЧАС]),СписъкКурсове[УНИКАЛНИ]),СписъкКурсове[УНИКАЛНИ],0),2),0)","v":0},{"$f":"IFERROR(INDEX(СписъкКурсове[],MATCH(SUMPRODUCT((СписъкКурсове[ДЕН]=ГрафикЗаКурса[[#Headers],[СЪБОТА]])*(ROUNDDOWN($B34,10)>=ROUNDDOWN(СписъкКурсове[НАЧАЛЕН ЧАС],10))*($B34<=СписъкКурсове[КРАЕН ЧАС]),СписъкКурсове[УНИКАЛНИ]),СписъкКурсове[УНИКАЛНИ],0),2),0)","v":0}]
[null,"15:45:00",{"$f":"IFERROR(INDEX(СписъкКурсове[],MATCH(SUMPRODUCT((СписъкКурсове[ДЕН]=ГрафикЗаКурса[[#Headers],[НЕДЕЛЯ]])*(ROUNDDOWN($B35,10)>=ROUNDDOWN(СписъкКурсове[НАЧАЛЕН ЧАС],10))*($B35<=СписъкКурсове[КРАЕН ЧАС]),СписъкКурсове[УНИКАЛНИ]),СписъкКурсове[УНИКАЛНИ],0),2),0)","v":0},{"$f":"IFERROR(INDEX(СписъкКурсове[],MATCH(SUMPRODUCT((СписъкКурсове[ДЕН]=ГрафикЗаКурса[[#Headers],[ПОНЕДЕЛНИК]])*(ROUNDDOWN($B35,10)>=ROUNDDOWN(СписъкКурсове[НАЧАЛЕН ЧАС],10))*($B35<=СписъкКурсове[КРАЕН ЧАС]),СписъкКурсове[УНИКАЛНИ]),СписъкКурсове[УНИКАЛНИ],0),2),0)","v":0},{"$f":"IFERROR(INDEX(СписъкКурсове[],MATCH(SUMPRODUCT((СписъкКурсове[ДЕН]=ГрафикЗаКурса[[#Headers],[ВТОРНИК]])*(ROUNDDOWN($B35,10)>=ROUNDDOWN(СписъкКурсове[НАЧАЛЕН ЧАС],10))*($B35<=СписъкКурсове[КРАЕН ЧАС]),СписъкКурсове[УНИКАЛНИ]),СписъкКурсове[УНИКАЛНИ],0),2),0)","v":0},{"$f":"IFERROR(INDEX(СписъкКурсове[],MATCH(SUMPRODUCT((СписъкКурсове[ДЕН]=ГрафикЗаКурса[[#Headers],[СРЯДА]])*(ROUNDDOWN($B35,10)>=ROUNDDOWN(СписъкКурсове[НАЧАЛЕН ЧАС],10))*($B35<=СписъкКурсове[КРАЕН ЧАС]),СписъкКурсове[УНИКАЛНИ]),СписъкКурсове[УНИКАЛНИ],0),2),0)","v":0},{"$f":"IFERROR(INDEX(СписъкКурсове[],MATCH(SUMPRODUCT((СписъкКурсове[ДЕН]=ГрафикЗаКурса[[#Headers],[ЧЕТВЪРТЪК]])*(ROUNDDOWN($B35,10)>=ROUNDDOWN(СписъкКурсове[НАЧАЛЕН ЧАС],10))*($B35<=СписъкКурсове[КРАЕН ЧАС]),СписъкКурсове[УНИКАЛНИ]),СписъкКурсове[УНИКАЛНИ],0),2),0)","v":0},{"$f":"IFERROR(INDEX(СписъкКурсове[],MATCH(SUMPRODUCT((СписъкКурсове[ДЕН]=ГрафикЗаКурса[[#Headers],[ПЕТЪК]])*(ROUNDDOWN($B35,10)>=ROUNDDOWN(СписъкКурсове[НАЧАЛЕН ЧАС],10))*($B35<=СписъкКурсове[КРАЕН ЧАС]),СписъкКурсове[УНИКАЛНИ]),СписъкКурсове[УНИКАЛНИ],0),2),0)","v":0},{"$f":"IFERROR(INDEX(СписъкКурсове[],MATCH(SUMPRODUCT((СписъкКурсове[ДЕН]=ГрафикЗаКурса[[#Headers],[СЪБОТА]])*(ROUNDDOWN($B35,10)>=ROUNDDOWN(СписъкКурсове[НАЧАЛЕН ЧАС],10))*($B35<=СписъкКурсове[КРАЕН ЧАС]),СписъкКурсове[УНИКАЛНИ]),СписъкКурсове[УНИКАЛНИ],0),2),0)","v":0}]
[null,"16:00:00",{"$f":"IFERROR(INDEX(СписъкКурсове[],MATCH(SUMPRODUCT((СписъкКурсове[ДЕН]=ГрафикЗаКурса[[#Headers],[НЕДЕЛЯ]])*(ROUNDDOWN($B36,10)>=ROUNDDOWN(СписъкКурсове[НАЧАЛЕН ЧАС],10))*($B36<=СписъкКурсове[КРАЕН ЧАС]),СписъкКурсове[УНИКАЛНИ]),СписъкКурсове[УНИКАЛНИ],0),2),0)","v":0},{"$f":"IFERROR(INDEX(СписъкКурсове[],MATCH(SUMPRODUCT((СписъкКурсове[ДЕН]=ГрафикЗаКурса[[#Headers],[ПОНЕДЕЛНИК]])*(ROUNDDOWN($B36,10)>=ROUNDDOWN(СписъкКурсове[НАЧАЛЕН ЧАС],10))*($B36<=СписъкКурсове[КРАЕН ЧАС]),СписъкКурсове[УНИКАЛНИ]),СписъкКурсове[УНИКАЛНИ],0),2),0)","v":"SP-111"},{"$f":"IFERROR(INDEX(СписъкКурсове[],MATCH(SUMPRODUCT((СписъкКурсове[ДЕН]=ГрафикЗаКурса[[#Headers],[ВТОРНИК]])*(ROUNDDOWN($B36,10)>=ROUNDDOWN(СписъкКурсове[НАЧАЛЕН ЧАС],10))*($B36<=СписъкКурсове[КРАЕН ЧАС]),СписъкКурсове[УНИКАЛНИ]),СписъкКурсове[УНИКАЛНИ],0),2),0)","v":0},{"$f":"IFERROR(INDEX(СписъкКурсове[],MATCH(SUMPRODUCT((СписъкКурсове[ДЕН]=ГрафикЗаКурса[[#Headers],[СРЯДА]])*(ROUNDDOWN($B36,10)>=ROUNDDOWN(СписъкКурсове[НАЧАЛЕН ЧАС],10))*($B36<=СписъкКурсове[КРАЕН ЧАС]),СписъкКурсове[УНИКАЛНИ]),СписъкКурсове[УНИКАЛНИ],0),2),0)","v":0},{"$f":"IFERROR(INDEX(СписъкКурсове[],MATCH(SUMPRODUCT((СписъкКурсове[ДЕН]=ГрафикЗаКурса[[#Headers],[ЧЕТВЪРТЪК]])*(ROUNDDOWN($B36,10)>=ROUNDDOWN(СписъкКурсове[НАЧАЛЕН ЧАС],10))*($B36<=СписъкКурсове[КРАЕН ЧАС]),СписъкКурсове[УНИКАЛНИ]),СписъкКурсове[УНИКАЛНИ],0),2),0)","v":0},{"$f":"IFERROR(INDEX(СписъкКурсове[],MATCH(SUMPRODUCT((СписъкКурсове[ДЕН]=ГрафикЗаКурса[[#Headers],[ПЕТЪК]])*(ROUNDDOWN($B36,10)>=ROUNDDOWN(СписъкКурсове[НАЧАЛЕН ЧАС],10))*($B36<=СписъкКурсове[КРАЕН ЧАС]),СписъкКурсове[УНИКАЛНИ]),СписъкКурсове[УНИКАЛНИ],0),2),0)","v":0},{"$f":"IFERROR(INDEX(СписъкКурсове[],MATCH(SUMPRODUCT((СписъкКурсове[ДЕН]=ГрафикЗаКурса[[#Headers],[СЪБОТА]])*(ROUNDDOWN($B36,10)>=ROUNDDOWN(СписъкКурсове[НАЧАЛЕН ЧАС],10))*($B36<=СписъкКурсове[КРАЕН ЧАС]),СписъкКурсове[УНИКАЛНИ]),СписъкКурсове[УНИКАЛНИ],0),2),0)","v":0}]
[null,{"$f":"B36+Стъпка","v":"16:15:00"},{"$f":"IFERROR(INDEX(СписъкКурсове[],MATCH(SUMPRODUCT((СписъкКурсове[ДЕН]=ГрафикЗаКурса[[#Headers],[НЕДЕЛЯ]])*(ROUNDDOWN($B37,10)>=ROUNDDOWN(СписъкКурсове[НАЧАЛЕН ЧАС],10))*($B37<=СписъкКурсове[КРАЕН ЧАС]),СписъкКурсове[УНИКАЛНИ]),СписъкКурсове[УНИКАЛНИ],0),2),0)","v":0},{"$f":"IFERROR(INDEX(СписъкКурсове[],MATCH(SUMPRODUCT((СписъкКурсове[ДЕН]=ГрафикЗаКурса[[#Headers],[ПОНЕДЕЛНИК]])*(ROUNDDOWN($B37,10)>=ROUNDDOWN(СписъкКурсове[НАЧАЛЕН ЧАС],10))*($B37<=СписъкКурсове[КРАЕН ЧАС]),СписъкКурсове[УНИКАЛНИ]),СписъкКурсове[УНИКАЛНИ],0),2),0)","v":"SP-111"},{"$f":"IFERROR(INDEX(СписъкКурсове[],MATCH(SUMPRODUCT((СписъкКурсове[ДЕН]=ГрафикЗаКурса[[#Headers],[ВТОРНИК]])*(ROUNDDOWN($B37,10)>=ROUNDDOWN(СписъкКурсове[НАЧАЛЕН ЧАС],10))*($B37<=СписъкКурсове[КРАЕН ЧАС]),СписъкКурсове[УНИКАЛНИ]),СписъкКурсове[УНИКАЛНИ],0),2),0)","v":0},{"$f":"IFERROR(INDEX(СписъкКурсове[],MATCH(SUMPRODUCT((СписъкКурсове[ДЕН]=ГрафикЗаКурса[[#Headers],[СРЯДА]])*(ROUNDDOWN($B37,10)>=ROUNDDOWN(СписъкКурсове[НАЧАЛЕН ЧАС],10))*($B37<=СписъкКурсове[КРАЕН ЧАС]),СписъкКурсове[УНИКАЛНИ]),СписъкКурсове[УНИКАЛНИ],0),2),0)","v":0},{"$f":"IFERROR(INDEX(СписъкКурсове[],MATCH(SUMPRODUCT((СписъкКурсове[ДЕН]=ГрафикЗаКурса[[#Headers],[ЧЕТВЪРТЪК]])*(ROUNDDOWN($B37,10)>=ROUNDDOWN(СписъкКурсове[НАЧАЛЕН ЧАС],10))*($B37<=СписъкКурсове[КРАЕН ЧАС]),СписъкКурсове[УНИКАЛНИ]),СписъкКурсове[УНИКАЛНИ],0),2),0)","v":0},{"$f":"IFERROR(INDEX(СписъкКурсове[],MATCH(SUMPRODUCT((СписъкКурсове[ДЕН]=ГрафикЗаКурса[[#Headers],[ПЕТЪК]])*(ROUNDDOWN($B37,10)>=ROUNDDOWN(СписъкКурсове[НАЧАЛЕН ЧАС],10))*($B37<=СписъкКурсове[КРАЕН ЧАС]),СписъкКурсове[УНИКАЛНИ]),СписъкКурсове[УНИКАЛНИ],0),2),0)","v":0},{"$f":"IFERROR(INDEX(СписъкКурсове[],MATCH(SUMPRODUCT((СписъкКурсове[ДЕН]=ГрафикЗаКурса[[#Headers],[СЪБОТА]])*(ROUNDDOWN($B37,10)>=ROUNDDOWN(СписъкКурсове[НАЧАЛЕН ЧАС],10))*($B37<=СписъкКурсове[КРАЕН ЧАС]),СписъкКурсове[УНИКАЛНИ]),СписъкКурсове[УНИКАЛНИ],0),2),0)","v":0}]
[null,"16:30:00",{"$f":"IFERROR(INDEX(СписъкКурсове[],MATCH(SUMPRODUCT((СписъкКурсове[ДЕН]=ГрафикЗаКурса[[#Headers],[НЕДЕЛЯ]])*(ROUNDDOWN($B38,10)>=ROUNDDOWN(СписъкКурсове[НАЧАЛЕН ЧАС],10))*($B38<=СписъкКурсове[КРАЕН ЧАС]),СписъкКурсове[УНИКАЛНИ]),СписъкКурсове[УНИКАЛНИ],0),2),0)","v":0},{"$f":"IFERROR(INDEX(СписъкКурсове[],MATCH(SUMPRODUCT((СписъкКурсове[ДЕН]=ГрафикЗаКурса[[#Headers],[ПОНЕДЕЛНИК]])*(ROUNDDOWN($B38,10)>=ROUNDDOWN(СписъкКурсове[НАЧАЛЕН ЧАС],10))*($B38<=СписъкКурсове[КРАЕН ЧАС]),СписъкКурсове[УНИКАЛНИ]),СписъкКурсове[УНИКАЛНИ],0),2),0)","v":"SP-111"},{"$f":"IFERROR(INDEX(СписъкКурсове[],MATCH(SUMPRODUCT((СписъкКурсове[ДЕН]=ГрафикЗаКурса[[#Headers],[ВТОРНИК]])*(ROUNDDOWN($B38,10)>=ROUNDDOWN(СписъкКурсове[НАЧАЛЕН ЧАС],10))*($B38<=СписъкКурсове[КРАЕН ЧАС]),СписъкКурсове[УНИКАЛНИ]),СписъкКурсове[УНИКАЛНИ],0),2),0)","v":0},{"$f":"IFERROR(INDEX(СписъкКурсове[],MATCH(SUMPRODUCT((СписъкКурсове[ДЕН]=ГрафикЗаКурса[[#Headers],[СРЯДА]])*(ROUNDDOWN($B38,10)>=ROUNDDOWN(СписъкКурсове[НАЧАЛЕН ЧАС],10))*($B38<=СписъкКурсове[КРАЕН ЧАС]),СписъкКурсове[УНИКАЛНИ]),СписъкКурсове[УНИКАЛНИ],0),2),0)","v":0},{"$f":"IFERROR(INDEX(СписъкКурсове[],MATCH(SUMPRODUCT((СписъкКурсове[ДЕН]=ГрафикЗаКурса[[#Headers],[ЧЕТВЪРТЪК]])*(ROUNDDOWN($B38,10)>=ROUNDDOWN(СписъкКурсове[НАЧАЛЕН ЧАС],10))*($B38<=СписъкКурсове[КРАЕН ЧАС]),СписъкКурсове[УНИКАЛНИ]),СписъкКурсове[УНИКАЛНИ],0),2),0)","v":0},{"$f":"IFERROR(INDEX(СписъкКурсове[],MATCH(SUMPRODUCT((СписъкКурсове[ДЕН]=ГрафикЗаКурса[[#Headers],[ПЕТЪК]])*(ROUNDDOWN($B38,10)>=ROUNDDOWN(СписъкКурсове[НАЧАЛЕН ЧАС],10))*($B38<=СписъкКурсове[КРАЕН ЧАС]),СписъкКурсове[УНИКАЛНИ]),СписъкКурсове[УНИКАЛНИ],0),2),0)","v":0},{"$f":"IFERROR(INDEX(СписъкКурсове[],MATCH(SUMPRODUCT((СписъкКурсове[ДЕН]=ГрафикЗаКурса[[#Headers],[СЪБОТА]])*(ROUNDDOWN($B38,10)>=ROUNDDOWN(СписъкКурсове[НАЧАЛЕН ЧАС],10))*($B38<=СписъкКурсове[КРАЕН ЧАС]),СписъкКурсове[УНИКАЛНИ]),СписъкКурсове[УНИКАЛНИ],0),2),0)","v":0}]
[null,"16:45:00",{"$f":"IFERROR(INDEX(СписъкКурсове[],MATCH(SUMPRODUCT((СписъкКурсове[ДЕН]=ГрафикЗаКурса[[#Headers],[НЕДЕЛЯ]])*(ROUNDDOWN($B39,10)>=ROUNDDOWN(СписъкКурсове[НАЧАЛЕН ЧАС],10))*($B39<=СписъкКурсове[КРАЕН ЧАС]),СписъкКурсове[УНИКАЛНИ]),СписъкКурсове[УНИКАЛНИ],0),2),0)","v":0},{"$f":"IFERROR(INDEX(СписъкКурсове[],MATCH(SUMPRODUCT((СписъкКурсове[ДЕН]=ГрафикЗаКурса[[#Headers],[ПОНЕДЕЛНИК]])*(ROUNDDOWN($B39,10)>=ROUNDDOWN(СписъкКурсове[НАЧАЛЕН ЧАС],10))*($B39<=СписъкКурсове[КРАЕН ЧАС]),СписъкКурсове[УНИКАЛНИ]),СписъкКурсове[УНИКАЛНИ],0),2),0)","v":"SP-111"},{"$f":"IFERROR(INDEX(СписъкКурсове[],MATCH(SUMPRODUCT((СписъкКурсове[ДЕН]=ГрафикЗаКурса[[#Headers],[ВТОРНИК]])*(ROUNDDOWN($B39,10)>=ROUNDDOWN(СписъкКурсове[НАЧАЛЕН ЧАС],10))*($B39<=СписъкКурсове[КРАЕН ЧАС]),СписъкКурсове[УНИКАЛНИ]),СписъкКурсове[УНИКАЛНИ],0),2),0)","v":0},{"$f":"IFERROR(INDEX(СписъкКурсове[],MATCH(SUMPRODUCT((СписъкКурсове[ДЕН]=ГрафикЗаКурса[[#Headers],[СРЯДА]])*(ROUNDDOWN($B39,10)>=ROUNDDOWN(СписъкКурсове[НАЧАЛЕН ЧАС],10))*($B39<=СписъкКурсове[КРАЕН ЧАС]),СписъкКурсове[УНИКАЛНИ]),СписъкКурсове[УНИКАЛНИ],0),2),0)","v":0},{"$f":"IFERROR(INDEX(СписъкКурсове[],MATCH(SUMPRODUCT((СписъкКурсове[ДЕН]=ГрафикЗаКурса[[#Headers],[ЧЕТВЪРТЪК]])*(ROUNDDOWN($B39,10)>=ROUNDDOWN(СписъкКурсове[НАЧАЛЕН ЧАС],10))*($B39<=СписъкКурсове[КРАЕН ЧАС]),СписъкКурсове[УНИКАЛНИ]),СписъкКурсове[УНИКАЛНИ],0),2),0)","v":0},{"$f":"IFERROR(INDEX(СписъкКурсове[],MATCH(SUMPRODUCT((СписъкКурсове[ДЕН]=ГрафикЗаКурса[[#Headers],[ПЕТЪК]])*(ROUNDDOWN($B39,10)>=ROUNDDOWN(СписъкКурсове[НАЧАЛЕН ЧАС],10))*($B39<=СписъкКурсове[КРАЕН ЧАС]),СписъкКурсове[УНИКАЛНИ]),СписъкКурсове[УНИКАЛНИ],0),2),0)","v":0},{"$f":"IFERROR(INDEX(СписъкКурсове[],MATCH(SUMPRODUCT((СписъкКурсове[ДЕН]=ГрафикЗаКурса[[#Headers],[СЪБОТА]])*(ROUNDDOWN($B39,10)>=ROUNDDOWN(СписъкКурсове[НАЧАЛЕН ЧАС],10))*($B39<=СписъкКурсове[КРАЕН ЧАС]),СписъкКурсове[УНИКАЛНИ]),СписъкКурсове[УНИКАЛНИ],0),2),0)","v":0}]
[null,"17:00:00",{"$f":"IFERROR(INDEX(СписъкКурсове[],MATCH(SUMPRODUCT((СписъкКурсове[ДЕН]=ГрафикЗаКурса[[#Headers],[НЕДЕЛЯ]])*(ROUNDDOWN($B40,10)>=ROUNDDOWN(СписъкКурсове[НАЧАЛЕН ЧАС],10))*($B40<=СписъкКурсове[КРАЕН ЧАС]),СписъкКурсове[УНИКАЛНИ]),СписъкКурсове[УНИКАЛНИ],0),2),0)","v":0},{"$f":"IFERROR(INDEX(СписъкКурсове[],MATCH(SUMPRODUCT((СписъкКурсове[ДЕН]=ГрафикЗаКурса[[#Headers],[ПОНЕДЕЛНИК]])*(ROUNDDOWN($B40,10)>=ROUNDDOWN(СписъкКурсове[НАЧАЛЕН ЧАС],10))*($B40<=СписъкКурсове[КРАЕН ЧАС]),СписъкКурсове[УНИКАЛНИ]),СписъкКурсове[УНИКАЛНИ],0),2),0)","v":"SP-111"},{"$f":"IFERROR(INDEX(СписъкКурсове[],MATCH(SUMPRODUCT((СписъкКурсове[ДЕН]=ГрафикЗаКурса[[#Headers],[ВТОРНИК]])*(ROUNDDOWN($B40,10)>=ROUNDDOWN(СписъкКурсове[НАЧАЛЕН ЧАС],10))*($B40<=СписъкКурсове[КРАЕН ЧАС]),СписъкКурсове[УНИКАЛНИ]),СписъкКурсове[УНИКАЛНИ],0),2),0)","v":0},{"$f":"IFERROR(INDEX(СписъкКурсове[],MATCH(SUMPRODUCT((СписъкКурсове[ДЕН]=ГрафикЗаКурса[[#Headers],[СРЯДА]])*(ROUNDDOWN($B40,10)>=ROUNDDOWN(СписъкКурсове[НАЧАЛЕН ЧАС],10))*($B40<=СписъкКурсове[КРАЕН ЧАС]),СписъкКурсове[УНИКАЛНИ]),СписъкКурсове[УНИКАЛНИ],0),2),0)","v":0},{"$f":"IFERROR(INDEX(СписъкКурсове[],MATCH(SUMPRODUCT((СписъкКурсове[ДЕН]=ГрафикЗаКурса[[#Headers],[ЧЕТВЪРТЪК]])*(ROUNDDOWN($B40,10)>=ROUNDDOWN(СписъкКурсове[НАЧАЛЕН ЧАС],10))*($B40<=СписъкКурсове[КРАЕН ЧАС]),СписъкКурсове[УНИКАЛНИ]),СписъкКурсове[УНИКАЛНИ],0),2),0)","v":0},{"$f":"IFERROR(INDEX(СписъкКурсове[],MATCH(SUMPRODUCT((СписъкКурсове[ДЕН]=ГрафикЗаКурса[[#Headers],[ПЕТЪК]])*(ROUNDDOWN($B40,10)>=ROUNDDOWN(СписъкКурсове[НАЧАЛЕН ЧАС],10))*($B40<=СписъкКурсове[КРАЕН ЧАС]),СписъкКурсове[УНИКАЛНИ]),СписъкКурсове[УНИКАЛНИ],0),2),0)","v":0},{"$f":"IFERROR(INDEX(СписъкКурсове[],MATCH(SUMPRODUCT((СписъкКурсове[ДЕН]=ГрафикЗаКурса[[#Headers],[СЪБОТА]])*(ROUNDDOWN($B40,10)>=ROUNDDOWN(СписъкКурсове[НАЧАЛЕН ЧАС],10))*($B40<=СписъкКурсове[КРАЕН ЧАС]),СписъкКурсове[УНИКАЛНИ]),СписъкКурсове[УНИКАЛНИ],0),2),0)","v":0}]
[null,"17:15:00",{"$f":"IFERROR(INDEX(СписъкКурсове[],MATCH(SUMPRODUCT((СписъкКурсове[ДЕН]=ГрафикЗаКурса[[#Headers],[НЕДЕЛЯ]])*(ROUNDDOWN($B41,10)>=ROUNDDOWN(СписъкКурсове[НАЧАЛЕН ЧАС],10))*($B41<=СписъкКурсове[КРАЕН ЧАС]),СписъкКурсове[УНИКАЛНИ]),СписъкКурсове[УНИКАЛНИ],0),2),0)","v":0},{"$f":"IFERROR(INDEX(СписъкКурсове[],MATCH(SUMPRODUCT((СписъкКурсове[ДЕН]=ГрафикЗаКурса[[#Headers],[ПОНЕДЕЛНИК]])*(ROUNDDOWN($B41,10)>=ROUNDDOWN(СписъкКурсове[НАЧАЛЕН ЧАС],10))*($B41<=СписъкКурсове[КРАЕН ЧАС]),СписъкКурсове[УНИКАЛНИ]),СписъкКурсове[УНИКАЛНИ],0),2),0)","v":0},{"$f":"IFERROR(INDEX(СписъкКурсове[],MATCH(SUMPRODUCT((СписъкКурсове[ДЕН]=ГрафикЗаКурса[[#Headers],[ВТОРНИК]])*(ROUNDDOWN($B41,10)>=ROUNDDOWN(СписъкКурсове[НАЧАЛЕН ЧАС],10))*($B41<=СписъкКурсове[КРАЕН ЧАС]),СписъкКурсове[УНИКАЛНИ]),СписъкКурсове[УНИКАЛНИ],0),2),0)","v":0},{"$f":"IFERROR(INDEX(СписъкКурсове[],MATCH(SUMPRODUCT((СписъкКурсове[ДЕН]=ГрафикЗаКурса[[#Headers],[СРЯДА]])*(ROUNDDOWN($B41,10)>=ROUNDDOWN(СписъкКурсове[НАЧАЛЕН ЧАС],10))*($B41<=СписъкКурсове[КРАЕН ЧАС]),СписъкКурсове[УНИКАЛНИ]),СписъкКурсове[УНИКАЛНИ],0),2),0)","v":0},{"$f":"IFERROR(INDEX(СписъкКурсове[],MATCH(SUMPRODUCT((СписъкКурсове[ДЕН]=ГрафикЗаКурса[[#Headers],[ЧЕТВЪРТЪК]])*(ROUNDDOWN($B41,10)>=ROUNDDOWN(СписъкКурсове[НАЧАЛЕН ЧАС],10))*($B41<=СписъкКурсове[КРАЕН ЧАС]),СписъкКурсове[УНИКАЛНИ]),СписъкКурсове[УНИКАЛНИ],0),2),0)","v":0},{"$f":"IFERROR(INDEX(СписъкКурсове[],MATCH(SUMPRODUCT((СписъкКурсове[ДЕН]=ГрафикЗаКурса[[#Headers],[ПЕТЪК]])*(ROUNDDOWN($B41,10)>=ROUNDDOWN(СписъкКурсове[НАЧАЛЕН ЧАС],10))*($B41<=СписъкКурсове[КРАЕН ЧАС]),СписъкКурсове[УНИКАЛНИ]),СписъкКурсове[УНИКАЛНИ],0),2),0)","v":0},{"$f":"IFERROR(INDEX(СписъкКурсове[],MATCH(SUMPRODUCT((СписъкКурсове[ДЕН]=ГрафикЗаКурса[[#Headers],[СЪБОТА]])*(ROUNDDOWN($B41,10)>=ROUNDDOWN(СписъкКурсове[НАЧАЛЕН ЧАС],10))*($B41<=СписъкКурсове[КРАЕН ЧАС]),СписъкКурсове[УНИКАЛНИ]),СписъкКурсове[УНИКАЛНИ],0),2),0)","v":0}]
[null,"17:30:00",{"$f":"IFERROR(INDEX(СписъкКурсове[],MATCH(SUMPRODUCT((СписъкКурсове[ДЕН]=ГрафикЗаКурса[[#Headers],[НЕДЕЛЯ]])*(ROUNDDOWN($B42,10)>=ROUNDDOWN(СписъкКурсове[НАЧАЛЕН ЧАС],10))*($B42<=СписъкКурсове[КРАЕН ЧАС]),СписъкКурсове[УНИКАЛНИ]),СписъкКурсове[УНИКАЛНИ],0),2),0)","v":0},{"$f":"IFERROR(INDEX(СписъкКурсове[],MATCH(SUMPRODUCT((СписъкКурсове[ДЕН]=ГрафикЗаКурса[[#Headers],[ПОНЕДЕЛНИК]])*(ROUNDDOWN($B42,10)>=ROUNDDOWN(СписъкКурсове[НАЧАЛЕН ЧАС],10))*($B42<=СписъкКурсове[КРАЕН ЧАС]),СписъкКурсове[УНИКАЛНИ]),СписъкКурсове[УНИКАЛНИ],0),2),0)","v":0},{"$f":"IFERROR(INDEX(СписъкКурсове[],MATCH(SUMPRODUCT((СписъкКурсове[ДЕН]=ГрафикЗаКурса[[#Headers],[ВТОРНИК]])*(ROUNDDOWN($B42,10)>=ROUNDDOWN(СписъкКурсове[НАЧАЛЕН ЧАС],10))*($B42<=СписъкКурсове[КРАЕН ЧАС]),СписъкКурсове[УНИКАЛНИ]),СписъкКурсове[УНИКАЛНИ],0),2),0)","v":0},{"$f":"IFERROR(INDEX(СписъкКурсове[],MATCH(SUMPRODUCT((СписъкКурсове[ДЕН]=ГрафикЗаКурса[[#Headers],[СРЯДА]])*(ROUNDDOWN($B42,10)>=ROUNDDOWN(СписъкКурсове[НАЧАЛЕН ЧАС],10))*($B42<=СписъкКурсове[КРАЕН ЧАС]),СписъкКурсове[УНИКАЛНИ]),СписъкКурсове[УНИКАЛНИ],0),2),0)","v":0},{"$f":"IFERROR(INDEX(СписъкКурсове[],MATCH(SUMPRODUCT((СписъкКурсове[ДЕН]=ГрафикЗаКурса[[#Headers],[ЧЕТВЪРТЪК]])*(ROUNDDOWN($B42,10)>=ROUNDDOWN(СписъкКурсове[НАЧАЛЕН ЧАС],10))*($B42<=СписъкКурсове[КРАЕН ЧАС]),СписъкКурсове[УНИКАЛНИ]),СписъкКурсове[УНИКАЛНИ],0),2),0)","v":0},{"$f":"IFERROR(INDEX(СписъкКурсове[],MATCH(SUMPRODUCT((СписъкКурсове[ДЕН]=ГрафикЗаКурса[[#Headers],[ПЕТЪК]])*(ROUNDDOWN($B42,10)>=ROUNDDOWN(СписъкКурсове[НАЧАЛЕН ЧАС],10))*($B42<=СписъкКурсове[КРАЕН ЧАС]),СписъкКурсове[УНИКАЛНИ]),СписъкКурсове[УНИКАЛНИ],0),2),0)","v":0},{"$f":"IFERROR(INDEX(СписъкКурсове[],MATCH(SUMPRODUCT((СписъкКурсове[ДЕН]=ГрафикЗаКурса[[#Headers],[СЪБОТА]])*(ROUNDDOWN($B42,10)>=ROUNDDOWN(СписъкКурсове[НАЧАЛЕН ЧАС],10))*($B42<=СписъкКурсове[КРАЕН ЧАС]),СписъкКурсове[УНИКАЛНИ]),СписъкКурсове[УНИКАЛНИ],0),2),0)","v":0}]
[null,"17:45:00",{"$f":"IFERROR(INDEX(СписъкКурсове[],MATCH(SUMPRODUCT((СписъкКурсове[ДЕН]=ГрафикЗаКурса[[#Headers],[НЕДЕЛЯ]])*(ROUNDDOWN($B43,10)>=ROUNDDOWN(СписъкКурсове[НАЧАЛЕН ЧАС],10))*($B43<=СписъкКурсове[КРАЕН ЧАС]),СписъкКурсове[УНИКАЛНИ]),СписъкКурсове[УНИКАЛНИ],0),2),0)","v":0},{"$f":"IFERROR(INDEX(СписъкКурсове[],MATCH(SUMPRODUCT((СписъкКурсове[ДЕН]=ГрафикЗаКурса[[#Headers],[ПОНЕДЕЛНИК]])*(ROUNDDOWN($B43,10)>=ROUNDDOWN(СписъкКурсове[НАЧАЛЕН ЧАС],10))*($B43<=СписъкКурсове[КРАЕН ЧАС]),СписъкКурсове[УНИКАЛНИ]),СписъкКурсове[УНИКАЛНИ],0),2),0)","v":0},{"$f":"IFERROR(INDEX(СписъкКурсове[],MATCH(SUMPRODUCT((СписъкКурсове[ДЕН]=ГрафикЗаКурса[[#Headers],[ВТОРНИК]])*(ROUNDDOWN($B43,10)>=ROUNDDOWN(СписъкКурсове[НАЧАЛЕН ЧАС],10))*($B43<=СписъкКурсове[КРАЕН ЧАС]),СписъкКурсове[УНИКАЛНИ]),СписъкКурсове[УНИКАЛНИ],0),2),0)","v":0},{"$f":"IFERROR(INDEX(СписъкКурсове[],MATCH(SUMPRODUCT((СписъкКурсове[ДЕН]=ГрафикЗаКурса[[#Headers],[СРЯДА]])*(ROUNDDOWN($B43,10)>=ROUNDDOWN(СписъкКурсове[НАЧАЛЕН ЧАС],10))*($B43<=СписъкКурсове[КРАЕН ЧАС]),СписъкКурсове[УНИКАЛНИ]),СписъкКурсове[УНИКАЛНИ],0),2),0)","v":0},{"$f":"IFERROR(INDEX(СписъкКурсове[],MATCH(SUMPRODUCT((СписъкКурсове[ДЕН]=ГрафикЗаКурса[[#Headers],[ЧЕТВЪРТЪК]])*(ROUNDDOWN($B43,10)>=ROUNDDOWN(СписъкКурсове[НАЧАЛЕН ЧАС],10))*($B43<=СписъкКурсове[КРАЕН ЧАС]),СписъкКурсове[УНИКАЛНИ]),СписъкКурсове[УНИКАЛНИ],0),2),0)","v":0},{"$f":"IFERROR(INDEX(СписъкКурсове[],MATCH(SUMPRODUCT((СписъкКурсове[ДЕН]=ГрафикЗаКурса[[#Headers],[ПЕТЪК]])*(ROUNDDOWN($B43,10)>=ROUNDDOWN(СписъкКурсове[НАЧАЛЕН ЧАС],10))*($B43<=СписъкКурсове[КРАЕН ЧАС]),СписъкКурсове[УНИКАЛНИ]),СписъкКурсове[УНИКАЛНИ],0),2),0)","v":0},{"$f":"IFERROR(INDEX(СписъкКурсове[],MATCH(SUMPRODUCT((СписъкКурсове[ДЕН]=ГрафикЗаКурса[[#Headers],[СЪБОТА]])*(ROUNDDOWN($B43,10)>=ROUNDDOWN(СписъкКурсове[НАЧАЛЕН ЧАС],10))*($B43<=СписъкКурсове[КРАЕН ЧАС]),СписъкКурсове[УНИКАЛНИ]),СписъкКурсове[УНИКАЛНИ],0),2),0)","v":0}]
[null,"18:00:00",{"$f":"IFERROR(INDEX(СписъкКурсове[],MATCH(SUMPRODUCT((СписъкКурсове[ДЕН]=ГрафикЗаКурса[[#Headers],[НЕДЕЛЯ]])*(ROUNDDOWN($B44,10)>=ROUNDDOWN(СписъкКурсове[НАЧАЛЕН ЧАС],10))*($B44<=СписъкКурсове[КРАЕН ЧАС]),СписъкКурсове[УНИКАЛНИ]),СписъкКурсове[УНИКАЛНИ],0),2),0)","v":0},{"$f":"IFERROR(INDEX(СписъкКурсове[],MATCH(SUMPRODUCT((СписъкКурсове[ДЕН]=ГрафикЗаКурса[[#Headers],[ПОНЕДЕЛНИК]])*(ROUNDDOWN($B44,10)>=ROUNDDOWN(СписъкКурсове[НАЧАЛЕН ЧАС],10))*($B44<=СписъкКурсове[КРАЕН ЧАС]),СписъкКурсове[УНИКАЛНИ]),СписъкКурсове[УНИКАЛНИ],0),2),0)","v":0},{"$f":"IFERROR(INDEX(СписъкКурсове[],MATCH(SUMPRODUCT((СписъкКурсове[ДЕН]=ГрафикЗаКурса[[#Headers],[ВТОРНИК]])*(ROUNDDOWN($B44,10)>=ROUNDDOWN(СписъкКурсове[НАЧАЛЕН ЧАС],10))*($B44<=СписъкКурсове[КРАЕН ЧАС]),СписъкКурсове[УНИКАЛНИ]),СписъкКурсове[УНИКАЛНИ],0),2),0)","v":0},{"$f":"IFERROR(INDEX(СписъкКурсове[],MATCH(SUMPRODUCT((СписъкКурсове[ДЕН]=ГрафикЗаКурса[[#Headers],[СРЯДА]])*(ROUNDDOWN($B44,10)>=ROUNDDOWN(СписъкКурсове[НАЧАЛЕН ЧАС],10))*($B44<=СписъкКурсове[КРАЕН ЧАС]),СписъкКурсове[УНИКАЛНИ]),СписъкКурсове[УНИКАЛНИ],0),2),0)","v":0},{"$f":"IFERROR(INDEX(СписъкКурсове[],MATCH(SUMPRODUCT((СписъкКурсове[ДЕН]=ГрафикЗаКурса[[#Headers],[ЧЕТВЪРТЪК]])*(ROUNDDOWN($B44,10)>=ROUNDDOWN(СписъкКурсове[НАЧАЛЕН ЧАС],10))*($B44<=СписъкКурсове[КРАЕН ЧАС]),СписъкКурсове[УНИКАЛНИ]),СписъкКурсове[УНИКАЛНИ],0),2),0)","v":0},{"$f":"IFERROR(INDEX(СписъкКурсове[],MATCH(SUMPRODUCT((СписъкКурсове[ДЕН]=ГрафикЗаКурса[[#Headers],[ПЕТЪК]])*(ROUNDDOWN($B44,10)>=ROUNDDOWN(СписъкКурсове[НАЧАЛЕН ЧАС],10))*($B44<=СписъкКурсове[КРАЕН ЧАС]),СписъкКурсове[УНИКАЛНИ]),СписъкКурсове[УНИКАЛНИ],0),2),0)","v":0},{"$f":"IFERROR(INDEX(СписъкКурсове[],MATCH(SUMPRODUCT((СписъкКурсове[ДЕН]=ГрафикЗаКурса[[#Headers],[СЪБОТА]])*(ROUNDDOWN($B44,10)>=ROUNDDOWN(СписъкКурсове[НАЧАЛЕН ЧАС],10))*($B44<=СписъкКурсове[КРАЕН ЧАС]),СписъкКурсове[УНИКАЛНИ]),СписъкКурсове[УНИКАЛНИ],0),2),0)","v":0}]
[null,"18:15:00",{"$f":"IFERROR(INDEX(СписъкКурсове[],MATCH(SUMPRODUCT((СписъкКурсове[ДЕН]=ГрафикЗаКурса[[#Headers],[НЕДЕЛЯ]])*(ROUNDDOWN($B45,10)>=ROUNDDOWN(СписъкКурсове[НАЧАЛЕН ЧАС],10))*($B45<=СписъкКурсове[КРАЕН ЧАС]),СписъкКурсове[УНИКАЛНИ]),СписъкКурсове[УНИКАЛНИ],0),2),0)","v":0},{"$f":"IFERROR(INDEX(СписъкКурсове[],MATCH(SUMPRODUCT((СписъкКурсове[ДЕН]=ГрафикЗаКурса[[#Headers],[ПОНЕДЕЛНИК]])*(ROUNDDOWN($B45,10)>=ROUNDDOWN(СписъкКурсове[НАЧАЛЕН ЧАС],10))*($B45<=СписъкКурсове[КРАЕН ЧАС]),СписъкКурсове[УНИКАЛНИ]),СписъкКурсове[УНИКАЛНИ],0),2),0)","v":0},{"$f":"IFERROR(INDEX(СписъкКурсове[],MATCH(SUMPRODUCT((СписъкКурсове[ДЕН]=ГрафикЗаКурса[[#Headers],[ВТОРНИК]])*(ROUNDDOWN($B45,10)>=ROUNDDOWN(СписъкКурсове[НАЧАЛЕН ЧАС],10))*($B45<=СписъкКурсове[КРАЕН ЧАС]),СписъкКурсове[УНИКАЛНИ]),СписъкКурсове[УНИКАЛНИ],0),2),0)","v":0},{"$f":"IFERROR(INDEX(СписъкКурсове[],MATCH(SUMPRODUCT((СписъкКурсове[ДЕН]=ГрафикЗаКурса[[#Headers],[СРЯДА]])*(ROUNDDOWN($B45,10)>=ROUNDDOWN(СписъкКурсове[НАЧАЛЕН ЧАС],10))*($B45<=СписъкКурсове[КРАЕН ЧАС]),СписъкКурсове[УНИКАЛНИ]),СписъкКурсове[УНИКАЛНИ],0),2),0)","v":0},{"$f":"IFERROR(INDEX(СписъкКурсове[],MATCH(SUMPRODUCT((СписъкКурсове[ДЕН]=ГрафикЗаКурса[[#Headers],[ЧЕТВЪРТЪК]])*(ROUNDDOWN($B45,10)>=ROUNDDOWN(СписъкКурсове[НАЧАЛЕН ЧАС],10))*($B45<=СписъкКурсове[КРАЕН ЧАС]),СписъкКурсове[УНИКАЛНИ]),СписъкКурсове[УНИКАЛНИ],0),2),0)","v":0},{"$f":"IFERROR(INDEX(СписъкКурсове[],MATCH(SUMPRODUCT((СписъкКурсове[ДЕН]=ГрафикЗаКурса[[#Headers],[ПЕТЪК]])*(ROUNDDOWN($B45,10)>=ROUNDDOWN(СписъкКурсове[НАЧАЛЕН ЧАС],10))*($B45<=СписъкКурсове[КРАЕН ЧАС]),СписъкКурсове[УНИКАЛНИ]),СписъкКурсове[УНИКАЛНИ],0),2),0)","v":0},{"$f":"IFERROR(INDEX(СписъкКурсове[],MATCH(SUMPRODUCT((СписъкКурсове[ДЕН]=ГрафикЗаКурса[[#Headers],[СЪБОТА]])*(ROUNDDOWN($B45,10)>=ROUNDDOWN(СписъкКурсове[НАЧАЛЕН ЧАС],10))*($B45<=СписъкКурсове[КРАЕН ЧАС]),СписъкКурсове[УНИКАЛНИ]),СписъкКурсове[УНИКАЛНИ],0),2),0)","v":0}]
[null,"18:30:00",{"$f":"IFERROR(INDEX(СписъкКурсове[],MATCH(SUMPRODUCT((СписъкКурсове[ДЕН]=ГрафикЗаКурса[[#Headers],[НЕДЕЛЯ]])*(ROUNDDOWN($B46,10)>=ROUNDDOWN(СписъкКурсове[НАЧАЛЕН ЧАС],10))*($B46<=СписъкКурсове[КРАЕН ЧАС]),СписъкКурсове[УНИКАЛНИ]),СписъкКурсове[УНИКАЛНИ],0),2),0)","v":0},{"$f":"IFERROR(INDEX(СписъкКурсове[],MATCH(SUMPRODUCT((СписъкКурсове[ДЕН]=ГрафикЗаКурса[[#Headers],[ПОНЕДЕЛНИК]])*(ROUNDDOWN($B46,10)>=ROUNDDOWN(СписъкКурсове[НАЧАЛЕН ЧАС],10))*($B46<=СписъкКурсове[КРАЕН ЧАС]),СписъкКурсове[УНИКАЛНИ]),СписъкКурсове[УНИКАЛНИ],0),2),0)","v":0},{"$f":"IFERROR(INDEX(СписъкКурсове[],MATCH(SUMPRODUCT((СписъкКурсове[ДЕН]=ГрафикЗаКурса[[#Headers],[ВТОРНИК]])*(ROUNDDOWN($B46,10)>=ROUNDDOWN(СписъкКурсове[НАЧАЛЕН ЧАС],10))*($B46<=СписъкКурсове[КРАЕН ЧАС]),СписъкКурсове[УНИКАЛНИ]),СписъкКурсове[УНИКАЛНИ],0),2),0)","v":0},{"$f":"IFERROR(INDEX(СписъкКурсове[],MATCH(SUMPRODUCT((СписъкКурсове[ДЕН]=ГрафикЗаКурса[[#Headers],[СРЯДА]])*(ROUNDDOWN($B46,10)>=ROUNDDOWN(СписъкКурсове[НАЧАЛЕН ЧАС],10))*($B46<=СписъкКурсове[КРАЕН ЧАС]),СписъкКурсове[УНИКАЛНИ]),СписъкКурсове[УНИКАЛНИ],0),2),0)","v":0},{"$f":"IFERROR(INDEX(СписъкКурсове[],MATCH(SUMPRODUCT((СписъкКурсове[ДЕН]=ГрафикЗаКурса[[#Headers],[ЧЕТВЪРТЪК]])*(ROUNDDOWN($B46,10)>=ROUNDDOWN(СписъкКурсове[НАЧАЛЕН ЧАС],10))*($B46<=СписъкКурсове[КРАЕН ЧАС]),СписъкКурсове[УНИКАЛНИ]),СписъкКурсове[УНИКАЛНИ],0),2),0)","v":0},{"$f":"IFERROR(INDEX(СписъкКурсове[],MATCH(SUMPRODUCT((СписъкКурсове[ДЕН]=ГрафикЗаКурса[[#Headers],[ПЕТЪК]])*(ROUNDDOWN($B46,10)>=ROUNDDOWN(СписъкКурсове[НАЧАЛЕН ЧАС],10))*($B46<=СписъкКурсове[КРАЕН ЧАС]),СписъкКурсове[УНИКАЛНИ]),СписъкКурсове[УНИКАЛНИ],0),2),0)","v":0},{"$f":"IFERROR(INDEX(СписъкКурсове[],MATCH(SUMPRODUCT((СписъкКурсове[ДЕН]=ГрафикЗаКурса[[#Headers],[СЪБОТА]])*(ROUNDDOWN($B46,10)>=ROUNDDOWN(СписъкКурсове[НАЧАЛЕН ЧАС],10))*($B46<=СписъкКурсове[КРАЕН ЧАС]),СписъкКурсове[УНИКАЛНИ]),СписъкКурсове[УНИКАЛНИ],0),2),0)","v":0}]
[null,"18:45:00",{"$f":"IFERROR(INDEX(СписъкКурсове[],MATCH(SUMPRODUCT((СписъкКурсове[ДЕН]=ГрафикЗаКурса[[#Headers],[НЕДЕЛЯ]])*(ROUNDDOWN($B47,10)>=ROUNDDOWN(СписъкКурсове[НАЧАЛЕН ЧАС],10))*($B47<=СписъкКурсове[КРАЕН ЧАС]),СписъкКурсове[УНИКАЛНИ]),СписъкКурсове[УНИКАЛНИ],0),2),0)","v":0},{"$f":"IFERROR(INDEX(СписъкКурсове[],MATCH(SUMPRODUCT((СписъкКурсове[ДЕН]=ГрафикЗаКурса[[#Headers],[ПОНЕДЕЛНИК]])*(ROUNDDOWN($B47,10)>=ROUNDDOWN(СписъкКурсове[НАЧАЛЕН ЧАС],10))*($B47<=СписъкКурсове[КРАЕН ЧАС]),СписъкКурсове[УНИКАЛНИ]),СписъкКурсове[УНИКАЛНИ],0),2),0)","v":0},{"$f":"IFERROR(INDEX(СписъкКурсове[],MATCH(SUMPRODUCT((СписъкКурсове[ДЕН]=ГрафикЗаКурса[[#Headers],[ВТОРНИК]])*(ROUNDDOWN($B47,10)>=ROUNDDOWN(СписъкКурсове[НАЧАЛЕН ЧАС],10))*($B47<=СписъкКурсове[КРАЕН ЧАС]),СписъкКурсове[УНИКАЛНИ]),СписъкКурсове[УНИКАЛНИ],0),2),0)","v":0},{"$f":"IFERROR(INDEX(СписъкКурсове[],MATCH(SUMPRODUCT((СписъкКурсове[ДЕН]=ГрафикЗаКурса[[#Headers],[СРЯДА]])*(ROUNDDOWN($B47,10)>=ROUNDDOWN(СписъкКурсове[НАЧАЛЕН ЧАС],10))*($B47<=СписъкКурсове[КРАЕН ЧАС]),СписъкКурсове[УНИКАЛНИ]),СписъкКурсове[УНИКАЛНИ],0),2),0)","v":0},{"$f":"IFERROR(INDEX(СписъкКурсове[],MATCH(SUMPRODUCT((СписъкКурсове[ДЕН]=ГрафикЗаКурса[[#Headers],[ЧЕТВЪРТЪК]])*(ROUNDDOWN($B47,10)>=ROUNDDOWN(СписъкКурсове[НАЧАЛЕН ЧАС],10))*($B47<=СписъкКурсове[КРАЕН ЧАС]),СписъкКурсове[УНИКАЛНИ]),СписъкКурсове[УНИКАЛНИ],0),2),0)","v":0},{"$f":"IFERROR(INDEX(СписъкКурсове[],MATCH(SUMPRODUCT((СписъкКурсове[ДЕН]=ГрафикЗаКурса[[#Headers],[ПЕТЪК]])*(ROUNDDOWN($B47,10)>=ROUNDDOWN(СписъкКурсове[НАЧАЛЕН ЧАС],10))*($B47<=СписъкКурсове[КРАЕН ЧАС]),СписъкКурсове[УНИКАЛНИ]),СписъкКурсове[УНИКАЛНИ],0),2),0)","v":0},{"$f":"IFERROR(INDEX(СписъкКурсове[],MATCH(SUMPRODUCT((СписъкКурсове[ДЕН]=ГрафикЗаКурса[[#Headers],[СЪБОТА]])*(ROUNDDOWN($B47,10)>=ROUNDDOWN(СписъкКурсове[НАЧАЛЕН ЧАС],10))*($B47<=СписъкКурсове[КРАЕН ЧАС]),СписъкКурсове[УНИКАЛНИ]),СписъкКурсове[УНИКАЛНИ],0),2),0)","v":0}]
[null,"19:00:00",{"$f":"IFERROR(INDEX(СписъкКурсове[],MATCH(SUMPRODUCT((СписъкКурсове[ДЕН]=ГрафикЗаКурса[[#Headers],[НЕДЕЛЯ]])*(ROUNDDOWN($B48,10)>=ROUNDDOWN(СписъкКурсове[НАЧАЛЕН ЧАС],10))*($B48<=СписъкКурсове[КРАЕН ЧАС]),СписъкКурсове[УНИКАЛНИ]),СписъкКурсове[УНИКАЛНИ],0),2),0)","v":0},{"$f":"IFERROR(INDEX(СписъкКурсове[],MATCH(SUMPRODUCT((СписъкКурсове[ДЕН]=ГрафикЗаКурса[[#Headers],[ПОНЕДЕЛНИК]])*(ROUNDDOWN($B48,10)>=ROUNDDOWN(СписъкКурсове[НАЧАЛЕН ЧАС],10))*($B48<=СписъкКурсове[КРАЕН ЧАС]),СписъкКурсове[УНИКАЛНИ]),СписъкКурсове[УНИКАЛНИ],0),2),0)","v":0},{"$f":"IFERROR(INDEX(СписъкКурсове[],MATCH(SUMPRODUCT((СписъкКурсове[ДЕН]=ГрафикЗаКурса[[#Headers],[ВТОРНИК]])*(ROUNDDOWN($B48,10)>=ROUNDDOWN(СписъкКурсове[НАЧАЛЕН ЧАС],10))*($B48<=СписъкКурсове[КРАЕН ЧАС]),СписъкКурсове[УНИКАЛНИ]),СписъкКурсове[УНИКАЛНИ],0),2),0)","v":0},{"$f":"IFERROR(INDEX(СписъкКурсове[],MATCH(SUMPRODUCT((СписъкКурсове[ДЕН]=ГрафикЗаКурса[[#Headers],[СРЯДА]])*(ROUNDDOWN($B48,10)>=ROUNDDOWN(СписъкКурсове[НАЧАЛЕН ЧАС],10))*($B48<=СписъкКурсове[КРАЕН ЧАС]),СписъкКурсове[УНИКАЛНИ]),СписъкКурсове[УНИКАЛНИ],0),2),0)","v":0},{"$f":"IFERROR(INDEX(СписъкКурсове[],MATCH(SUMPRODUCT((СписъкКурсове[ДЕН]=ГрафикЗаКурса[[#Headers],[ЧЕТВЪРТЪК]])*(ROUNDDOWN($B48,10)>=ROUNDDOWN(СписъкКурсове[НАЧАЛЕН ЧАС],10))*($B48<=СписъкКурсове[КРАЕН ЧАС]),СписъкКурсове[УНИКАЛНИ]),СписъкКурсове[УНИКАЛНИ],0),2),0)","v":0},{"$f":"IFERROR(INDEX(СписъкКурсове[],MATCH(SUMPRODUCT((СписъкКурсове[ДЕН]=ГрафикЗаКурса[[#Headers],[ПЕТЪК]])*(ROUNDDOWN($B48,10)>=ROUNDDOWN(СписъкКурсове[НАЧАЛЕН ЧАС],10))*($B48<=СписъкКурсове[КРАЕН ЧАС]),СписъкКурсове[УНИКАЛНИ]),СписъкКурсове[УНИКАЛНИ],0),2),0)","v":0},{"$f":"IFERROR(INDEX(СписъкКурсове[],MATCH(SUMPRODUCT((СписъкКурсове[ДЕН]=ГрафикЗаКурса[[#Headers],[СЪБОТА]])*(ROUNDDOWN($B48,10)>=ROUNDDOWN(СписъкКурсове[НАЧАЛЕН ЧАС],10))*($B48<=СписъкКурсове[КРАЕН ЧАС]),СписъкКурсове[УНИКАЛНИ]),СписъкКурсове[УНИКАЛНИ],0),2),0)","v":0}]
[null,"19:15:00",{"$f":"IFERROR(INDEX(СписъкКурсове[],MATCH(SUMPRODUCT((СписъкКурсове[ДЕН]=ГрафикЗаКурса[[#Headers],[НЕДЕЛЯ]])*(ROUNDDOWN($B49,10)>=ROUNDDOWN(СписъкКурсове[НАЧАЛЕН ЧАС],10))*($B49<=СписъкКурсове[КРАЕН ЧАС]),СписъкКурсове[УНИКАЛНИ]),СписъкКурсове[УНИКАЛНИ],0),2),0)","v":0},{"$f":"IFERROR(INDEX(СписъкКурсове[],MATCH(SUMPRODUCT((СписъкКурсове[ДЕН]=ГрафикЗаКурса[[#Headers],[ПОНЕДЕЛНИК]])*(ROUNDDOWN($B49,10)>=ROUNDDOWN(СписъкКурсове[НАЧАЛЕН ЧАС],10))*($B49<=СписъкКурсове[КРАЕН ЧАС]),СписъкКурсове[УНИКАЛНИ]),СписъкКурсове[УНИКАЛНИ],0),2),0)","v":0},{"$f":"IFERROR(INDEX(СписъкКурсове[],MATCH(SUMPRODUCT((СписъкКурсове[ДЕН]=ГрафикЗаКурса[[#Headers],[ВТОРНИК]])*(ROUNDDOWN($B49,10)>=ROUNDDOWN(СписъкКурсове[НАЧАЛЕН ЧАС],10))*($B49<=СписъкКурсове[КРАЕН ЧАС]),СписъкКурсове[УНИКАЛНИ]),СписъкКурсове[УНИКАЛНИ],0),2),0)","v":0},{"$f":"IFERROR(INDEX(СписъкКурсове[],MATCH(SUMPRODUCT((СписъкКурсове[ДЕН]=ГрафикЗаКурса[[#Headers],[СРЯДА]])*(ROUNDDOWN($B49,10)>=ROUNDDOWN(СписъкКурсове[НАЧАЛЕН ЧАС],10))*($B49<=СписъкКурсове[КРАЕН ЧАС]),СписъкКурсове[УНИКАЛНИ]),СписъкКурсове[УНИКАЛНИ],0),2),0)","v":0},{"$f":"IFERROR(INDEX(СписъкКурсове[],MATCH(SUMPRODUCT((СписъкКурсове[ДЕН]=ГрафикЗаКурса[[#Headers],[ЧЕТВЪРТЪК]])*(ROUNDDOWN($B49,10)>=ROUNDDOWN(СписъкКурсове[НАЧАЛЕН ЧАС],10))*($B49<=СписъкКурсове[КРАЕН ЧАС]),СписъкКурсове[УНИКАЛНИ]),СписъкКурсове[УНИКАЛНИ],0),2),0)","v":0},{"$f":"IFERROR(INDEX(СписъкКурсове[],MATCH(SUMPRODUCT((СписъкКурсове[ДЕН]=ГрафикЗаКурса[[#Headers],[ПЕТЪК]])*(ROUNDDOWN($B49,10)>=ROUNDDOWN(СписъкКурсове[НАЧАЛЕН ЧАС],10))*($B49<=СписъкКурсове[КРАЕН ЧАС]),СписъкКурсове[УНИКАЛНИ]),СписъкКурсове[УНИКАЛНИ],0),2),0)","v":0},{"$f":"IFERROR(INDEX(СписъкКурсове[],MATCH(SUMPRODUCT((СписъкКурсове[ДЕН]=ГрафикЗаКурса[[#Headers],[СЪБОТА]])*(ROUNDDOWN($B49,10)>=ROUNDDOWN(СписъкКурсове[НАЧАЛЕН ЧАС],10))*($B49<=СписъкКурсове[КРАЕН ЧАС]),СписъкКурсове[УНИКАЛНИ]),СписъкКурсове[УНИКАЛНИ],0),2),0)","v":0}]
[null,"19:30:00",{"$f":"IFERROR(INDEX(СписъкКурсове[],MATCH(SUMPRODUCT((СписъкКурсове[ДЕН]=ГрафикЗаКурса[[#Headers],[НЕДЕЛЯ]])*(ROUNDDOWN($B50,10)>=ROUNDDOWN(СписъкКурсове[НАЧАЛЕН ЧАС],10))*($B50<=СписъкКурсове[КРАЕН ЧАС]),СписъкКурсове[УНИКАЛНИ]),СписъкКурсове[УНИКАЛНИ],0),2),0)","v":0},{"$f":"IFERROR(INDEX(СписъкКурсове[],MATCH(SUMPRODUCT((СписъкКурсове[ДЕН]=ГрафикЗаКурса[[#Headers],[ПОНЕДЕЛНИК]])*(ROUNDDOWN($B50,10)>=ROUNDDOWN(СписъкКурсове[НАЧАЛЕН ЧАС],10))*($B50<=СписъкКурсове[КРАЕН ЧАС]),СписъкКурсове[УНИКАЛНИ]),СписъкКурсове[УНИКАЛНИ],0),2),0)","v":0},{"$f":"IFERROR(INDEX(СписъкКурсове[],MATCH(SUMPRODUCT((СписъкКурсове[ДЕН]=ГрафикЗаКурса[[#Headers],[ВТОРНИК]])*(ROUNDDOWN($B50,10)>=ROUNDDOWN(СписъкКурсове[НАЧАЛЕН ЧАС],10))*($B50<=СписъкКурсове[КРАЕН ЧАС]),СписъкКурсове[УНИКАЛНИ]),СписъкКурсове[УНИКАЛНИ],0),2),0)","v":0},{"$f":"IFERROR(INDEX(СписъкКурсове[],MATCH(SUMPRODUCT((СписъкКурсове[ДЕН]=ГрафикЗаКурса[[#Headers],[СРЯДА]])*(ROUNDDOWN($B50,10)>=ROUNDDOWN(СписъкКурсове[НАЧАЛЕН ЧАС],10))*($B50<=СписъкКурсове[КРАЕН ЧАС]),СписъкКурсове[УНИКАЛНИ]),СписъкКурсове[УНИКАЛНИ],0),2),0)","v":0},{"$f":"IFERROR(INDEX(СписъкКурсове[],MATCH(SUMPRODUCT((СписъкКурсове[ДЕН]=ГрафикЗаКурса[[#Headers],[ЧЕТВЪРТЪК]])*(ROUNDDOWN($B50,10)>=ROUNDDOWN(СписъкКурсове[НАЧАЛЕН ЧАС],10))*($B50<=СписъкКурсове[КРАЕН ЧАС]),СписъкКурсове[УНИКАЛНИ]),СписъкКурсове[УНИКАЛНИ],0),2),0)","v":0},{"$f":"IFERROR(INDEX(СписъкКурсове[],MATCH(SUMPRODUCT((СписъкКурсове[ДЕН]=ГрафикЗаКурса[[#Headers],[ПЕТЪК]])*(ROUNDDOWN($B50,10)>=ROUNDDOWN(СписъкКурсове[НАЧАЛЕН ЧАС],10))*($B50<=СписъкКурсове[КРАЕН ЧАС]),СписъкКурсове[УНИКАЛНИ]),СписъкКурсове[УНИКАЛНИ],0),2),0)","v":0},{"$f":"IFERROR(INDEX(СписъкКурсове[],MATCH(SUMPRODUCT((СписъкКурсове[ДЕН]=ГрафикЗаКурса[[#Headers],[СЪБОТА]])*(ROUNDDOWN($B50,10)>=ROUNDDOWN(СписъкКурсове[НАЧАЛЕН ЧАС],10))*($B50<=СписъкКурсове[КРАЕН ЧАС]),СписъкКурсове[УНИКАЛНИ]),СписъкКурсове[УНИКАЛНИ],0),2),0)","v":0}]
[null,"19:45:00",{"$f":"IFERROR(INDEX(СписъкКурсове[],MATCH(SUMPRODUCT((СписъкКурсове[ДЕН]=ГрафикЗаКурса[[#Headers],[НЕДЕЛЯ]])*(ROUNDDOWN($B51,10)>=ROUNDDOWN(СписъкКурсове[НАЧАЛЕН ЧАС],10))*($B51<=СписъкКурсове[КРАЕН ЧАС]),СписъкКурсове[УНИКАЛНИ]),СписъкКурсове[УНИКАЛНИ],0),2),0)","v":0},{"$f":"IFERROR(INDEX(СписъкКурсове[],MATCH(SUMPRODUCT((СписъкКурсове[ДЕН]=ГрафикЗаКурса[[#Headers],[ПОНЕДЕЛНИК]])*(ROUNDDOWN($B51,10)>=ROUNDDOWN(СписъкКурсове[НАЧАЛЕН ЧАС],10))*($B51<=СписъкКурсове[КРАЕН ЧАС]),СписъкКурсове[УНИКАЛНИ]),СписъкКурсове[УНИКАЛНИ],0),2),0)","v":0},{"$f":"IFERROR(INDEX(СписъкКурсове[],MATCH(SUMPRODUCT((СписъкКурсове[ДЕН]=ГрафикЗаКурса[[#Headers],[ВТОРНИК]])*(ROUNDDOWN($B51,10)>=ROUNDDOWN(СписъкКурсове[НАЧАЛЕН ЧАС],10))*($B51<=СписъкКурсове[КРАЕН ЧАС]),СписъкКурсове[УНИКАЛНИ]),СписъкКурсове[УНИКАЛНИ],0),2),0)","v":0},{"$f":"IFERROR(INDEX(СписъкКурсове[],MATCH(SUMPRODUCT((СписъкКурсове[ДЕН]=ГрафикЗаКурса[[#Headers],[СРЯДА]])*(ROUNDDOWN($B51,10)>=ROUNDDOWN(СписъкКурсове[НАЧАЛЕН ЧАС],10))*($B51<=СписъкКурсове[КРАЕН ЧАС]),СписъкКурсове[УНИКАЛНИ]),СписъкКурсове[УНИКАЛНИ],0),2),0)","v":0},{"$f":"IFERROR(INDEX(СписъкКурсове[],MATCH(SUMPRODUCT((СписъкКурсове[ДЕН]=ГрафикЗаКурса[[#Headers],[ЧЕТВЪРТЪК]])*(ROUNDDOWN($B51,10)>=ROUNDDOWN(СписъкКурсове[НАЧАЛЕН ЧАС],10))*($B51<=СписъкКурсове[КРАЕН ЧАС]),СписъкКурсове[УНИКАЛНИ]),СписъкКурсове[УНИКАЛНИ],0),2),0)","v":0},{"$f":"IFERROR(INDEX(СписъкКурсове[],MATCH(SUMPRODUCT((СписъкКурсове[ДЕН]=ГрафикЗаКурса[[#Headers],[ПЕТЪК]])*(ROUNDDOWN($B51,10)>=ROUNDDOWN(СписъкКурсове[НАЧАЛЕН ЧАС],10))*($B51<=СписъкКурсове[КРАЕН ЧАС]),СписъкКурсове[УНИКАЛНИ]),СписъкКурсове[УНИКАЛНИ],0),2),0)","v":0},{"$f":"IFERROR(INDEX(СписъкКурсове[],MATCH(SUMPRODUCT((СписъкКурсове[ДЕН]=ГрафикЗаКурса[[#Headers],[СЪБОТА]])*(ROUNDDOWN($B51,10)>=ROUNDDOWN(СписъкКурсове[НАЧАЛЕН ЧАС],10))*($B51<=СписъкКурсове[КРАЕН ЧАС]),СписъкКурсове[УНИКАЛНИ]),СписъкКурсове[УНИКАЛНИ],0),2),0)","v":0}]
[null,"20:00:00",{"$f":"IFERROR(INDEX(СписъкКурсове[],MATCH(SUMPRODUCT((СписъкКурсове[ДЕН]=ГрафикЗаКурса[[#Headers],[НЕДЕЛЯ]])*(ROUNDDOWN($B52,10)>=ROUNDDOWN(СписъкКурсове[НАЧАЛЕН ЧАС],10))*($B52<=СписъкКурсове[КРАЕН ЧАС]),СписъкКурсове[УНИКАЛНИ]),СписъкКурсове[УНИКАЛНИ],0),2),0)","v":0},{"$f":"IFERROR(INDEX(СписъкКурсове[],MATCH(SUMPRODUCT((СписъкКурсове[ДЕН]=ГрафикЗаКурса[[#Headers],[ПОНЕДЕЛНИК]])*(ROUNDDOWN($B52,10)>=ROUNDDOWN(СписъкКурсове[НАЧАЛЕН ЧАС],10))*($B52<=СписъкКурсове[КРАЕН ЧАС]),СписъкКурсове[УНИКАЛНИ]),СписъкКурсове[УНИКАЛНИ],0),2),0)","v":0},{"$f":"IFERROR(INDEX(СписъкКурсове[],MATCH(SUMPRODUCT((СписъкКурсове[ДЕН]=ГрафикЗаКурса[[#Headers],[ВТОРНИК]])*(ROUNDDOWN($B52,10)>=ROUNDDOWN(СписъкКурсове[НАЧАЛЕН ЧАС],10))*($B52<=СписъкКурсове[КРАЕН ЧАС]),СписъкКурсове[УНИКАЛНИ]),СписъкКурсове[УНИКАЛНИ],0),2),0)","v":0},{"$f":"IFERROR(INDEX(СписъкКурсове[],MATCH(SUMPRODUCT((СписъкКурсове[ДЕН]=ГрафикЗаКурса[[#Headers],[СРЯДА]])*(ROUNDDOWN($B52,10)>=ROUNDDOWN(СписъкКурсове[НАЧАЛЕН ЧАС],10))*($B52<=СписъкКурсове[КРАЕН ЧАС]),СписъкКурсове[УНИКАЛНИ]),СписъкКурсове[УНИКАЛНИ],0),2),0)","v":0},{"$f":"IFERROR(INDEX(СписъкКурсове[],MATCH(SUMPRODUCT((СписъкКурсове[ДЕН]=ГрафикЗаКурса[[#Headers],[ЧЕТВЪРТЪК]])*(ROUNDDOWN($B52,10)>=ROUNDDOWN(СписъкКурсове[НАЧАЛЕН ЧАС],10))*($B52<=СписъкКурсове[КРАЕН ЧАС]),СписъкКурсове[УНИКАЛНИ]),СписъкКурсове[УНИКАЛНИ],0),2),0)","v":0},{"$f":"IFERROR(INDEX(СписъкКурсове[],MATCH(SUMPRODUCT((СписъкКурсове[ДЕН]=ГрафикЗаКурса[[#Headers],[ПЕТЪК]])*(ROUNDDOWN($B52,10)>=ROUNDDOWN(СписъкКурсове[НАЧАЛЕН ЧАС],10))*($B52<=СписъкКурсове[КРАЕН ЧАС]),СписъкКурсове[УНИКАЛНИ]),СписъкКурсове[УНИКАЛНИ],0),2),0)","v":0},{"$f":"IFERROR(INDEX(СписъкКурсове[],MATCH(SUMPRODUCT((СписъкКурсове[ДЕН]=ГрафикЗаКурса[[#Headers],[СЪБОТА]])*(ROUNDDOWN($B52,10)>=ROUNDDOWN(СписъкКурсове[НАЧАЛЕН ЧАС],10))*($B52<=СписъкКурсове[КРАЕН ЧАС]),СписъкКурсове[УНИКАЛНИ]),СписъкКурсове[УНИКАЛНИ],0),2),0)","v":0}]
[null,"20:15:00",{"$f":"IFERROR(INDEX(СписъкКурсове[],MATCH(SUMPRODUCT((СписъкКурсове[ДЕН]=ГрафикЗаКурса[[#Headers],[НЕДЕЛЯ]])*(ROUNDDOWN($B53,10)>=ROUNDDOWN(СписъкКурсове[НАЧАЛЕН ЧАС],10))*($B53<=СписъкКурсове[КРАЕН ЧАС]),СписъкКурсове[УНИКАЛНИ]),СписъкКурсове[УНИКАЛНИ],0),2),0)","v":0},{"$f":"IFERROR(INDEX(СписъкКурсове[],MATCH(SUMPRODUCT((СписъкКурсове[ДЕН]=ГрафикЗаКурса[[#Headers],[ПОНЕДЕЛНИК]])*(ROUNDDOWN($B53,10)>=ROUNDDOWN(СписъкКурсове[НАЧАЛЕН ЧАС],10))*($B53<=СписъкКурсове[КРАЕН ЧАС]),СписъкКурсове[УНИКАЛНИ]),СписъкКурсове[УНИКАЛНИ],0),2),0)","v":0},{"$f":"IFERROR(INDEX(СписъкКурсове[],MATCH(SUMPRODUCT((СписъкКурсове[ДЕН]=ГрафикЗаКурса[[#Headers],[ВТОРНИК]])*(ROUNDDOWN($B53,10)>=ROUNDDOWN(СписъкКурсове[НАЧАЛЕН ЧАС],10))*($B53<=СписъкКурсове[КРАЕН ЧАС]),СписъкКурсове[УНИКАЛНИ]),СписъкКурсове[УНИКАЛНИ],0),2),0)","v":0},{"$f":"IFERROR(INDEX(СписъкКурсове[],MATCH(SUMPRODUCT((СписъкКурсове[ДЕН]=ГрафикЗаКурса[[#Headers],[СРЯДА]])*(ROUNDDOWN($B53,10)>=ROUNDDOWN(СписъкКурсове[НАЧАЛЕН ЧАС],10))*($B53<=СписъкКурсове[КРАЕН ЧАС]),СписъкКурсове[УНИКАЛНИ]),СписъкКурсове[УНИКАЛНИ],0),2),0)","v":0},{"$f":"IFERROR(INDEX(СписъкКурсове[],MATCH(SUMPRODUCT((СписъкКурсове[ДЕН]=ГрафикЗаКурса[[#Headers],[ЧЕТВЪРТЪК]])*(ROUNDDOWN($B53,10)>=ROUNDDOWN(СписъкКурсове[НАЧАЛЕН ЧАС],10))*($B53<=СписъкКурсове[КРАЕН ЧАС]),СписъкКурсове[УНИКАЛНИ]),СписъкКурсове[УНИКАЛНИ],0),2),0)","v":0},{"$f":"IFERROR(INDEX(СписъкКурсове[],MATCH(SUMPRODUCT((СписъкКурсове[ДЕН]=ГрафикЗаКурса[[#Headers],[ПЕТЪК]])*(ROUNDDOWN($B53,10)>=ROUNDDOWN(СписъкКурсове[НАЧАЛЕН ЧАС],10))*($B53<=СписъкКурсове[КРАЕН ЧАС]),СписъкКурсове[УНИКАЛНИ]),СписъкКурсове[УНИКАЛНИ],0),2),0)","v":0},{"$f":"IFERROR(INDEX(СписъкКурсове[],MATCH(SUMPRODUCT((СписъкКурсове[ДЕН]=ГрафикЗаКурса[[#Headers],[СЪБОТА]])*(ROUNDDOWN($B53,10)>=ROUNDDOWN(СписъкКурсове[НАЧАЛЕН ЧАС],10))*($B53<=СписъкКурсове[КРАЕН ЧАС]),СписъкКурсове[УНИКАЛНИ]),СписъкКурсове[УНИКАЛНИ],0),2),0)","v":0}]
[null,"20:30:00",{"$f":"IFERROR(INDEX(СписъкКурсове[],MATCH(SUMPRODUCT((СписъкКурсове[ДЕН]=ГрафикЗаКурса[[#Headers],[НЕДЕЛЯ]])*(ROUNDDOWN($B54,10)>=ROUNDDOWN(СписъкКурсове[НАЧАЛЕН ЧАС],10))*($B54<=СписъкКурсове[КРАЕН ЧАС]),СписъкКурсове[УНИКАЛНИ]),СписъкКурсове[УНИКАЛНИ],0),2),0)","v":0},{"$f":"IFERROR(INDEX(СписъкКурсове[],MATCH(SUMPRODUCT((СписъкКурсове[ДЕН]=ГрафикЗаКурса[[#Headers],[ПОНЕДЕЛНИК]])*(ROUNDDOWN($B54,10)>=ROUNDDOWN(СписъкКурсове[НАЧАЛЕН ЧАС],10))*($B54<=СписъкКурсове[КРАЕН ЧАС]),СписъкКурсове[УНИКАЛНИ]),СписъкКурсове[УНИКАЛНИ],0),2),0)","v":0},{"$f":"IFERROR(INDEX(СписъкКурсове[],MATCH(SUMPRODUCT((СписъкКурсове[ДЕН]=ГрафикЗаКурса[[#Headers],[ВТОРНИК]])*(ROUNDDOWN($B54,10)>=ROUNDDOWN(СписъкКурсове[НАЧАЛЕН ЧАС],10))*($B54<=СписъкКурсове[КРАЕН ЧАС]),СписъкКурсове[УНИКАЛНИ]),СписъкКурсове[УНИКАЛНИ],0),2),0)","v":0},{"$f":"IFERROR(INDEX(СписъкКурсове[],MATCH(SUMPRODUCT((СписъкКурсове[ДЕН]=ГрафикЗаКурса[[#Headers],[СРЯДА]])*(ROUNDDOWN($B54,10)>=ROUNDDOWN(СписъкКурсове[НАЧАЛЕН ЧАС],10))*($B54<=СписъкКурсове[КРАЕН ЧАС]),СписъкКурсове[УНИКАЛНИ]),СписъкКурсове[УНИКАЛНИ],0),2),0)","v":0},{"$f":"IFERROR(INDEX(СписъкКурсове[],MATCH(SUMPRODUCT((СписъкКурсове[ДЕН]=ГрафикЗаКурса[[#Headers],[ЧЕТВЪРТЪК]])*(ROUNDDOWN($B54,10)>=ROUNDDOWN(СписъкКурсове[НАЧАЛЕН ЧАС],10))*($B54<=СписъкКурсове[КРАЕН ЧАС]),СписъкКурсове[УНИКАЛНИ]),СписъкКурсове[УНИКАЛНИ],0),2),0)","v":0},{"$f":"IFERROR(INDEX(СписъкКурсове[],MATCH(SUMPRODUCT((СписъкКурсове[ДЕН]=ГрафикЗаКурса[[#Headers],[ПЕТЪК]])*(ROUNDDOWN($B54,10)>=ROUNDDOWN(СписъкКурсове[НАЧАЛЕН ЧАС],10))*($B54<=СписъкКурсове[КРАЕН ЧАС]),СписъкКурсове[УНИКАЛНИ]),СписъкКурсове[УНИКАЛНИ],0),2),0)","v":0},{"$f":"IFERROR(INDEX(СписъкКурсове[],MATCH(SUMPRODUCT((СписъкКурсове[ДЕН]=ГрафикЗаКурса[[#Headers],[СЪБОТА]])*(ROUNDDOWN($B54,10)>=ROUNDDOWN(СписъкКурсове[НАЧАЛЕН ЧАС],10))*($B54<=СписъкКурсове[КРАЕН ЧАС]),СписъкКурсове[УНИКАЛНИ]),СписъкКурсове[УНИКАЛНИ],0),2),0)","v":0}]
[null,"20:45:00",{"$f":"IFERROR(INDEX(СписъкКурсове[],MATCH(SUMPRODUCT((СписъкКурсове[ДЕН]=ГрафикЗаКурса[[#Headers],[НЕДЕЛЯ]])*(ROUNDDOWN($B55,10)>=ROUNDDOWN(СписъкКурсове[НАЧАЛЕН ЧАС],10))*($B55<=СписъкКурсове[КРАЕН ЧАС]),СписъкКурсове[УНИКАЛНИ]),СписъкКурсове[УНИКАЛНИ],0),2),0)","v":0},{"$f":"IFERROR(INDEX(СписъкКурсове[],MATCH(SUMPRODUCT((СписъкКурсове[ДЕН]=ГрафикЗаКурса[[#Headers],[ПОНЕДЕЛНИК]])*(ROUNDDOWN($B55,10)>=ROUNDDOWN(СписъкКурсове[НАЧАЛЕН ЧАС],10))*($B55<=СписъкКурсове[КРАЕН ЧАС]),СписъкКурсове[УНИКАЛНИ]),СписъкКурсове[УНИКАЛНИ],0),2),0)","v":0},{"$f":"IFERROR(INDEX(СписъкКурсове[],MATCH(SUMPRODUCT((СписъкКурсове[ДЕН]=ГрафикЗаКурса[[#Headers],[ВТОРНИК]])*(ROUNDDOWN($B55,10)>=ROUNDDOWN(СписъкКурсове[НАЧАЛЕН ЧАС],10))*($B55<=СписъкКурсове[КРАЕН ЧАС]),СписъкКурсове[УНИКАЛНИ]),СписъкКурсове[УНИКАЛНИ],0),2),0)","v":0},{"$f":"IFERROR(INDEX(СписъкКурсове[],MATCH(SUMPRODUCT((СписъкКурсове[ДЕН]=ГрафикЗаКурса[[#Headers],[СРЯДА]])*(ROUNDDOWN($B55,10)>=ROUNDDOWN(СписъкКурсове[НАЧАЛЕН ЧАС],10))*($B55<=СписъкКурсове[КРАЕН ЧАС]),СписъкКурсове[УНИКАЛНИ]),СписъкКурсове[УНИКАЛНИ],0),2),0)","v":0},{"$f":"IFERROR(INDEX(СписъкКурсове[],MATCH(SUMPRODUCT((СписъкКурсове[ДЕН]=ГрафикЗаКурса[[#Headers],[ЧЕТВЪРТЪК]])*(ROUNDDOWN($B55,10)>=ROUNDDOWN(СписъкКурсове[НАЧАЛЕН ЧАС],10))*($B55<=СписъкКурсове[КРАЕН ЧАС]),СписъкКурсове[УНИКАЛНИ]),СписъкКурсове[УНИКАЛНИ],0),2),0)","v":0},{"$f":"IFERROR(INDEX(СписъкКурсове[],MATCH(SUMPRODUCT((СписъкКурсове[ДЕН]=ГрафикЗаКурса[[#Headers],[ПЕТЪК]])*(ROUNDDOWN($B55,10)>=ROUNDDOWN(СписъкКурсове[НАЧАЛЕН ЧАС],10))*($B55<=СписъкКурсове[КРАЕН ЧАС]),СписъкКурсове[УНИКАЛНИ]),СписъкКурсове[УНИКАЛНИ],0),2),0)","v":0},{"$f":"IFERROR(INDEX(СписъкКурсове[],MATCH(SUMPRODUCT((СписъкКурсове[ДЕН]=ГрафикЗаКурса[[#Headers],[СЪБОТА]])*(ROUNDDOWN($B55,10)>=ROUNDDOWN(СписъкКурсове[НАЧАЛЕН ЧАС],10))*($B55<=СписъкКурсове[КРАЕН ЧАС]),СписъкКурсове[УНИКАЛНИ]),СписъкКурсове[УНИКАЛНИ],0),2),0)","v":0}]
[null,"21:00:00",{"$f":"IFERROR(INDEX(СписъкКурсове[],MATCH(SUMPRODUCT((СписъкКурсове[ДЕН]=ГрафикЗаКурса[[#Headers],[НЕДЕЛЯ]])*(ROUNDDOWN($B56,10)>=ROUNDDOWN(СписъкКурсове[НАЧАЛЕН ЧАС],10))*($B56<=СписъкКурсове[КРАЕН ЧАС]),СписъкКурсове[УНИКАЛНИ]),СписъкКурсове[УНИКАЛНИ],0),2),0)","v":0},{"$f":"IFERROR(INDEX(СписъкКурсове[],MATCH(SUMPRODUCT((СписъкКурсове[ДЕН]=ГрафикЗаКурса[[#Headers],[ПОНЕДЕЛНИК]])*(ROUNDDOWN($B56,10)>=ROUNDDOWN(СписъкКурсове[НАЧАЛЕН ЧАС],10))*($B56<=СписъкКурсове[КРАЕН ЧАС]),СписъкКурсове[УНИКАЛНИ]),СписъкКурсове[УНИКАЛНИ],0),2),0)","v":0},{"$f":"IFERROR(INDEX(СписъкКурсове[],MATCH(SUMPRODUCT((СписъкКурсове[ДЕН]=ГрафикЗаКурса[[#Headers],[ВТОРНИК]])*(ROUNDDOWN($B56,10)>=ROUNDDOWN(СписъкКурсове[НАЧАЛЕН ЧАС],10))*($B56<=СписъкКурсове[КРАЕН ЧАС]),СписъкКурсове[УНИКАЛНИ]),СписъкКурсове[УНИКАЛНИ],0),2),0)","v":0},{"$f":"IFERROR(INDEX(СписъкКурсове[],MATCH(SUMPRODUCT((СписъкКурсове[ДЕН]=ГрафикЗаКурса[[#Headers],[СРЯДА]])*(ROUNDDOWN($B56,10)>=ROUNDDOWN(СписъкКурсове[НАЧАЛЕН ЧАС],10))*($B56<=СписъкКурсове[КРАЕН ЧАС]),СписъкКурсове[УНИКАЛНИ]),СписъкКурсове[УНИКАЛНИ],0),2),0)","v":0},{"$f":"IFERROR(INDEX(СписъкКурсове[],MATCH(SUMPRODUCT((СписъкКурсове[ДЕН]=ГрафикЗаКурса[[#Headers],[ЧЕТВЪРТЪК]])*(ROUNDDOWN($B56,10)>=ROUNDDOWN(СписъкКурсове[НАЧАЛЕН ЧАС],10))*($B56<=СписъкКурсове[КРАЕН ЧАС]),СписъкКурсове[УНИКАЛНИ]),СписъкКурсове[УНИКАЛНИ],0),2),0)","v":0},{"$f":"IFERROR(INDEX(СписъкКурсове[],MATCH(SUMPRODUCT((СписъкКурсове[ДЕН]=ГрафикЗаКурса[[#Headers],[ПЕТЪК]])*(ROUNDDOWN($B56,10)>=ROUNDDOWN(СписъкКурсове[НАЧАЛЕН ЧАС],10))*($B56<=СписъкКурсове[КРАЕН ЧАС]),СписъкКурсове[УНИКАЛНИ]),СписъкКурсове[УНИКАЛНИ],0),2),0)","v":0},{"$f":"IFERROR(INDEX(СписъкКурсове[],MATCH(SUMPRODUCT((СписъкКурсове[ДЕН]=ГрафикЗаКурса[[#Headers],[СЪБОТА]])*(ROUNDDOWN($B56,10)>=ROUNDDOWN(СписъкКурсове[НАЧАЛЕН ЧАС],10))*($B56<=СписъкКурсове[КРАЕН ЧАС]),СписъкКурсове[УНИКАЛНИ]),СписъкКурсове[УНИКАЛНИ],0),2),0)","v":0}]

{"sheet":"Списък с курсове","index":1,"n_rows":10,"n_cols":8,"rows_kept":10,"merged":[[0,1,0,5],[0,6,0,7]]}
[null,"СПИСЪК С КУРСОВЕ",{"$nulls":4},"График за курса"]
[null,"КУРС","ИД","ДЕН","МЯСТО","НАЧАЛЕН ЧАС","КРАЕН ЧАС","УНИКАЛНИ"]
[null,"Техническо писане","WR-121","ПОНЕДЕЛНИК","Сграда A","13:00:00","14:00:00",{"$f":"ROW()-ROW(СписъкКурсове[[#Headers],[УНИКАЛНИ]])","v":1}]
[null,"Техническо писане","WR-121","СРЯДА","Сграда A","13:00:00","14:00:00",{"$f":"ROW()-ROW(СписъкКурсове[[#Headers],[УНИКАЛНИ]])","v":2}]
[null,"Ораторско майсторство","SP-111","ПОНЕДЕЛНИК","Сграда Б","16:00:00","17:00:00",{"$f":"ROW()-ROW(СписъкКурсове[[#Headers],[УНИКАЛНИ]])","v":3}]
[null,"Здраве и фитнес","HPE-295","ВТОРНИК","Сграда Б","11:00:00","12:00:00",{"$f":"ROW()-ROW(СписъкКурсове[[#Headers],[УНИКАЛНИ]])","v":4}]
[null,"Здраве и фитнес","HPE-295","ЧЕТВЪРТЪК","Сграда Б","11:00:00","12:00:00",{"$f":"ROW()-ROW(СписъкКурсове[[#Headers],[УНИКАЛНИ]])","v":5}]
[null,"Алгебра","MTH-113","ПОНЕДЕЛНИК","Сграда В","08:10:00","09:15:00",{"$f":"ROW()-ROW(СписъкКурсове[[#Headers],[УНИКАЛНИ]])","v":6}]
[null,"Алгебра","MTH-113","СРЯДА","Сграда В","08:10:00","09:15:00",{"$f":"ROW()-ROW(СписъкКурсове[[#Headers],[УНИКАЛНИ]])","v":7}]
[null,"Алгебра","MTH-113","ПЕТЪК","Сграда В","08:10:00","09:15:00",{"$f":"ROW()-ROW(СписъкКурсове[[#Headers],[УНИКАЛНИ]])","v":8}]